BIOGUIDE_ID,OFFICE,QUARTER,CATEGORY,DATE,PAYEE,START DATE,END DATE,PURPOSE,AMOUNT,YEAR,TRANSCODE,TRANSCODELONG,RECORDID,RECIP (orig.)
,OFFICE OF THE SPEAKER,2012Q1,PERSONNEL BENEFITS,02-17,HON. JOHN A. BOEHNER,02/01/12,02/29/12,OFFICIAL EXPENSES FOR LEADERS,"2,083.33",2012,AP,Accounts payable,00381112,HON. JOHN A. BOEHNER
,OFFICE OF THE SPEAKER,2012Q1,PERSONNEL BENEFITS,03-16,HON. JOHN A. BOEHNER,01/01/12,01/31/12,OFFICIAL EXPENSES FOR LEADERS,"2,083.33",2012,AP,Accounts payable,00351383,HON. JOHN A. BOEHNER
,OFFICE OF THE SPEAKER,2012Q1,PERSONNEL BENEFITS,03-20,HON. JOHN A. BOEHNER,03/01/12,03/31/12,OFFICIAL EXPENSES FOR LEADERS,"2,083.33",2012,AP,Accounts payable,00406570,HON. JOHN A. BOEHNER
,OFFICE OF THE SPEAKER,2012Q1,FRANKED MAIL,02-24,UNITED STATES POSTAL SERVICE,01/03/12,01/31/12,FRANKED MAIL,74.97,2012,AP,Accounts payable,00388867,UNITED STATES POSTAL SERVICE
,OFFICE OF THE SPEAKER,2012Q1,FRANKED MAIL,03-20,UNITED STATES POSTAL SERVICE,02/01/12,02/29/12,FRANKED MAIL,128.22,2012,AP,Accounts payable,00407785,UNITED STATES POSTAL SERVICE
,OFFICE OF THE SPEAKER,2012Q1,PERSONNEL COMPENSATION,"","ANDRES, ELIZABETH G",01/01/12,01/31/12,DIRECTOR OF ADVANCE,-416.11,2012,"","","","ANDRES, ELIZABETH G"
,OFFICE OF THE SPEAKER,2012Q1,PERSONNEL COMPENSATION,"","ANDRES, ELIZABETH G",01/01/12,03/31/12,DIRECTOR OF ADVANCE,"16,228.34",2012,"","","","ANDRES, ELIZABETH G"
,OFFICE OF THE SPEAKER,2012Q1,PERSONNEL COMPENSATION,"","ANDREWS,THOMAS S",01/01/12,01/31/12,SENIOR STAFF ASSISTANT,-177.78,2012,"","","","ANDREWS,THOMAS S"
,OFFICE OF THE SPEAKER,2012Q1,PERSONNEL COMPENSATION,"","ANDREWS,THOMAS S",01/01/12,03/31/12,SENIOR STAFF ASSISTANT,"8,000.01",2012,"","","","ANDREWS,THOMAS S"
,OFFICE OF THE SPEAKER,2012Q1,PERSONNEL COMPENSATION,"","ANDREWS,THOMAS S",01/01/12,02/29/12,SENIOR STAFF ASSISTANT (OVERTIME),611.53,2012,"","","","ANDREWS,THOMAS S"
,OFFICE OF THE SPEAKER,2012Q1,PERSONNEL COMPENSATION,"","AVONDOGLIO,BRYANT J",01/01/12,01/31/12,ADVANCE & DIGITAL PRODUC MGR,-444.44,2012,"","","","AVONDOGLIO,BRYANT J"
,OFFICE OF THE SPEAKER,2012Q1,PERSONNEL COMPENSATION,"","AVONDOGLIO,BRYANT J",01/01/12,03/31/12,ADVANCE & DIGITAL PRODUC MGR,"20,000.01",2012,"","","","AVONDOGLIO,BRYANT J"
,OFFICE OF THE SPEAKER,2012Q1,PERSONNEL COMPENSATION,"","BARNETT,MITCHELL H",01/01/12,01/31/12,SHARED EMPLOYEE,-277.78,2012,"","","","BARNETT,MITCHELL H"
,OFFICE OF THE SPEAKER,2012Q1,PERSONNEL COMPENSATION,"","BARNETT,MITCHELL H",01/01/12,01/31/12,SHARED EMPLOYEE,"4,166.67",2012,"","","","BARNETT,MITCHELL H"
,OFFICE OF THE SPEAKER,2012Q1,PERSONNEL COMPENSATION,"","BARNETT,MITCHELL H",03/01/12,03/29/12,CHIEF OF STAFF,"-4,166.67",2012,"","","","BARNETT,MITCHELL H"
,OFFICE OF THE SPEAKER,2012Q1,PERSONNEL COMPENSATION,"","BECKER,ALEXANDER M",01/01/12,01/31/12,STAFF ASSISTANT,-155.56,2012,"","","","BECKER,ALEXANDER M"
,OFFICE OF THE SPEAKER,2012Q1,PERSONNEL COMPENSATION,"","BECKER,ALEXANDER M",01/01/12,03/31/12,STAFF ASSISTANT,"6,999.99",2012,"","","","BECKER,ALEXANDER M"
,OFFICE OF THE SPEAKER,2012Q1,PERSONNEL COMPENSATION,"","BECKER,ALEXANDER M",01/01/12,02/29/12,STAFF ASSISTANT (OVERTIME),454.32,2012,"","","","BECKER,ALEXANDER M"
,OFFICE OF THE SPEAKER,2012Q1,PERSONNEL COMPENSATION,"","BELAIR, BRENDAN M",01/01/12,01/31/12,SHARED EMPLOYEE,-444.44,2012,"","","","BELAIR, BRENDAN M"
,OFFICE OF THE SPEAKER,2012Q1,PERSONNEL COMPENSATION,"","BELAIR, BRENDAN M",01/01/12,03/31/12,SHARED EMPLOYEE,"20,000.01",2012,"","","","BELAIR, BRENDAN M"
,OFFICE OF THE SPEAKER,2012Q1,PERSONNEL COMPENSATION,"","BENJAMIN, WILLIAM C",01/01/12,01/31/12,DIR OF INFORMATION TECHNOLOGY,-516.67,2012,"","","","BENJAMIN, WILLIAM C"
,OFFICE OF THE SPEAKER,2012Q1,PERSONNEL COMPENSATION,"","BENJAMIN, WILLIAM C",01/01/12,03/31/12,DIR OF INFORMATION TECHNOLOGY,"23,250.00",2012,"","","","BENJAMIN, WILLIAM C"
,OFFICE OF THE SPEAKER,2012Q1,PERSONNEL COMPENSATION,"","BLAKE,KRISTENE",01/01/12,01/31/12,EXECUTIVE ASSISTANT,-333.33,2012,"","","","BLAKE,KRISTENE"
,OFFICE OF THE SPEAKER,2012Q1,PERSONNEL COMPENSATION,"","BLAKE,KRISTENE",01/01/12,03/31/12,EXECUTIVE ASSISTANT,"15,000.00",2012,"","","","BLAKE,KRISTENE"
,OFFICE OF THE SPEAKER,2012Q1,PERSONNEL COMPENSATION,"","BOYD,KATHRYN E",01/01/12,01/31/12,ASST COMMUNICATIONS DIRECTOR,-444.44,2012,"","","","BOYD,KATHRYN E"
,OFFICE OF THE SPEAKER,2012Q1,PERSONNEL COMPENSATION,"","BOYD,KATHRYN E",01/01/12,03/31/12,ASST COMMUNICATIONS DIRECTOR,"20,000.01",2012,"","","","BOYD,KATHRYN E"
,OFFICE OF THE SPEAKER,2012Q1,PERSONNEL COMPENSATION,"","BUCK, BRENDAN K",01/01/12,01/31/12,PRESS SECRETARY,-638.89,2012,"","","","BUCK, BRENDAN K"
,OFFICE OF THE SPEAKER,2012Q1,PERSONNEL COMPENSATION,"","BUCK, BRENDAN K",01/01/12,03/31/12,PRESS SECRETARY,"28,749.99",2012,"","","","BUCK, BRENDAN K"
,OFFICE OF THE SPEAKER,2012Q1,PERSONNEL COMPENSATION,"","CASSIDY, ED",01/01/12,01/31/12,DIRECTOR OF HOUSE OPERATIONS,-933.33,2012,"","","","CASSIDY, ED"
,OFFICE OF THE SPEAKER,2012Q1,PERSONNEL COMPENSATION,"","CASSIDY, ED",01/01/12,03/31/12,DIRECTOR OF HOUSE OPERATIONS,"42,000.00",2012,"","","","CASSIDY, ED"
,OFFICE OF THE SPEAKER,2012Q1,PERSONNEL COMPENSATION,"","CATANZARO,MICHAEL J",01/01/12,01/31/12,ASST TO THE SPEAKER FOR POLICY,-933.33,2012,"","","","CATANZARO,MICHAEL J"
,OFFICE OF THE SPEAKER,2012Q1,PERSONNEL COMPENSATION,"","CATANZARO,MICHAEL J",01/01/12,03/31/12,ASST TO THE SPEAKER FOR POLICY,"42,000.00",2012,"","","","CATANZARO,MICHAEL J"
,OFFICE OF THE SPEAKER,2012Q1,PERSONNEL COMPENSATION,"","CHAPLIN, KRISTEN F",01/01/12,01/31/12,DIR OF SCHEDLNG & SPEC EVENTS,-541.67,2012,"","","","CHAPLIN, KRISTEN F"
,OFFICE OF THE SPEAKER,2012Q1,PERSONNEL COMPENSATION,"","CHAPLIN, KRISTEN F",01/01/12,03/31/12,DIR OF SCHEDLNG & SPEC EVENTS,"24,375.00",2012,"","","","CHAPLIN, KRISTEN F"
,OFFICE OF THE SPEAKER,2012Q1,PERSONNEL COMPENSATION,"","DESTEFANO,JOHN",01/01/12,01/31/12,SR ADVISOR FOR MEMBER SERVICES,-916.67,2012,"","","","DESTEFANO,JOHN"
,OFFICE OF THE SPEAKER,2012Q1,PERSONNEL COMPENSATION,"","DESTEFANO,JOHN",01/01/12,03/31/12,SR ADVISOR FOR MEMBER SERVICES,"41,250.00",2012,"","","","DESTEFANO,JOHN"
,OFFICE OF THE SPEAKER,2012Q1,PERSONNEL COMPENSATION,"","DEUTSCH,JEREMY",01/01/12,01/31/12,SHARED EMPLOYEE,-444.44,2012,"","","","DEUTSCH,JEREMY"
,OFFICE OF THE SPEAKER,2012Q1,PERSONNEL COMPENSATION,"","DEUTSCH,JEREMY",01/01/12,03/31/12,SHARED EMPLOYEE,"20,000.01",2012,"","","","DEUTSCH,JEREMY"
,OFFICE OF THE SPEAKER,2012Q1,PERSONNEL COMPENSATION,"","ECKARD,NASTASHA",01/01/12,01/31/12,LEGISLATIVE ASSISTANT,-288.89,2012,"","","","ECKARD,NASTASHA"
,OFFICE OF THE SPEAKER,2012Q1,PERSONNEL COMPENSATION,"","ECKARD,NASTASHA",01/01/12,03/31/12,LEGISLATIVE ASSISTANT,"12,999.99",2012,"","","","ECKARD,NASTASHA"
,OFFICE OF THE SPEAKER,2012Q1,PERSONNEL COMPENSATION,"","EICHHORN, JARED D",01/01/12,01/31/12,FLOOR ASSISTANT,-266.67,2012,"","","","EICHHORN, JARED D"
,OFFICE OF THE SPEAKER,2012Q1,PERSONNEL COMPENSATION,"","EICHHORN, JARED D",01/01/12,03/31/12,FLOOR ASSISTANT,"12,000.00",2012,"","","","EICHHORN, JARED D"
,OFFICE OF THE SPEAKER,2012Q1,PERSONNEL COMPENSATION,"","FINNEGAN,PATRICK",01/01/12,01/31/12,HOUSE OPERATIONS ASSISTANT,-222.22,2012,"","","","FINNEGAN,PATRICK"
,OFFICE OF THE SPEAKER,2012Q1,PERSONNEL COMPENSATION,"","FINNEGAN,PATRICK",01/01/12,03/31/12,HOUSE OPERATIONS ASSISTANT,"10,499.99",2012,"","","","FINNEGAN,PATRICK"
,OFFICE OF THE SPEAKER,2012Q1,PERSONNEL COMPENSATION,"","GILLESPIE,MAURA M",01/01/12,01/31/12,STAFF ASSISTANT,-155.56,2012,"","","","GILLESPIE,MAURA M"
,OFFICE OF THE SPEAKER,2012Q1,PERSONNEL COMPENSATION,"","GILLESPIE,MAURA M",01/01/12,03/31/12,STAFF ASSISTANT,"6,999.99",2012,"","","","GILLESPIE,MAURA M"
,OFFICE OF THE SPEAKER,2012Q1,PERSONNEL COMPENSATION,"","GILLESPIE,MAURA M",01/01/12,02/29/12,STAFF ASSISTANT (OVERTIME),686.53,2012,"","","","GILLESPIE,MAURA M"
,OFFICE OF THE SPEAKER,2012Q1,PERSONNEL COMPENSATION,"","GREEN, JO-MARIE S",01/01/12,01/31/12,GEN COUNSEL & CHIEF OF LEG OPS,-955.56,2012,"","","","GREEN, JO-MARIE S"
,OFFICE OF THE SPEAKER,2012Q1,PERSONNEL COMPENSATION,"","GREEN, JO-MARIE S",01/01/12,03/31/12,GEN COUNSEL & CHIEF OF LEG OPS,"42,999.99",2012,"","","","GREEN, JO-MARIE S"
,OFFICE OF THE SPEAKER,2012Q1,PERSONNEL COMPENSATION,"","GREENE,WILLIAM P",01/01/12,01/31/12,DIRECTOR-OUTREACH,-751.67,2012,"","","","GREENE,WILLIAM P"
,OFFICE OF THE SPEAKER,2012Q1,PERSONNEL COMPENSATION,"","GREENE,WILLIAM P",01/01/12,03/31/12,DIRECTOR-OUTREACH,"33,825.00",2012,"","","","GREENE,WILLIAM P"
,OFFICE OF THE SPEAKER,2012Q1,PERSONNEL COMPENSATION,"","HALEY, KATHERINE C",01/01/12,01/31/12,ASST TO SPEAKER FOR POLICY,-491.67,2012,"","","","HALEY, KATHERINE C"
,OFFICE OF THE SPEAKER,2012Q1,PERSONNEL COMPENSATION,"","HALEY, KATHERINE C",01/01/12,03/31/12,ASST TO SPEAKER FOR POLICY,"22,125.00",2012,"","","","HALEY, KATHERINE C"
,OFFICE OF THE SPEAKER,2012Q1,PERSONNEL COMPENSATION,"","HARROUN, TIMOTHY J",01/01/12,01/31/12,MANAGER REPUBLICAN CLOAKROOM,-739.72,2012,"","","","HARROUN, TIMOTHY J"
,OFFICE OF THE SPEAKER,2012Q1,PERSONNEL COMPENSATION,"","HARROUN, TIMOTHY J",01/01/12,03/31/12,MANAGER REPUBLICAN CLOAKROOM,"33,287.49",2012,"","","","HARROUN, TIMOTHY J"
,OFFICE OF THE SPEAKER,2012Q1,PERSONNEL COMPENSATION,"","HERRLE, CYNTHIA A",01/01/12,01/31/12,ASST TO THE SPEAKER FOR POLICY,-790.00,2012,"","","","HERRLE, CYNTHIA A"
,OFFICE OF THE SPEAKER,2012Q1,PERSONNEL COMPENSATION,"","HERRLE, CYNTHIA A",01/01/12,03/31/12,ASST TO THE SPEAKER FOR POLICY,"35,550.00",2012,"","","","HERRLE, CYNTHIA A"
,OFFICE OF THE SPEAKER,2012Q1,PERSONNEL COMPENSATION,"","HUTCHESON,NATHANIEL J",01/01/12,01/31/12,FLOOR ASSISTANT,-222.22,2012,"","","","HUTCHESON,NATHANIEL J"
,OFFICE OF THE SPEAKER,2012Q1,PERSONNEL COMPENSATION,"","HUTCHESON,NATHANIEL J",01/01/12,03/31/12,FLOOR ASSISTANT,"9,999.99",2012,"","","","HUTCHESON,NATHANIEL J"
,OFFICE OF THE SPEAKER,2012Q1,PERSONNEL COMPENSATION,"","JACKSON,BARRY S",01/01/12,01/31/12,CHIEF OF STAFF,-958.33,2012,"","","","JACKSON,BARRY S"
,OFFICE OF THE SPEAKER,2012Q1,PERSONNEL COMPENSATION,"","JACKSON,BARRY S",01/01/12,03/31/12,CHIEF OF STAFF,"43,125.00",2012,"","","","JACKSON,BARRY S"
,OFFICE OF THE SPEAKER,2012Q1,PERSONNEL COMPENSATION,"","KAMIS,KYLA M",01/01/12,01/31/12,"PROFESSIONAL STAFF MEMBER, O&I",-222.22,2012,"","","","KAMIS,KYLA M"
,OFFICE OF THE SPEAKER,2012Q1,PERSONNEL COMPENSATION,"","KAMIS,KYLA M",01/01/12,01/31/12,"PROFESSIONAL STAFF MEMBER, O&I","3,333.33",2012,"","","","KAMIS,KYLA M"
,OFFICE OF THE SPEAKER,2012Q1,PERSONNEL COMPENSATION,"","KAMIS,KYLA M",02/01/12,03/31/12,SPEC EVENTS & SCH ASSISTANT,"6,666.66",2012,"","","","KAMIS,KYLA M"
,OFFICE OF THE SPEAKER,2012Q1,PERSONNEL COMPENSATION,"","KINZEL,WILL C",01/01/12,01/31/12,ASST TO THE SPEAKER FOR POLICY,-635.56,2012,"","","","KINZEL,WILL C"
,OFFICE OF THE SPEAKER,2012Q1,PERSONNEL COMPENSATION,"","KINZEL,WILL C",01/01/12,03/31/12,ASST TO THE SPEAKER FOR POLICY,"28,599.99",2012,"","","","KINZEL,WILL C"
,OFFICE OF THE SPEAKER,2012Q1,PERSONNEL COMPENSATION,"","KOLEGO, TREVOR W",01/01/12,01/31/12,DEPUTY DIR MEMBER SERVICES,-722.22,2012,"","","","KOLEGO, TREVOR W"
,OFFICE OF THE SPEAKER,2012Q1,PERSONNEL COMPENSATION,"","KOLEGO, TREVOR W",01/01/12,03/31/12,DEPUTY DIR MEMBERS SERVICES,"32,499.99",2012,"","","","KOLEGO, TREVOR W"
,OFFICE OF THE SPEAKER,2012Q1,PERSONNEL COMPENSATION,"","LAMPERT,JUSTIN",01/01/12,01/31/12,RESEARCH ASSISTANT,-250.00,2012,"","","","LAMPERT,JUSTIN"
,OFFICE OF THE SPEAKER,2012Q1,PERSONNEL COMPENSATION,"","LAMPERT,JUSTIN",01/01/12,03/31/12,RESEARCH ASSISTANT,"11,250.00",2012,"","","","LAMPERT,JUSTIN"
,OFFICE OF THE SPEAKER,2012Q1,PERSONNEL COMPENSATION,"","LOLLI,TIMOTHY R",01/01/12,01/31/12,STAFF ASSISTANT,-166.67,2012,"","","","LOLLI,TIMOTHY R"
,OFFICE OF THE SPEAKER,2012Q1,PERSONNEL COMPENSATION,"","LOLLI,TIMOTHY R",01/01/12,03/31/12,STAFF ASSISTANT,"7,500.00",2012,"","","","LOLLI,TIMOTHY R"
,OFFICE OF THE SPEAKER,2012Q1,PERSONNEL COMPENSATION,"","LOLLI,TIMOTHY R",01/01/12,02/29/12,STAFF ASSISTANT (OVERTIME),356.96,2012,"","","","LOLLI,TIMOTHY R"
,OFFICE OF THE SPEAKER,2012Q1,PERSONNEL COMPENSATION,"","LOPER,BRETT S",01/01/12,01/31/12,POLICY DIRECTOR,-955.56,2012,"","","","LOPER,BRETT S"
,OFFICE OF THE SPEAKER,2012Q1,PERSONNEL COMPENSATION,"","LOPER,BRETT S",01/01/12,03/31/12,POLICY DIRECTOR,"42,999.99",2012,"","","","LOPER,BRETT S"
,OFFICE OF THE SPEAKER,2012Q1,PERSONNEL COMPENSATION,"","LOZUPONE, AMY S",01/01/12,01/31/12,DIR OF ADMIN OPERATIONS,-794.44,2012,"","","","LOZUPONE, AMY S"
,OFFICE OF THE SPEAKER,2012Q1,PERSONNEL COMPENSATION,"","LOZUPONE, AMY S",01/01/12,03/31/12,DIRECTOR OF ADMIN OPERATIONS,"35,750.01",2012,"","","","LOZUPONE, AMY S"
,OFFICE OF THE SPEAKER,2012Q1,PERSONNEL COMPENSATION,"","LUKEMAN,KATHERINE A",01/01/12,01/31/12,ASSOCIATE COUNSEL,-288.89,2012,"","","","LUKEMAN,KATHERINE A"
,OFFICE OF THE SPEAKER,2012Q1,PERSONNEL COMPENSATION,"","LUKEMAN,KATHERINE A",01/01/12,03/31/12,ASSOCIATE COUNSEL,"12,999.99",2012,"","","","LUKEMAN,KATHERINE A"
,OFFICE OF THE SPEAKER,2012Q1,PERSONNEL COMPENSATION,"","MACDONALD, B",01/01/12,01/31/12,SHARED EMPLOYEE,-444.44,2012,"","","","MACDONALD, B"
,OFFICE OF THE SPEAKER,2012Q1,PERSONNEL COMPENSATION,"","MACDONALD, B",01/01/12,03/31/12,SHARED EMPLOYEE,"20,000.01",2012,"","","","MACDONALD, B"
,OFFICE OF THE SPEAKER,2012Q1,PERSONNEL COMPENSATION,"","MINKLER,ANN W",01/01/12,01/31/12,STAFF ASSISTANT,-155.56,2012,"","","","MINKLER,ANN W"
,OFFICE OF THE SPEAKER,2012Q1,PERSONNEL COMPENSATION,"","MINKLER,ANN W",01/01/12,03/11/12,STAFF ASSISTANT,"5,522.21",2012,"","","","MINKLER,ANN W"
,OFFICE OF THE SPEAKER,2012Q1,PERSONNEL COMPENSATION,"","MINKLER,ANN W",03/12/12,03/31/12,FLOOR ASSISTANT,"1,741.67",2012,"","","","MINKLER,ANN W"
,OFFICE OF THE SPEAKER,2012Q1,PERSONNEL COMPENSATION,"","MINKLER,ANN W",01/01/12,02/29/12,STAFF ASSISTANT (OVERTIME),363.46,2012,"","","","MINKLER,ANN W"
,OFFICE OF THE SPEAKER,2012Q1,PERSONNEL COMPENSATION,"","PIERSON, JAY",01/01/12,01/31/12,FLOOR ASSISTANT,-935.56,2012,"","","","PIERSON, JAY"
,OFFICE OF THE SPEAKER,2012Q1,PERSONNEL COMPENSATION,"","PIERSON, JAY",01/01/12,03/31/12,FLOOR ASSISTANT,"42,099.99",2012,"","","","PIERSON, JAY"
,OFFICE OF THE SPEAKER,2012Q1,PERSONNEL COMPENSATION,"","PORTER, EMILY S",01/01/12,01/31/12,ASST TO THE SPEAKER FOR POLICY,-611.11,2012,"","","","PORTER, EMILY S"
,OFFICE OF THE SPEAKER,2012Q1,PERSONNEL COMPENSATION,"","PORTER, EMILY S",01/01/12,03/31/12,ASST TO THE SPEAKER FOR POLICY,"27,500.01",2012,"","","","PORTER, EMILY S"
,OFFICE OF THE SPEAKER,2012Q1,PERSONNEL COMPENSATION,"","PROPP,ELIZABETH R",01/01/12,01/31/12,DEPUTY PRESS SECRETARY,-316.67,2012,"","","","PROPP,ELIZABETH R"
,OFFICE OF THE SPEAKER,2012Q1,PERSONNEL COMPENSATION,"","PROPP,ELIZABETH R",01/01/12,03/31/12,DEPUTY PRESS SECRETARY,"14,250.00",2012,"","","","PROPP,ELIZABETH R"
,OFFICE OF THE SPEAKER,2012Q1,PERSONNEL COMPENSATION,"","REED, HEATHER E",01/01/12,01/31/12,ASSISTANT PRESS SECRETARY,-250.00,2012,"","","","REED, HEATHER E"
,OFFICE OF THE SPEAKER,2012Q1,PERSONNEL COMPENSATION,"","REED, HEATHER E",01/01/12,03/31/12,ASSISTANT PRESS SECRETARY,"11,250.00",2012,"","","","REED, HEATHER E"
,OFFICE OF THE SPEAKER,2012Q1,PERSONNEL COMPENSATION,"","REED, MARY K",01/01/12,01/31/12,SHARED EMPLOYEE,-180.56,2012,"","","","REED, MARY K"
,OFFICE OF THE SPEAKER,2012Q1,PERSONNEL COMPENSATION,"","REED, MARY K",01/01/12,03/31/12,SHARED EMPLOYEE,"8,124.99",2012,"","","","REED, MARY K"
,OFFICE OF THE SPEAKER,2012Q1,PERSONNEL COMPENSATION,"","RICCI,MICHAEL",01/01/12,01/31/12,DIRECTOR OF SPEECHWRITING,-700.00,2012,"","","","RICCI,MICHAEL"
,OFFICE OF THE SPEAKER,2012Q1,PERSONNEL COMPENSATION,"","RICCI,MICHAEL",01/01/12,03/31/12,DIRECTOR OF SPEECHWRITING,"31,500.00",2012,"","","","RICCI,MICHAEL"
,OFFICE OF THE SPEAKER,2012Q1,PERSONNEL COMPENSATION,"","ROGERS, GEORGE R",01/01/12,01/31/12,ASST TO THE SPEAKER FOR POLICY,-833.33,2012,"","","","ROGERS, GEORGE R"
,OFFICE OF THE SPEAKER,2012Q1,PERSONNEL COMPENSATION,"","ROGERS, GEORGE R",01/01/12,03/31/12,ASST TO THE SPEAKER FOR POLICY,"37,500.00",2012,"","","","ROGERS, GEORGE R"
,OFFICE OF THE SPEAKER,2012Q1,PERSONNEL COMPENSATION,"","SAGER,MICHAEL J",01/01/12,01/31/12,SYSTEMS ADMINISTRATOR,-444.44,2012,"","","","SAGER,MICHAEL J"
,OFFICE OF THE SPEAKER,2012Q1,PERSONNEL COMPENSATION,"","SAGER,MICHAEL J",01/01/12,03/31/12,SYSTEMS ADMINISTRATOR,"20,000.01",2012,"","","","SAGER,MICHAEL J"
,OFFICE OF THE SPEAKER,2012Q1,PERSONNEL COMPENSATION,"","SAUNDERS,GRANT H",01/01/12,01/31/12,MEMBER SERVICES MANAGER,-238.89,2012,"","","","SAUNDERS,GRANT H"
,OFFICE OF THE SPEAKER,2012Q1,PERSONNEL COMPENSATION,"","SAUNDERS,GRANT H",01/01/12,01/31/12,MEMBER SERVICES MANAGER,"3,583.33",2012,"","","","SAUNDERS,GRANT H"
,OFFICE OF THE SPEAKER,2012Q1,PERSONNEL COMPENSATION,"","SAUNDERS,GRANT H",01/01/12,01/31/12,MEMBER SERVICES MANAGER (OTHER COMPENSATION),"3,583.33",2012,"","","","SAUNDERS,GRANT H"
,OFFICE OF THE SPEAKER,2012Q1,PERSONNEL COMPENSATION,"","SCHNITTGER, DAVID M",01/01/12,01/31/12,"DEP CHIEF OF STAFF,COMMUN OPS",-958.33,2012,"","","","SCHNITTGER, DAVID M"
,OFFICE OF THE SPEAKER,2012Q1,PERSONNEL COMPENSATION,"","SCHNITTGER, DAVID M",01/01/12,03/31/12,"DEP CHIEF OF STAFF,COMMUN OPS","43,125.00",2012,"","","","SCHNITTGER, DAVID M"
,OFFICE OF THE SPEAKER,2012Q1,PERSONNEL COMPENSATION,"","SEYMOUR JR, DONALD P",01/01/12,01/31/12,DIGITAL COMMUNICATIONS DIRECTO,-727.78,2012,"","","","SEYMOUR JR, DONALD P"
,OFFICE OF THE SPEAKER,2012Q1,PERSONNEL COMPENSATION,"","SEYMOUR JR, DONALD P",01/01/12,03/31/12,DIGITAL COMMUNICATIONS DIRECTO,"32,750.01",2012,"","","","SEYMOUR JR, DONALD P"
,OFFICE OF THE SPEAKER,2012Q1,PERSONNEL COMPENSATION,"","SKRZYCKI, KRISTIN S",01/01/12,01/31/12,SHARED EMPLOYEE,-444.44,2012,"","","","SKRZYCKI, KRISTIN S"
,OFFICE OF THE SPEAKER,2012Q1,PERSONNEL COMPENSATION,"","SKRZYCKI, KRISTIN S",01/01/12,03/31/12,SHARED EMPLOYEE,"20,000.01",2012,"","","","SKRZYCKI, KRISTIN S"
,OFFICE OF THE SPEAKER,2012Q1,PERSONNEL COMPENSATION,"","SMITH, KEVIN",01/01/12,01/31/12,DIRECTOR OF COMMUNICATIONS,-863.89,2012,"","","","SMITH, KEVIN"
,OFFICE OF THE SPEAKER,2012Q1,PERSONNEL COMPENSATION,"","SMITH, KEVIN",01/01/12,03/31/12,DIRECTOR OF COMMUNICATIONS,"38,874.99",2012,"","","","SMITH, KEVIN"
,OFFICE OF THE SPEAKER,2012Q1,PERSONNEL COMPENSATION,"","SOMMERS, MICHAEL J",01/01/12,01/31/12,DEP CHIEF OF STAF FOR LEAD OPS,-958.33,2012,"","","","SOMMERS, MICHAEL J"
,OFFICE OF THE SPEAKER,2012Q1,PERSONNEL COMPENSATION,"","SOMMERS, MICHAEL J",01/01/12,03/31/12,DEP CHIEF OF STAF FOR LEAD OPS,"43,125.00",2012,"","","","SOMMERS, MICHAEL J"
,OFFICE OF THE SPEAKER,2012Q1,PERSONNEL COMPENSATION,"","STEEL, MICHAEL",01/01/12,01/31/12,PRESS SECRETARY,-736.11,2012,"","","","STEEL, MICHAEL"
,OFFICE OF THE SPEAKER,2012Q1,PERSONNEL COMPENSATION,"","STEEL, MICHAEL",01/01/12,03/31/12,PRESS SECRETARY,"33,125.01",2012,"","","","STEEL, MICHAEL"
,OFFICE OF THE SPEAKER,2012Q1,PERSONNEL COMPENSATION,"","STEWART, DAVID B",01/01/12,01/31/12,ASST TO SPEAKER FOR POLICY,-736.11,2012,"","","","STEWART, DAVID B"
,OFFICE OF THE SPEAKER,2012Q1,PERSONNEL COMPENSATION,"","STEWART, DAVID B",01/01/12,03/31/12,ASST TO SPEAKER FOR POLICY,"33,125.01",2012,"","","","STEWART, DAVID B"
,OFFICE OF THE SPEAKER,2012Q1,PERSONNEL COMPENSATION,"","STEWART, JENNIFER M",01/01/12,01/31/12,ASST TO SPEAKER FOR POLICY,-611.11,2012,"","","","STEWART, JENNIFER M"
,OFFICE OF THE SPEAKER,2012Q1,PERSONNEL COMPENSATION,"","STEWART, JENNIFER M",01/01/12,03/31/12,ASST TO SPEAKER FOR POLICY,"27,500.01",2012,"","","","STEWART, JENNIFER M"
,OFFICE OF THE SPEAKER,2012Q1,PERSONNEL COMPENSATION,"","STOCKWELL,KERRY W",01/01/12,01/31/12,SPECIAL EVENTS COORDINATOR,-305.56,2012,"","","","STOCKWELL,KERRY W"
,OFFICE OF THE SPEAKER,2012Q1,PERSONNEL COMPENSATION,"","STOCKWELL,KERRY W",01/01/12,03/31/12,SPECIAL EVENTS COORDINATOR,"13,749.99",2012,"","","","STOCKWELL,KERRY W"
,OFFICE OF THE SPEAKER,2012Q1,PERSONNEL COMPENSATION,"","STRUNK, JEFFREY A",01/01/12,01/31/12,DEPUTY FLOOR DIRECTOR,-416.67,2012,"","","","STRUNK, JEFFREY A"
,OFFICE OF THE SPEAKER,2012Q1,PERSONNEL COMPENSATION,"","STRUNK, JEFFREY A",01/01/12,03/31/12,DEPUTY FLOOR DIRECTOR,"18,750.00",2012,"","","","STRUNK, JEFFREY A"
,OFFICE OF THE SPEAKER,2012Q1,PERSONNEL COMPENSATION,"","THORSEN, ANNE B",01/01/12,01/31/12,FLOOR DIRECTOR,-777.78,2012,"","","","THORSEN, ANNE B"
,OFFICE OF THE SPEAKER,2012Q1,PERSONNEL COMPENSATION,"","THORSEN, ANNE B",01/01/12,03/31/12,FLOOR DIRECTOR,"35,000.01",2012,"","","","THORSEN, ANNE B"
,OFFICE OF THE SPEAKER,2012Q1,PERSONNEL COMPENSATION,"","WOLF,ADAM J",01/01/12,01/31/12,FLOOR ASSISTANT,-259.44,2012,"","","","WOLF,ADAM J"
,OFFICE OF THE SPEAKER,2012Q1,PERSONNEL COMPENSATION,"","WOLF,ADAM J",01/01/12,03/11/12,FLOOR ASSISTANT,"9,210.29",2012,"","","","WOLF,ADAM J"
,OFFICE OF THE SPEAKER,2012Q1,PERSONNEL COMPENSATION,"","WOLF,ADAM J",03/12/12,03/31/12,SHARED EMPLOYEE,"2,638.89",2012,"","","","WOLF,ADAM J"
,OFFICE OF THE SPEAKER,2012Q1,TRAVEL,02-09,"LOZUPONE, AMY S",01/25/12,01/25/12,TAXI/PARKING/TOLLS,15.00,2012,AP,Accounts payable,00373717,"LOZUPONE, AMY S"
,OFFICE OF THE SPEAKER,2012Q1,TRAVEL,02-09,"CASSIDY, ED",01/19/12,01/19/12,TAXI/PARKING/TOLLS,52.00,2012,AP,Accounts payable,00373720,"CASSIDY, ED"
,OFFICE OF THE SPEAKER,2012Q1,TRAVEL,02-17,"AVONDOGLIO, BRYANT J",01/23/12,01/25/12,CAR RENTAL,185.11,2012,AP,Accounts payable,00377825,"AVONDOGLIO, BRYANT J"
,OFFICE OF THE SPEAKER,2012Q1,TRAVEL,02-17,"AVONDOGLIO, BRYANT J",01/25/12,01/25/12,GASOLINE,5.80,2012,AP,Accounts payable,00377827,"AVONDOGLIO, BRYANT J"
,OFFICE OF THE SPEAKER,2012Q1,TRAVEL,02-17,"AVONDOGLIO, BRYANT J",01/23/12,01/25/12,MEALS,19.97,2012,AP,Accounts payable,00377830,"AVONDOGLIO, BRYANT J"
,OFFICE OF THE SPEAKER,2012Q1,TRAVEL,02-17,"AVONDOGLIO, BRYANT J",01/23/12,01/25/12,LODGING,268.94,2012,AP,Accounts payable,00377841,"AVONDOGLIO, BRYANT J"
,OFFICE OF THE SPEAKER,2012Q1,TRAVEL,02-17,"AVONDOGLIO, BRYANT J",01/23/12,01/23/12,TAXI/PARKING/TOLLS,15.00,2012,AP,Accounts payable,00377845,"AVONDOGLIO, BRYANT J"
,OFFICE OF THE SPEAKER,2012Q1,TRAVEL,02-22,"AVONDOGLIO, BRYANT J",01/23/12,01/25/12,COMMERCIAL TRANSPORTATION,673.60,2012,AP,Accounts payable,00377814,"AVONDOGLIO, BRYANT J"
,OFFICE OF THE SPEAKER,2012Q1,TRAVEL,02-22,"AVONDOGLIO, BRYANT J",01/23/12,01/25/12,COMMERCIAL TRANSPORTATION,120.00,2012,AP,Accounts payable,00377820,"AVONDOGLIO, BRYANT J"
,OFFICE OF THE SPEAKER,2012Q1,PRINTING AND REPRODUCTION,01-26,"",01/01/12,01/31/12,PHOTOGRAPHIC (TRANSFER),18.20,2012,GL,General ledger,PIX0016210,""
,OFFICE OF THE SPEAKER,2012Q1,PRINTING AND REPRODUCTION,02-24,"",02/01/12,02/29/12,PHOTOGRAPHIC (TRANSFER),556.20,2012,GL,General ledger,PIX0016958,""
,OFFICE OF THE SPEAKER,2012Q1,PRINTING AND REPRODUCTION,03-29,"",03/01/12,03/31/12,PHOTOGRAPHIC (TRANSFER),367.70,2012,GL,General ledger,PIX0018025,""
,OFFICE OF THE SPEAKER,2012Q1,OTHER SERVICES,03-26,GLOBAL KNOWLEDGE,01/09/12,01/09/12,TRAINING,"2,845.25",2012,AP,Accounts payable,00410938,GLOBAL KNOWLEDGE
,OFFICE OF THE SPEAKER,2012Q1,OTHER SERVICES,03-26,GLOBAL KNOWLEDGE,01/23/12,01/23/12,TRAINING,"3,320.25",2012,AP,Accounts payable,00410940,GLOBAL KNOWLEDGE
,OFFICE OF THE SPEAKER,2012Q1,SUPPLIES AND MATERIALS,01-24,HAGUE QUALITY WATER OF MD INC,01/04/12,01/04/12,WATER,252.00,2012,AP,Accounts payable,00361435,HAGUE QUALITY WATER OF MD INC
,OFFICE OF THE SPEAKER,2012Q1,SUPPLIES AND MATERIALS,02-09,"LOZUPONE, AMY S",01/24/12,01/24/12,FOOD & BEVERAGE,72.55,2012,AP,Accounts payable,00373723,"LOZUPONE, AMY S"
,OFFICE OF THE SPEAKER,2012Q1,SUPPLIES AND MATERIALS,02-09,COCA-COLA ENTERPRISES,01/18/12,01/18/12,FOOD & BEVERAGE,110.40,2012,AP,Accounts payable,00373726,COCA-COLA ENTERPRISES
,OFFICE OF THE SPEAKER,2012Q1,SUPPLIES AND MATERIALS,02-15,CITIBANK P CARD,12/29/11,01/28/12,FOOD & BEVERAGE,"5,463.90",2012,AP,Accounts payable,00378659,CITIBANK P CARD
,OFFICE OF THE SPEAKER,2012Q1,SUPPLIES AND MATERIALS,02-15,CITIBANK P CARD,12/29/11,01/28/12,HABITATION EXPENSE,235.09,2012,AP,Accounts payable,00378659,CITIBANK P CARD
,OFFICE OF THE SPEAKER,2012Q1,SUPPLIES AND MATERIALS,02-16,"LOZUPONE, AMY S",02/18/12,02/18/12,FOOD & BEVERAGE,23.98,2012,AP,Accounts payable,00377836,"LOZUPONE, AMY S"
,OFFICE OF THE SPEAKER,2012Q1,SUPPLIES AND MATERIALS,02-17,JOE RAGAN'S COFFEE LTD,01/05/12,01/05/12,FOOD & BEVERAGE,413.06,2012,AP,Accounts payable,00376707,JOE RAGAN'S COFFEE LTD
,OFFICE OF THE SPEAKER,2012Q1,SUPPLIES AND MATERIALS,02-17,JOE RAGAN'S COFFEE LTD,01/12/12,01/12/12,FOOD & BEVERAGE,346.32,2012,AP,Accounts payable,00376710,JOE RAGAN'S COFFEE LTD
,OFFICE OF THE SPEAKER,2012Q1,SUPPLIES AND MATERIALS,02-17,JOE RAGAN'S COFFEE LTD,01/26/12,01/26/12,FOOD & BEVERAGE,970.97,2012,AP,Accounts payable,00376714,JOE RAGAN'S COFFEE LTD
,OFFICE OF THE SPEAKER,2012Q1,SUPPLIES AND MATERIALS,02-17,HAGUE QUALITY WATER OF MD INC,02/04/12,02/04/12,WATER,252.00,2012,AP,Accounts payable,00376718,HAGUE QUALITY WATER OF MD INC
,OFFICE OF THE SPEAKER,2012Q1,SUPPLIES AND MATERIALS,02-17,COCA-COLA ENTERPRISES,02/07/12,02/07/12,FOOD & BEVERAGE,187.20,2012,AP,Accounts payable,00377833,COCA-COLA ENTERPRISES
,OFFICE OF THE SPEAKER,2012Q1,SUPPLIES AND MATERIALS,02-17,"STOCKWELL, KERRY",01/23/12,01/23/12,FOOD & BEVERAGE,24.95,2012,AP,Accounts payable,00377850,"STOCKWELL, KERRY"
,OFFICE OF THE SPEAKER,2012Q1,SUPPLIES AND MATERIALS,03-06,JOE RAGAN'S COFFEE LTD,02/02/12,02/02/12,FOOD & BEVERAGE,672.86,2012,AP,Accounts payable,00394320,JOE RAGAN'S COFFEE LTD
,OFFICE OF THE SPEAKER,2012Q1,SUPPLIES AND MATERIALS,03-06,JOE RAGAN'S COFFEE LTD,02/06/12,02/06/12,FOOD & BEVERAGE,30.98,2012,AP,Accounts payable,00394322,JOE RAGAN'S COFFEE LTD
,OFFICE OF THE SPEAKER,2012Q1,SUPPLIES AND MATERIALS,03-06,JOE RAGAN'S COFFEE LTD,02/09/12,02/09/12,FOOD & BEVERAGE,338.93,2012,AP,Accounts payable,00394332,JOE RAGAN'S COFFEE LTD
,OFFICE OF THE SPEAKER,2012Q1,SUPPLIES AND MATERIALS,03-06,JOE RAGAN'S COFFEE LTD,02/15/12,02/15/12,FOOD & BEVERAGE,174.00,2012,AP,Accounts payable,00394333,JOE RAGAN'S COFFEE LTD
,OFFICE OF THE SPEAKER,2012Q1,SUPPLIES AND MATERIALS,03-06,JOE RAGAN'S COFFEE LTD,02/16/12,02/16/12,FOOD & BEVERAGE,376.73,2012,AP,Accounts payable,00394336,JOE RAGAN'S COFFEE LTD
,OFFICE OF THE SPEAKER,2012Q1,SUPPLIES AND MATERIALS,03-07,COCA-COLA ENTERPRISES,02/28/12,02/28/12,FOOD & BEVERAGE,179.36,2012,AP,Accounts payable,00395644,COCA-COLA ENTERPRISES
,OFFICE OF THE SPEAKER,2012Q1,SUPPLIES AND MATERIALS,03-14,HAGUE QUALITY WATER OF MD INC,03/04/12,03/31/12,WATER,252.00,2012,AP,Accounts payable,00399314,HAGUE QUALITY WATER OF MD INC
,OFFICE OF THE SPEAKER,2012Q1,SUPPLIES AND MATERIALS,03-15,CITIBANK P CARD,01/29/12,02/28/12,FOOD & BEVERAGE,"1,481.16",2012,AP,Accounts payable,00400841,CITIBANK P CARD
,OFFICE OF THE SPEAKER,2012Q1,SUPPLIES AND MATERIALS,03-15,CITIBANK P CARD,01/29/12,02/28/12,HABITATION EXPENSE,8.47,2012,AP,Accounts payable,00400841,CITIBANK P CARD
,OFFICE OF THE SPEAKER,2012Q1,SUPPLIES AND MATERIALS,03-16,"LEADERSHIP DIRECTORIES, INC",06/01/12,03/01/13,PUBLICATIONS/REFERENCE MAT'L,547.00,2012,AP,Accounts payable,00401742,"LEADERSHIP DIRECTORIES, INC"
,OFFICE OF THE SPEAKER,2012Q1,SUPPLIES AND MATERIALS,03-26,"LEADERSHIP DIRECTORIES, INC",06/01/12,03/01/13,PUBLICATIONS/REFERENCE MAT'L,547.00,2012,AP,Accounts payable,00410943,"LEADERSHIP DIRECTORIES, INC"
,OFFICE OF THE SPEAKER,2012Q1,SUPPLIES AND MATERIALS,03-26,"LEADERSHIP DIRECTORIES, INC",06/01/12,03/01/13,PUBLICATIONS/REFERENCE MAT'L,547.00,2012,AP,Accounts payable,00410946,"LEADERSHIP DIRECTORIES, INC"
,OFFICE OF THE SPEAKER,2012Q1,SUPPLIES AND MATERIALS,03-26,"LEADERSHIP DIRECTORIES, INC",06/01/12,03/01/13,PUBLICATIONS/REFERENCE MAT'L,547.00,2012,AP,Accounts payable,00410949,"LEADERSHIP DIRECTORIES, INC"
,OFFICE OF THE SPEAKER,2012Q1,SUPPLIES AND MATERIALS,03-30,"LOONEY,JOHN F",03/13/12,03/13/12,HABITATION EXPENSE,224.00,2012,AP,Accounts payable,00414464,"LOONEY,JOHN F"
,OFFICE OF THE MAJORITY LEADER,2012Q1,FRANKED MAIL,02-24,UNITED STATES POSTAL SERVICE,01/03/12,01/31/12,FRANKED MAIL,28.97,2012,AP,Accounts payable,00388867,UNITED STATES POSTAL SERVICE
,OFFICE OF THE MAJORITY LEADER,2012Q1,FRANKED MAIL,03-20,UNITED STATES POSTAL SERVICE,02/01/12,02/29/12,FRANKED MAIL,49.55,2012,AP,Accounts payable,00407785,UNITED STATES POSTAL SERVICE
,OFFICE OF THE MAJORITY LEADER,2012Q1,PERSONNEL COMPENSATION,"","BARRERA,AMY D",01/01/12,01/31/12,DIRECTOR OF ADMINISTRATION,-83.33,2012,"","","","BARRERA,AMY D"
,OFFICE OF THE MAJORITY LEADER,2012Q1,PERSONNEL COMPENSATION,"","BARRERA,AMY D",01/01/12,03/31/12,DIRECTOR OF ADMINISTRATION,"3,750.00",2012,"","","","BARRERA,AMY D"
,OFFICE OF THE MAJORITY LEADER,2012Q1,PERSONNEL COMPENSATION,"","BRADLEY, NEIL L",01/01/12,01/31/12,DEPUTY CHIEF OF STAFF,-958.33,2012,"","","","BRADLEY, NEIL L"
,OFFICE OF THE MAJORITY LEADER,2012Q1,PERSONNEL COMPENSATION,"","BRADLEY, NEIL L",01/01/12,03/31/12,DEPUTY CHEIF OF STAFF,"43,125.00",2012,"","","","BRADLEY, NEIL L"
,OFFICE OF THE MAJORITY LEADER,2012Q1,PERSONNEL COMPENSATION,"","BRAVO, MATTHEW",01/01/12,01/31/12,FLOOR ASSISTANT/SPECIAL ASSIST,-250.00,2012,"","","","BRAVO, MATTHEW"
,OFFICE OF THE MAJORITY LEADER,2012Q1,PERSONNEL COMPENSATION,"","BRAVO, MATTHEW",01/01/12,03/31/12,FLOOR ASSISTANT/SPECIAL ASSIST,"11,250.00",2012,"","","","BRAVO, MATTHEW"
,OFFICE OF THE MAJORITY LEADER,2012Q1,PERSONNEL COMPENSATION,"","CUMMINGS,TIMOTHY P",01/01/12,01/31/12,STAFF ASSISTANT,-133.33,2012,"","","","CUMMINGS,TIMOTHY P"
,OFFICE OF THE MAJORITY LEADER,2012Q1,PERSONNEL COMPENSATION,"","CUMMINGS,TIMOTHY P",01/01/12,03/31/12,STAFF ASSISTANT,"6,000.00",2012,"","","","CUMMINGS,TIMOTHY P"
,OFFICE OF THE MAJORITY LEADER,2012Q1,PERSONNEL COMPENSATION,"","DAYSPRING, BRADFORD",01/01/12,01/31/12,DEPUTY CHIEF OF STAFF,-935.62,2012,"","","","DAYSPRING, BRADFORD"
,OFFICE OF THE MAJORITY LEADER,2012Q1,PERSONNEL COMPENSATION,"","DAYSPRING, BRADFORD",01/01/12,03/31/12,DEPUTY CHIEF OF STAFF,"42,102.75",2012,"","","","DAYSPRING, BRADFORD"
,OFFICE OF THE MAJORITY LEADER,2012Q1,PERSONNEL COMPENSATION,"","DOLBOW, WILLIAM R",01/01/12,01/31/12,SENIOR ADVISOR,-958.33,2012,"","","","DOLBOW, WILLIAM R"
,OFFICE OF THE MAJORITY LEADER,2012Q1,PERSONNEL COMPENSATION,"","DOLBOW, WILLIAM R",01/01/12,03/31/12,SENIOR ADVISOR,"43,125.00",2012,"","","","DOLBOW, WILLIAM R"
,OFFICE OF THE MAJORITY LEADER,2012Q1,PERSONNEL COMPENSATION,"","FALLON,LAENA E",01/01/12,01/31/12,PRESS SECRETARY,-666.67,2012,"","","","FALLON,LAENA E"
,OFFICE OF THE MAJORITY LEADER,2012Q1,PERSONNEL COMPENSATION,"","FALLON,LAENA E",01/01/12,02/01/12,PRESS SECRETARY,"10,333.33",2012,"","","","FALLON,LAENA E"
,OFFICE OF THE MAJORITY LEADER,2012Q1,PERSONNEL COMPENSATION,"","FALLON,LAENA E",02/02/12,03/31/12,COMMUNICATIONS DIRECTOR,"19,666.67",2012,"","","","FALLON,LAENA E"
,OFFICE OF THE MAJORITY LEADER,2012Q1,PERSONNEL COMPENSATION,"","FERENCE, MICHAEL J",01/01/12,01/31/12,DIRECTOR OF OUTREACH,-935.62,2012,"","","","FERENCE, MICHAEL J"
,OFFICE OF THE MAJORITY LEADER,2012Q1,PERSONNEL COMPENSATION,"","FERENCE, MICHAEL J",01/01/12,03/31/12,DIRECTOR OF OUTREACH,"42,102.75",2012,"","","","FERENCE, MICHAEL J"
,OFFICE OF THE MAJORITY LEADER,2012Q1,PERSONNEL COMPENSATION,"","FREDERICKS, AUTUMN",01/01/12,01/31/12,SHARED EMPLOYEE,-66.67,2012,"","","","FREDERICKS, AUTUMN"
,OFFICE OF THE MAJORITY LEADER,2012Q1,PERSONNEL COMPENSATION,"","FREDERICKS, AUTUMN",01/01/12,03/31/12,SHARED EMPLOYEE,"3,000.00",2012,"","","","FREDERICKS, AUTUMN"
,OFFICE OF THE MAJORITY LEADER,2012Q1,PERSONNEL COMPENSATION,"","GUSTAFSON,NICOLE M",01/01/12,01/31/12,POLICY ADVISOR/COUNSEL,-108.33,2012,"","","","GUSTAFSON,NICOLE M"
,OFFICE OF THE MAJORITY LEADER,2012Q1,PERSONNEL COMPENSATION,"","GUSTAFSON,NICOLE M",01/01/12,03/31/12,POLICY ADVISOR/COUNSEL,"11,958.34",2012,"","","","GUSTAFSON,NICOLE M"
,OFFICE OF THE MAJORITY LEADER,2012Q1,PERSONNEL COMPENSATION,"","JAEGER, CHERYL L",01/01/12,01/31/12,SENIOR POLICY ADVISOR,-72.22,2012,"","","","JAEGER, CHERYL L"
,OFFICE OF THE MAJORITY LEADER,2012Q1,PERSONNEL COMPENSATION,"","JAEGER, CHERYL L",01/01/12,03/31/12,SENIOR POLICY ADVISOR,"14,849.99",2012,"","","","JAEGER, CHERYL L"
,OFFICE OF THE MAJORITY LEADER,2012Q1,PERSONNEL COMPENSATION,"","JOHNSTON,STEVEN",01/01/12,01/31/12,ASSOCIATE DIR OF NEW MEDIA,-230.56,2012,"","","","JOHNSTON,STEVEN"
,OFFICE OF THE MAJORITY LEADER,2012Q1,PERSONNEL COMPENSATION,"","JOHNSTON,STEVEN",01/01/12,03/31/12,ASSOCIATE DIR OF NEW MEDIA,"10,374.99",2012,"","","","JOHNSTON,STEVEN"
,OFFICE OF THE MAJORITY LEADER,2012Q1,PERSONNEL COMPENSATION,"","JOSEPH,COURTNEY E",03/12/12,03/31/12,CONGRESSIONAL STAFF,"1,583.33",2012,"","","","JOSEPH,COURTNEY E"
,OFFICE OF THE MAJORITY LEADER,2012Q1,PERSONNEL COMPENSATION,"","KAREM,ROBERT S",01/01/12,01/31/12,SENIOR POLICY ADVISOR,-650.00,2012,"","","","KAREM,ROBERT S"
,OFFICE OF THE MAJORITY LEADER,2012Q1,PERSONNEL COMPENSATION,"","KAREM,ROBERT S",01/01/12,03/31/12,SENIOR POLICY ADVISOR,"29,250.00",2012,"","","","KAREM,ROBERT S"
,OFFICE OF THE MAJORITY LEADER,2012Q1,PERSONNEL COMPENSATION,"","KEECH,EMILY H",01/01/12,01/31/12,STAFF ASSISTANT,-138.89,2012,"","","","KEECH,EMILY H"
,OFFICE OF THE MAJORITY LEADER,2012Q1,PERSONNEL COMPENSATION,"","KEECH,EMILY H",01/01/12,03/31/12,STAFF ASSISTANT,"6,249.99",2012,"","","","KEECH,EMILY H"
,OFFICE OF THE MAJORITY LEADER,2012Q1,PERSONNEL COMPENSATION,"","LIRA,MATHEW L",01/01/12,01/31/12,DIRECTOR OF NEW MEDIA,-527.78,2012,"","","","LIRA,MATHEW L"
,OFFICE OF THE MAJORITY LEADER,2012Q1,PERSONNEL COMPENSATION,"","LIRA,MATHEW L",01/01/12,03/31/12,DIRECTOR OF NEW MEDIA,"23,750.01",2012,"","","","LIRA,MATHEW L"
,OFFICE OF THE MAJORITY LEADER,2012Q1,PERSONNEL COMPENSATION,"","MAHAN,ROGER A",01/01/12,01/31/12,POLICY ADVISOR,-152.78,2012,"","","","MAHAN,ROGER A"
,OFFICE OF THE MAJORITY LEADER,2012Q1,PERSONNEL COMPENSATION,"","MAHAN,ROGER A",01/01/12,03/31/12,POLICY ADVISOR,"11,875.01",2012,"","","","MAHAN,ROGER A"
,OFFICE OF THE MAJORITY LEADER,2012Q1,PERSONNEL COMPENSATION,"","NELSON, VALERIE S",01/01/12,01/31/12,DIR OF MEMBER SERVICES,-638.89,2012,"","","","NELSON, VALERIE S"
,OFFICE OF THE MAJORITY LEADER,2012Q1,PERSONNEL COMPENSATION,"","NELSON, VALERIE S",01/01/12,03/31/12,DIR OF MEMBER SERVICES,"28,749.99",2012,"","","","NELSON, VALERIE S"
,OFFICE OF THE MAJORITY LEADER,2012Q1,PERSONNEL COMPENSATION,"","NEVINS, KYLE W",01/01/12,01/31/12,DEPUTY CHIEF OF STAFF,-958.33,2012,"","","","NEVINS, KYLE W"
,OFFICE OF THE MAJORITY LEADER,2012Q1,PERSONNEL COMPENSATION,"","NEVINS, KYLE W",01/01/12,03/31/12,DEPUTY CHIEF OF STAFF,"43,125.00",2012,"","","","NEVINS, KYLE W"
,OFFICE OF THE MAJORITY LEADER,2012Q1,PERSONNEL COMPENSATION,"","PATRICK,BRIAN C",01/01/12,01/31/12,STRATEGIC COMMUNICATIONS,-375.00,2012,"","","","PATRICK,BRIAN C"
,OFFICE OF THE MAJORITY LEADER,2012Q1,PERSONNEL COMPENSATION,"","PATRICK,BRIAN C",01/01/12,03/31/12,STRATEGIC COMMUNICATIONS,"16,875.00",2012,"","","","PATRICK,BRIAN C"
,OFFICE OF THE MAJORITY LEADER,2012Q1,PERSONNEL COMPENSATION,"","RODRIGUERA JR,SERGIO G",01/01/12,01/31/12,SPEECH WRITER,-305.56,2012,"","","","RODRIGUERA JR,SERGIO G"
,OFFICE OF THE MAJORITY LEADER,2012Q1,PERSONNEL COMPENSATION,"","RODRIGUERA JR,SERGIO G",01/01/12,03/31/12,SPEECH WRITER,"13,749.99",2012,"","","","RODRIGUERA JR,SERGIO G"
,OFFICE OF THE MAJORITY LEADER,2012Q1,PERSONNEL COMPENSATION,"","STOMBRES, STEVEN C",01/01/12,01/31/12,CHIEF OF STAFF,-958.33,2012,"","","","STOMBRES, STEVEN C"
,OFFICE OF THE MAJORITY LEADER,2012Q1,PERSONNEL COMPENSATION,"","STOMBRES, STEVEN C",01/01/12,03/31/12,CHIEF OF STAFF,"43,125.00",2012,"","","","STOMBRES, STEVEN C"
,OFFICE OF THE MAJORITY LEADER,2012Q1,PERSONNEL COMPENSATION,"","STRAUS,JESSICA",01/01/12,01/31/12,ASSISTANT PRESS SECRETARY,-272.22,2012,"","","","STRAUS,JESSICA"
,OFFICE OF THE MAJORITY LEADER,2012Q1,PERSONNEL COMPENSATION,"","STRAUS,JESSICA",01/01/12,03/31/12,ASSISTANT PRESS SECRETARY,"12,249.99",2012,"","","","STRAUS,JESSICA"
,OFFICE OF THE MAJORITY LEADER,2012Q1,PERSONNEL COMPENSATION,"","TUELL,JAMES A",01/01/12,01/31/12,ASST TO THE CHIEF OF STAFF,-173.61,2012,"","","","TUELL,JAMES A"
,OFFICE OF THE MAJORITY LEADER,2012Q1,PERSONNEL COMPENSATION,"","TUELL,JAMES A",01/01/12,03/31/12,ASST TO THE CHIEF OF STAFF,"7,812.51",2012,"","","","TUELL,JAMES A"
,OFFICE OF THE MAJORITY LEADER,2012Q1,PERSONNEL COMPENSATION,"","VIESON, CHRISTOPHER W",01/01/12,01/31/12,DEPUTY DIRECTOR OF FLOOR OPERA,-472.22,2012,"","","","VIESON, CHRISTOPHER W"
,OFFICE OF THE MAJORITY LEADER,2012Q1,PERSONNEL COMPENSATION,"","VIESON, CHRISTOPHER W",01/01/12,03/31/12,DEPUTY DIRECTOR OF FLOOR OPERA,"21,249.99",2012,"","","","VIESON, CHRISTOPHER W"
,OFFICE OF THE MAJORITY LEADER,2012Q1,PERSONNEL COMPENSATION,"","WILLIAMS, KELLY K",01/01/12,01/31/12,FINANCIAL ADMINISTRATOR,-33.33,2012,"","","","WILLIAMS, KELLY K"
,OFFICE OF THE MAJORITY LEADER,2012Q1,PERSONNEL COMPENSATION,"","WILLIAMS, KELLY K",01/01/12,03/31/12,FINANCIAL ADMINISTRATOR,"5,666.66",2012,"","","","WILLIAMS, KELLY K"
,OFFICE OF THE MAJORITY LEADER,2012Q1,PERSONNEL COMPENSATION,"","ZACKON,MATTHEW R",01/01/12,01/31/12,SPECIAL ASSISTANT,-138.89,2012,"","","","ZACKON,MATTHEW R"
,OFFICE OF THE MAJORITY LEADER,2012Q1,PERSONNEL COMPENSATION,"","ZACKON,MATTHEW R",01/01/12,03/31/12,SPECIAL ASSISTANT,"6,249.99",2012,"","","","ZACKON,MATTHEW R"
,OFFICE OF THE MAJORITY LEADER,2012Q1,TRAVEL,02-10,"CUMMINGS, TIMOTHY P",01/06/12,01/25/12,PRIVATE AUTO MILEAGE,7.07,2012,AP,Accounts payable,00374844,"CUMMINGS, TIMOTHY P"
,OFFICE OF THE MAJORITY LEADER,2012Q1,TRAVEL,03-08,"TUELL,JAMES A",01/25/12,01/25/12,PRIVATE AUTO MILEAGE,7.07,2012,AP,Accounts payable,00395804,"TUELL,JAMES A"
,OFFICE OF THE MAJORITY LEADER,2012Q1,TRAVEL,03-08,"KEECH, EMILY H",01/24/12,02/16/12,PRIVATE AUTO MILEAGE,76.76,2012,AP,Accounts payable,00395815,"KEECH, EMILY H"
,OFFICE OF THE MAJORITY LEADER,2012Q1,TRAVEL,03-08,"FERENCE, MICHAEL J",01/31/12,02/15/12,TAXI/PARKING/TOLLS,101.00,2012,AP,Accounts payable,00395817,"FERENCE, MICHAEL J"
,OFFICE OF THE MAJORITY LEADER,2012Q1,TRAVEL,03-16,"FERENCE, MICHAEL J",02/12/12,02/13/12,COMMERCIAL TRANSPORTATION,339.00,2012,AP,Accounts payable,00401746,"FERENCE, MICHAEL J"
,OFFICE OF THE MAJORITY LEADER,2012Q1,TRAVEL,03-16,"FERENCE, MICHAEL J",02/12/12,02/13/12,TAXI/PARKING/TOLLS,13.36,2012,AP,Accounts payable,00401747,"FERENCE, MICHAEL J"
,OFFICE OF THE MAJORITY LEADER,2012Q1,TRAVEL,03-30,"KEECH, EMILY H",02/27/12,03/21/12,PRIVATE AUTO MILEAGE,68.68,2012,AP,Accounts payable,00413360,"KEECH, EMILY H"
,OFFICE OF THE MAJORITY LEADER,2012Q1,TRAVEL,03-30,"CUMMINGS, TIMOTHY P",02/27/12,03/22/12,PRIVATE AUTO MILEAGE,11.11,2012,AP,Accounts payable,00413362,"CUMMINGS, TIMOTHY P"
,OFFICE OF THE MAJORITY LEADER,2012Q1,"RENT, COMMUNICATION, UTILITIES",02-13,FEDERAL EXPRESS CORP,02/06/12,02/06/12,POSTAGE / COURIER / BOX RENTAL,40.44,2012,AP,Accounts payable,00376470,FEDERAL EXPRESS CORP
,OFFICE OF THE MAJORITY LEADER,2012Q1,"RENT, COMMUNICATION, UTILITIES",02-15,CITIBANK P CARD,12/29/11,01/28/12,TELECOMSRV/EQ/TOLL CHARGE,25.00,2012,AP,Accounts payable,00378659,CITIBANK P CARD
,OFFICE OF THE MAJORITY LEADER,2012Q1,"RENT, COMMUNICATION, UTILITIES",02-15,CITIBANK P CARD,12/29/11,01/28/12,UTILITIES,99.00,2012,AP,Accounts payable,00378659,CITIBANK P CARD
,OFFICE OF THE MAJORITY LEADER,2012Q1,"RENT, COMMUNICATION, UTILITIES",02-17,FEDERAL EXPRESS CORP,01/04/12,01/04/12,POSTAGE / COURIER / BOX RENTAL,6.15,2012,AP,Accounts payable,00384630,FEDERAL EXPRESS CORP
,OFFICE OF THE MAJORITY LEADER,2012Q1,"RENT, COMMUNICATION, UTILITIES",02-17,FEDERAL EXPRESS CORP,01/06/12,01/06/12,POSTAGE / COURIER / BOX RENTAL,49.89,2012,AP,Accounts payable,00384630,FEDERAL EXPRESS CORP
,OFFICE OF THE MAJORITY LEADER,2012Q1,"RENT, COMMUNICATION, UTILITIES",02-23,FEDERAL EXPRESS CORP,02/13/12,02/13/12,POSTAGE / COURIER / BOX RENTAL,6.33,2012,AP,Accounts payable,00386041,FEDERAL EXPRESS CORP
,OFFICE OF THE MAJORITY LEADER,2012Q1,"RENT, COMMUNICATION, UTILITIES",03-16,CAPITOL PROMPTING SERVICE INC,03/04/12,03/04/12,EQUIP RENTAL (EFF 1/3/03),825.00,2012,AP,Accounts payable,00401745,CAPITOL PROMPTING SERVICE INC
,OFFICE OF THE MAJORITY LEADER,2012Q1,PRINTING AND REPRODUCTION,01-26,"",01/01/12,01/31/12,PHOTOGRAPHIC (TRANSFER),51.50,2012,GL,General ledger,PIX0016210,""
,OFFICE OF THE MAJORITY LEADER,2012Q1,PRINTING AND REPRODUCTION,02-15,CITIBANK P CARD,12/29/11,01/28/12,ADVERTISEMENTS,29.99,2012,AP,Accounts payable,00378659,CITIBANK P CARD
,OFFICE OF THE MAJORITY LEADER,2012Q1,PRINTING AND REPRODUCTION,02-24,"",02/01/12,02/29/12,PHOTOGRAPHIC (TRANSFER),14.40,2012,GL,General ledger,PIX0016958,""
,OFFICE OF THE MAJORITY LEADER,2012Q1,PRINTING AND REPRODUCTION,03-15,CITIBANK P CARD,01/29/12,02/28/12,ADVERTISEMENTS,47.99,2012,AP,Accounts payable,00400841,CITIBANK P CARD
,OFFICE OF THE MAJORITY LEADER,2012Q1,PRINTING AND REPRODUCTION,03-29,"",03/01/12,03/31/12,PHOTOGRAPHIC (TRANSFER),39.70,2012,GL,General ledger,PIX0018025,""
,OFFICE OF THE MAJORITY LEADER,2012Q1,OTHER SERVICES,02-15,CITIBANK P CARD,12/29/11,01/28/12,NON-TECHNOLOGY SERVICE CONTR,179.00,2012,AP,Accounts payable,00378659,CITIBANK P CARD
,OFFICE OF THE MAJORITY LEADER,2012Q1,OTHER SERVICES,02-15,CITIBANK P CARD,12/29/11,01/28/12,MISCELLANEOUS OTHER SERVICES,49.99,2012,AP,Accounts payable,00378659,CITIBANK P CARD
,OFFICE OF THE MAJORITY LEADER,2012Q1,OTHER SERVICES,03-15,CITIBANK P CARD,01/29/12,02/28/12,NON-TECHNOLOGY SERVICE CONTR,180.12,2012,AP,Accounts payable,00400841,CITIBANK P CARD
,OFFICE OF THE MAJORITY LEADER,2012Q1,SUPPLIES AND MATERIALS,02-10,HIGHLAND ESTATES COFFEE,01/18/12,01/18/12,FOOD & BEVERAGE,759.30,2012,AP,Accounts payable,00374799,HIGHLAND ESTATES COFFEE
,OFFICE OF THE MAJORITY LEADER,2012Q1,SUPPLIES AND MATERIALS,02-15,CITIBANK P CARD,12/29/11,01/28/12,FOOD & BEVERAGE,884.31,2012,AP,Accounts payable,00378659,CITIBANK P CARD
,OFFICE OF THE MAJORITY LEADER,2012Q1,SUPPLIES AND MATERIALS,02-15,CITIBANK P CARD,12/29/11,01/28/12,HABITATION EXPENSE,180.00,2012,AP,Accounts payable,00378659,CITIBANK P CARD
,OFFICE OF THE MAJORITY LEADER,2012Q1,SUPPLIES AND MATERIALS,02-17,"NATIONAL JOURNAL GROUP, INC",01/18/12,01/17/13,PUBLICATIONS/REFERENCE MAT'L,"2,299.00",2012,AP,Accounts payable,00376705,"NATIONAL JOURNAL GROUP, INC"
,OFFICE OF THE MAJORITY LEADER,2012Q1,SUPPLIES AND MATERIALS,03-08,HIGHLAND ESTATES COFFEE,02/14/12,02/14/12,FOOD & BEVERAGE,202.80,2012,AP,Accounts payable,00395811,HIGHLAND ESTATES COFFEE
,OFFICE OF THE MAJORITY LEADER,2012Q1,SUPPLIES AND MATERIALS,03-15,CITIBANK P CARD,01/29/12,02/28/12,FOOD & BEVERAGE,"1,109.91",2012,AP,Accounts payable,00400841,CITIBANK P CARD
,OFFICE OF THE MAJORITY LEADER,2012Q1,SUPPLIES AND MATERIALS,03-15,CITIBANK P CARD,01/29/12,02/28/12,PUBLICATIONS/REFERENCE MAT'L,67.05,2012,AP,Accounts payable,00400841,CITIBANK P CARD
,OFFICE OF THE MAJORITY LEADER,2012Q1,SUPPLIES AND MATERIALS,03-15,CITIBANK P CARD,01/29/12,02/28/12,MISC. SUPPLIES & MATERIALS,27.54,2012,AP,Accounts payable,00400841,CITIBANK P CARD
,OFFICE OF THE MAJORITY LEADER,2012Q1,SUPPLIES AND MATERIALS,03-16,CQ ROLL CALL GROUP,01/01/12,12/31/12,PUBLICATIONS/REFERENCE MAT'L,"40,100.00",2012,AP,Accounts payable,00376704,CQ ROLL CALL GROUP
,OFFICE OF THE MAJORITY LEADER,2012Q1,SUPPLIES AND MATERIALS,03-29,THOMSON REUTERS,02/17/12,02/17/12,PUBLICATIONS/REFERENCE MAT'L,143.95,2012,AP,Accounts payable,00413342,THOMSON REUTERS
,OFFICE OF THE MAJORITY LEADER,2012Q1,SUPPLIES AND MATERIALS,03-30,HIGHLAND ESTATES COFFEE,03/19/12,03/19/12,FOOD & BEVERAGE,506.90,2012,AP,Accounts payable,00413363,HIGHLAND ESTATES COFFEE
,OFFICE OF THE MAJORITY LEADER,2012Q1,SUPPLIES AND MATERIALS,03-30,HIGHLAND ESTATES COFFEE,02/15/12,02/15/12,FOOD & BEVERAGE,202.80,2012,AP,Accounts payable,00413366,HIGHLAND ESTATES COFFEE
,OFFICE OF THE MAJORITY LEADER,2012Q1,SUPPLIES AND MATERIALS,03-30,HIGHLAND ESTATES COFFEE,03/02/12,03/02/12,FOOD & BEVERAGE,220.70,2012,AP,Accounts payable,00413367,HIGHLAND ESTATES COFFEE
,OFFICE OF THE MINORITY LEADER,2012Q1,FRANKED MAIL,02-24,UNITED STATES POSTAL SERVICE,01/03/12,01/31/12,FRANKED MAIL,68.23,2012,AP,Accounts payable,00388867,UNITED STATES POSTAL SERVICE
,OFFICE OF THE MINORITY LEADER,2012Q1,FRANKED MAIL,03-20,UNITED STATES POSTAL SERVICE,02/01/12,02/29/12,FRANKED MAIL,35.34,2012,AP,Accounts payable,00407785,UNITED STATES POSTAL SERVICE
,OFFICE OF THE MINORITY LEADER,2012Q1,PERSONNEL COMPENSATION,"","ABOUCHAR, KEITH S",01/01/12,01/31/12,SENIOR POLICY ADVISOR,-726.67,2012,"","","","ABOUCHAR, KEITH S"
,OFFICE OF THE MINORITY LEADER,2012Q1,PERSONNEL COMPENSATION,"","ABOUCHAR, KEITH S",01/01/12,03/31/12,SENIOR POLICY ADVISOR,"32,700.00",2012,"","","","ABOUCHAR, KEITH S"
,OFFICE OF THE MINORITY LEADER,2012Q1,PERSONNEL COMPENSATION,"","BARRY,MARY K",01/01/12,01/31/12,DEPUTY DIRECTOR OF ADVANCE,-361.11,2012,"","","","BARRY,MARY K"
,OFFICE OF THE MINORITY LEADER,2012Q1,PERSONNEL COMPENSATION,"","BARRY,MARY K",01/01/12,03/31/12,DEPUTY DIRECTOR OF ADVANCE,"16,250.01",2012,"","","","BARRY,MARY K"
,OFFICE OF THE MINORITY LEADER,2012Q1,PERSONNEL COMPENSATION,"","BLOOM, MICHAEL T",01/01/12,01/31/12,DEPUTY POLICY DIRECTOR,-429.79,2012,"","","","BLOOM, MICHAEL T"
,OFFICE OF THE MINORITY LEADER,2012Q1,PERSONNEL COMPENSATION,"","BLOOM, MICHAEL T",01/01/12,03/31/12,DEPUTY POLICY DIRECTOR,"19,340.76",2012,"","","","BLOOM, MICHAEL T"
,OFFICE OF THE MINORITY LEADER,2012Q1,PERSONNEL COMPENSATION,"","BURNES, AUSTIN W",01/01/12,01/31/12,DIR. OF LEGISLATIVE OPERATIONS,-655.56,2012,"","","","BURNES, AUSTIN W"
,OFFICE OF THE MINORITY LEADER,2012Q1,PERSONNEL COMPENSATION,"","BURNES, AUSTIN W",01/01/12,03/31/12,DIR. OF LEGISLATIVE OPERATIONS,"29,700.00",2012,"","","","BURNES, AUSTIN W"
,OFFICE OF THE MINORITY LEADER,2012Q1,PERSONNEL COMPENSATION,"","CAPRON, MARGARET W",01/01/12,01/31/12,SENIOR ADV POLICY & COMM,-709.43,2012,"","","","CAPRON, MARGARET W"
,OFFICE OF THE MINORITY LEADER,2012Q1,PERSONNEL COMPENSATION,"","CAPRON, MARGARET W",01/01/12,03/31/12,SENIOR ADV POLICY & COMM,"31,924.26",2012,"","","","CAPRON, MARGARET W"
,OFFICE OF THE MINORITY LEADER,2012Q1,PERSONNEL COMPENSATION,"","CASHMAN,MARY D",01/01/12,01/31/12,ASST TO THE CHIEF OF STAFF,-400.00,2012,"","","","CASHMAN,MARY D"
,OFFICE OF THE MINORITY LEADER,2012Q1,PERSONNEL COMPENSATION,"","CASHMAN,MARY D",01/01/12,03/31/12,ASST TO THE CHIEF OF STAFF,"18,000.00",2012,"","","","CASHMAN,MARY D"
,OFFICE OF THE MINORITY LEADER,2012Q1,PERSONNEL COMPENSATION,"","CHARVILLE,BRIDGET F",01/01/12,01/31/12,DIRECTOR OF PROTOCOL,-654.82,2012,"","","","CHARVILLE,BRIDGET F"
,OFFICE OF THE MINORITY LEADER,2012Q1,PERSONNEL COMPENSATION,"","CHARVILLE,BRIDGET F",01/01/12,03/31/12,DIRECTOR OF PROTOCOL,"29,466.75",2012,"","","","CHARVILLE,BRIDGET F"
,OFFICE OF THE MINORITY LEADER,2012Q1,PERSONNEL COMPENSATION,"","CHERRY,STEPHANIE",01/01/12,01/31/12,PRESS ADVISOR,-371.38,2012,"","","","CHERRY,STEPHANIE"
,OFFICE OF THE MINORITY LEADER,2012Q1,PERSONNEL COMPENSATION,"","CHERRY,STEPHANIE",01/01/12,03/31/12,PRESS ADVISOR,"16,712.25",2012,"","","","CHERRY,STEPHANIE"
,OFFICE OF THE MINORITY LEADER,2012Q1,PERSONNEL COMPENSATION,"","COVEY-BRANDT, ALEXIS",01/01/12,01/31/12,FLOOR DIRECTOR,-951.67,2012,"","","","COVEY-BRANDT, ALEXIS"
,OFFICE OF THE MINORITY LEADER,2012Q1,PERSONNEL COMPENSATION,"","COVEY-BRANDT, ALEXIS",01/01/12,03/31/12,FLOOR DIRECTOR,"42,825.00",2012,"","","","COVEY-BRANDT, ALEXIS"
,OFFICE OF THE MINORITY LEADER,2012Q1,PERSONNEL COMPENSATION,"","DAY,TAMIKA K",01/01/12,01/31/12,SR STAFF ASST SYS ADMIN,-277.78,2012,"","","","DAY,TAMIKA K"
,OFFICE OF THE MINORITY LEADER,2012Q1,PERSONNEL COMPENSATION,"","DAY,TAMIKA K",01/01/12,03/31/12,SR STAFF ASST SYS ADMIN,"12,500.01",2012,"","","","DAY,TAMIKA K"
,OFFICE OF THE MINORITY LEADER,2012Q1,PERSONNEL COMPENSATION,"","DEGRAFF, KENNETH B",01/01/12,01/31/12,SENIOR POLICY ADVISOR,-638.89,2012,"","","","DEGRAFF, KENNETH B"
,OFFICE OF THE MINORITY LEADER,2012Q1,PERSONNEL COMPENSATION,"","DEGRAFF, KENNETH B",01/01/12,03/31/12,SENIOR POLICY ADVISOR,"28,749.99",2012,"","","","DEGRAFF, KENNETH B"
,OFFICE OF THE MINORITY LEADER,2012Q1,PERSONNEL COMPENSATION,"","DEVLIN, PATRICK J",01/01/12,01/31/12,COMMUNICATIONS DIRECTOR,-694.44,2012,"","","","DEVLIN, PATRICK J"
,OFFICE OF THE MINORITY LEADER,2012Q1,PERSONNEL COMPENSATION,"","DEVLIN, PATRICK J",01/01/12,03/31/12,COMMUNICATIONS DIRECTOR,"31,250.01",2012,"","","","DEVLIN, PATRICK J"
,OFFICE OF THE MINORITY LEADER,2012Q1,PERSONNEL COMPENSATION,"","DEWHIRST, DIANE",01/01/12,01/31/12,SENIOR ADVISOR,-655.56,2012,"","","","DEWHIRST, DIANE"
,OFFICE OF THE MINORITY LEADER,2012Q1,PERSONNEL COMPENSATION,"","DEWHIRST, DIANE",01/01/12,03/31/12,SENIOR ADVISOR,"29,499.99",2012,"","","","DEWHIRST, DIANE"
,OFFICE OF THE MINORITY LEADER,2012Q1,PERSONNEL COMPENSATION,"","ELLISON,MATTHEW B",01/01/12,01/31/12,RESEARCH ASSISTANT,-166.67,2012,"","","","ELLISON,MATTHEW B"
,OFFICE OF THE MINORITY LEADER,2012Q1,PERSONNEL COMPENSATION,"","ELLISON,MATTHEW B",01/01/12,03/31/12,RESEARCH ASSISTANT,"7,500.00",2012,"","","","ELLISON,MATTHEW B"
,OFFICE OF THE MINORITY LEADER,2012Q1,PERSONNEL COMPENSATION,"","ELSHAMI,NADEEM",01/01/12,01/31/12,COMM DIR/SENIOR ADVISOR (STAT),-958.33,2012,"","","","ELSHAMI,NADEEM"
,OFFICE OF THE MINORITY LEADER,2012Q1,PERSONNEL COMPENSATION,"","ELSHAMI,NADEEM",01/01/12,03/31/12,COMM DIR/SENIOR ADVISOR (STAT),"43,125.00",2012,"","","","ELSHAMI,NADEEM"
,OFFICE OF THE MINORITY LEADER,2012Q1,PERSONNEL COMPENSATION,"","FISCHER JR, ROBERT V",01/01/12,01/31/12,ASST FLOOR CHIEF,-739.77,2012,"","","","FISCHER JR, ROBERT V"
,OFFICE OF THE MINORITY LEADER,2012Q1,PERSONNEL COMPENSATION,"","FISCHER JR, ROBERT V",01/01/12,03/31/12,ASST FLOOR CHIEF,"33,289.50",2012,"","","","FISCHER JR, ROBERT V"
,OFFICE OF THE MINORITY LEADER,2012Q1,PERSONNEL COMPENSATION,"","GEORGE,EVANGELINE M",01/01/12,01/31/12,PRESS ADVISOR,-294.44,2012,"","","","GEORGE,EVANGELINE M"
,OFFICE OF THE MINORITY LEADER,2012Q1,PERSONNEL COMPENSATION,"","GEORGE,EVANGELINE M",01/01/12,03/31/12,PRESS ADVISOR,"13,250.01",2012,"","","","GEORGE,EVANGELINE M"
,OFFICE OF THE MINORITY LEADER,2012Q1,PERSONNEL COMPENSATION,"","GREENER, APRIL L",01/01/12,01/31/12,RESEARCH DIRECTOR,-472.22,2012,"","","","GREENER, APRIL L"
,OFFICE OF THE MINORITY LEADER,2012Q1,PERSONNEL COMPENSATION,"","GREENER, APRIL L",01/01/12,03/31/12,RESEARCH DIRECTOR,"21,249.99",2012,"","","","GREENER, APRIL L"
,OFFICE OF THE MINORITY LEADER,2012Q1,PERSONNEL COMPENSATION,"","HAMMILL, ANDREW T",01/01/12,01/31/12,PRESS SEC & DEPUTY COMM DIR,-910.40,2012,"","","","HAMMILL, ANDREW T"
,OFFICE OF THE MINORITY LEADER,2012Q1,PERSONNEL COMPENSATION,"","HAMMILL, ANDREW T",01/01/12,03/31/12,PRESS SEC & DEPUTY COMM DIR,"40,968.00",2012,"","","","HAMMILL, ANDREW T"
,OFFICE OF THE MINORITY LEADER,2012Q1,PERSONNEL COMPENSATION,"","HARTZ, JERRY",01/01/12,01/31/12,DIRECTOR OF FLOOR OPERATIONS,-958.33,2012,"","","","HARTZ, JERRY"
,OFFICE OF THE MINORITY LEADER,2012Q1,PERSONNEL COMPENSATION,"","HARTZ, JERRY",01/01/12,03/31/12,DIRECTOR OF FLOOR OPERATIONS,"43,125.00",2012,"","","","HARTZ, JERRY"
,OFFICE OF THE MINORITY LEADER,2012Q1,PERSONNEL COMPENSATION,"","HAYNES JR, WILFRED J",01/01/12,01/31/12,IT DIRECTOR,-545.12,2012,"","","","HAYNES JR, WILFRED J"
,OFFICE OF THE MINORITY LEADER,2012Q1,PERSONNEL COMPENSATION,"","HAYNES JR, WILFRED J",01/01/12,03/31/12,IT DIRECTOR,"24,530.49",2012,"","","","HAYNES JR, WILFRED J"
,OFFICE OF THE MINORITY LEADER,2012Q1,PERSONNEL COMPENSATION,"","HUGHES,JOHN C",01/01/12,01/31/12,SENIOR POLICY ADVISOR,-715.56,2012,"","","","HUGHES,JOHN C"
,OFFICE OF THE MINORITY LEADER,2012Q1,PERSONNEL COMPENSATION,"","HUGHES,JOHN C",01/01/12,03/31/12,SENIOR POLICY ADVISOR,"32,199.99",2012,"","","","HUGHES,JOHN C"
,OFFICE OF THE MINORITY LEADER,2012Q1,PERSONNEL COMPENSATION,"","IVESTER, WREN",01/01/12,01/31/12,ASST FLOOR CHIEF,-666.10,2012,"","","","IVESTER, WREN"
,OFFICE OF THE MINORITY LEADER,2012Q1,PERSONNEL COMPENSATION,"","IVESTER, WREN",01/01/12,03/31/12,ASST FLOOR CHIEF,"29,974.50",2012,"","","","IVESTER, WREN"
,OFFICE OF THE MINORITY LEADER,2012Q1,PERSONNEL COMPENSATION,"","JUDGE, KRISTINE A",01/01/12,01/31/12,SENIOR ADVISOR/POLICY COMM,-709.43,2012,"","","","JUDGE, KRISTINE A"
,OFFICE OF THE MINORITY LEADER,2012Q1,PERSONNEL COMPENSATION,"","JUDGE, KRISTINE A",01/01/12,03/31/12,SENIOR ADVISOR/POLICY COMM,"31,924.26",2012,"","","","JUDGE, KRISTINE A"
,OFFICE OF THE MINORITY LEADER,2012Q1,PERSONNEL COMPENSATION,"","KEITA,KAMILAH Z",01/01/12,01/31/12,DEPUTY INFOMATION TECH. DIRECT,-495.18,2012,"","","","KEITA,KAMILAH Z"
,OFFICE OF THE MINORITY LEADER,2012Q1,PERSONNEL COMPENSATION,"","KEITA,KAMILAH Z",01/01/12,03/31/12,DEPUTY INFOMATION TECH. DIRECT,"22,283.01",2012,"","","","KEITA,KAMILAH Z"
,OFFICE OF THE MINORITY LEADER,2012Q1,PERSONNEL COMPENSATION,"","KING,RYAN M",01/01/12,01/31/12,PRESS ASSISTANT,-183.33,2012,"","","","KING,RYAN M"
,OFFICE OF THE MINORITY LEADER,2012Q1,PERSONNEL COMPENSATION,"","KING,RYAN M",01/01/12,03/31/12,PRESS ASSISTANT,"8,250.00",2012,"","","","KING,RYAN M"
,OFFICE OF THE MINORITY LEADER,2012Q1,PERSONNEL COMPENSATION,"","KING,RYAN M",02/01/12,02/29/12,PRESS ASSISTANT (OVERTIME),"1,064.95",2012,"","","","KING,RYAN M"
,OFFICE OF THE MINORITY LEADER,2012Q1,PERSONNEL COMPENSATION,"","KUNDANIS, GEORGE",01/01/12,01/31/12,DEPUTY CHIEF OF STAFF,-958.33,2012,"","","","KUNDANIS, GEORGE"
,OFFICE OF THE MINORITY LEADER,2012Q1,PERSONNEL COMPENSATION,"","KUNDANIS, GEORGE",01/01/12,03/31/12,DEPUTY CHIEF OF STAFF,"43,125.00",2012,"","","","KUNDANIS, GEORGE"
,OFFICE OF THE MINORITY LEADER,2012Q1,PERSONNEL COMPENSATION,"","LAWRENCE, JOHN A",01/01/12,01/31/12,CHIEF OF STAFF,-958.33,2012,"","","","LAWRENCE, JOHN A"
,OFFICE OF THE MINORITY LEADER,2012Q1,PERSONNEL COMPENSATION,"","LAWRENCE, JOHN A",01/01/12,03/31/12,CHIEF OF STAFF,"43,125.00",2012,"","","","LAWRENCE, JOHN A"
,OFFICE OF THE MINORITY LEADER,2012Q1,PERSONNEL COMPENSATION,"","LIZARRAGA, JAIME E",01/01/12,01/31/12,SR ADV & DIR OF MEMBER SVC,-886.79,2012,"","","","LIZARRAGA, JAIME E"
,OFFICE OF THE MINORITY LEADER,2012Q1,PERSONNEL COMPENSATION,"","LIZARRAGA, JAIME E",01/01/12,03/31/12,SR ADV & DIR OF MEMBER SVC,"39,905.49",2012,"","","","LIZARRAGA, JAIME E"
,OFFICE OF THE MINORITY LEADER,2012Q1,PERSONNEL COMPENSATION,"","LONG,MICHAEL G",01/01/12,01/31/12,DEPUTY DIRECTOR OF MEMBER SVCS,-416.67,2012,"","","","LONG,MICHAEL G"
,OFFICE OF THE MINORITY LEADER,2012Q1,PERSONNEL COMPENSATION,"","LONG,MICHAEL G",01/01/12,03/31/12,DEPUTY DIRECTOR OF MEMBER SVCS,"18,750.00",2012,"","","","LONG,MICHAEL G"
,OFFICE OF THE MINORITY LEADER,2012Q1,PERSONNEL COMPENSATION,"","MANGRUM, PEARL J",01/01/12,01/31/12,FINANCIAL ADMINISTRATOR,-286.11,2012,"","","","MANGRUM, PEARL J"
,OFFICE OF THE MINORITY LEADER,2012Q1,PERSONNEL COMPENSATION,"","MANGRUM, PEARL J",01/01/12,03/31/12,FINANCIAL ADMINISTRATOR,"12,875.01",2012,"","","","MANGRUM, PEARL J"
,OFFICE OF THE MINORITY LEADER,2012Q1,PERSONNEL COMPENSATION,"","MEDLIN,MELINDA L",01/01/12,01/31/12,DIRECTOR OF SCHEDULING,-796.60,2012,"","","","MEDLIN,MELINDA L"
,OFFICE OF THE MINORITY LEADER,2012Q1,PERSONNEL COMPENSATION,"","MEDLIN,MELINDA L",01/01/12,03/31/12,DIRECTOR OF SCHEDULING,"35,847.00",2012,"","","","MEDLIN,MELINDA L"
,OFFICE OF THE MINORITY LEADER,2012Q1,PERSONNEL COMPENSATION,"","MELTZER,RICHARD",01/01/12,01/31/12,POLICY ADVISOR,-958.33,2012,"","","","MELTZER,RICHARD"
,OFFICE OF THE MINORITY LEADER,2012Q1,PERSONNEL COMPENSATION,"","MELTZER,RICHARD",01/01/12,03/31/12,POLICY ADVISOR,"43,125.00",2012,"","","","MELTZER,RICHARD"
,OFFICE OF THE MINORITY LEADER,2012Q1,PERSONNEL COMPENSATION,"","MERRITT,TIMOTHY",01/01/12,01/31/12,DEPUTY DIRECTOR OF SCHEDULING,-333.33,2012,"","","","MERRITT,TIMOTHY"
,OFFICE OF THE MINORITY LEADER,2012Q1,PERSONNEL COMPENSATION,"","MERRITT,TIMOTHY",01/01/12,03/31/12,DEPUTY DIRECTOR OF SCHEDULING,"15,000.00",2012,"","","","MERRITT,TIMOTHY"
,OFFICE OF THE MINORITY LEADER,2012Q1,PERSONNEL COMPENSATION,"","MERZ, JULIE E",01/01/12,01/31/12,DIR OF MEMBER SERVICES,-555.56,2012,"","","","MERZ, JULIE E"
,OFFICE OF THE MINORITY LEADER,2012Q1,PERSONNEL COMPENSATION,"","MERZ, JULIE E",01/01/12,03/31/12,DIR OF MEMBER SERVICES,"24,999.99",2012,"","","","MERZ, JULIE E"
,OFFICE OF THE MINORITY LEADER,2012Q1,PERSONNEL COMPENSATION,"","MILLER,AMY M",01/01/12,01/31/12,SENIOR ADVISOR,-555.56,2012,"","","","MILLER,AMY M"
,OFFICE OF THE MINORITY LEADER,2012Q1,PERSONNEL COMPENSATION,"","MILLER,AMY M",01/01/12,03/31/12,SENIOR ADVISOR,"24,999.99",2012,"","","","MILLER,AMY M"
,OFFICE OF THE MINORITY LEADER,2012Q1,PERSONNEL COMPENSATION,"","NEWTON, KARINA L",01/01/12,01/31/12,DIRECTOR OF NEW MEDIA,-750.00,2012,"","","","NEWTON, KARINA L"
,OFFICE OF THE MINORITY LEADER,2012Q1,PERSONNEL COMPENSATION,"","NEWTON, KARINA L",01/01/12,03/31/12,DIRECTOR OF NEW MEDIA,"33,750.00",2012,"","","","NEWTON, KARINA L"
,OFFICE OF THE MINORITY LEADER,2012Q1,PERSONNEL COMPENSATION,"","O'NEILL, CATLIN W",02/01/12,03/31/12,CHIEF OF STAFF,"18,750.00",2012,"","","","O'NEILL, CATLIN W"
,OFFICE OF THE MINORITY LEADER,2012Q1,PERSONNEL COMPENSATION,"","PARKER, WYNDEE R",01/01/12,01/31/12,SENIOR POLICY ADVISOR,-958.33,2012,"","","","PARKER, WYNDEE R"
,OFFICE OF THE MINORITY LEADER,2012Q1,PERSONNEL COMPENSATION,"","PARKER, WYNDEE R",01/01/12,03/31/12,SENIOR POLICY ADVISOR,"43,125.00",2012,"","","","PARKER, WYNDEE R"
,OFFICE OF THE MINORITY LEADER,2012Q1,PERSONNEL COMPENSATION,"","PATTI,VERNA A",01/01/12,01/31/12,SPECIAL ASSISTANT,-66.67,2012,"","","","PATTI,VERNA A"
,OFFICE OF THE MINORITY LEADER,2012Q1,PERSONNEL COMPENSATION,"","PATTI,VERNA A",01/01/12,01/31/12,SPECIAL ASSISTANT,"1,000.00",2012,"","","","PATTI,VERNA A"
,OFFICE OF THE MINORITY LEADER,2012Q1,PERSONNEL COMPENSATION,"","PATTI,VERNA A",02/01/12,03/31/12,DISTRICT SCHEDULER,"2,000.00",2012,"","","","PATTI,VERNA A"
,OFFICE OF THE MINORITY LEADER,2012Q1,PERSONNEL COMPENSATION,"","PEPPER, LORI J",01/01/12,01/31/12,DEPUTY DIR. - FLOOR OPERATIONS,-694.44,2012,"","","","PEPPER, LORI J"
,OFFICE OF THE MINORITY LEADER,2012Q1,PERSONNEL COMPENSATION,"","PEPPER, LORI J",01/01/12,03/31/12,DEPUTY DIR. - FLOOR OPERATIONS,"31,250.01",2012,"","","","PEPPER, LORI J"
,OFFICE OF THE MINORITY LEADER,2012Q1,PERSONNEL COMPENSATION,"","POWELL,JONATHAN M",01/01/12,01/31/12,DEPUTY SPEECHWRITER,-444.44,2012,"","","","POWELL,JONATHAN M"
,OFFICE OF THE MINORITY LEADER,2012Q1,PERSONNEL COMPENSATION,"","POWELL,JONATHAN M",01/01/12,03/31/12,DEPUTY SPEECHWRITER,"20,000.01",2012,"","","","POWELL,JONATHAN M"
,OFFICE OF THE MINORITY LEADER,2012Q1,PERSONNEL COMPENSATION,"","PRICE, REVA B",01/01/12,01/31/12,ADVISOR TO THE LEADER,-709.43,2012,"","","","PRICE, REVA B"
,OFFICE OF THE MINORITY LEADER,2012Q1,PERSONNEL COMPENSATION,"","PRICE, REVA B",01/01/12,02/29/12,ADVISOR TO THE LEADER,"21,282.84",2012,"","","","PRICE, REVA B"
,OFFICE OF THE MINORITY LEADER,2012Q1,PERSONNEL COMPENSATION,"","PRICE, REVA B",03/01/12,03/31/12,OUTREACH DIRECTOR,"10,641.42",2012,"","","","PRICE, REVA B"
,OFFICE OF THE MINORITY LEADER,2012Q1,PERSONNEL COMPENSATION,"","PRIMUS, WENDELL E",01/01/12,01/31/12,SENIOR POLICY ADVISOR,-958.33,2012,"","","","PRIMUS, WENDELL E"
,OFFICE OF THE MINORITY LEADER,2012Q1,PERSONNEL COMPENSATION,"","PRIMUS, WENDELL E",01/01/12,03/31/12,SENIOR POLICY ADVISOR,"43,125.00",2012,"","","","PRIMUS, WENDELL E"
,OFFICE OF THE MINORITY LEADER,2012Q1,PERSONNEL COMPENSATION,"","REPKO,MARY F",01/01/12,01/31/12,SENIOR POLICY ADVISOR,-732.22,2012,"","","","REPKO,MARY F"
,OFFICE OF THE MINORITY LEADER,2012Q1,PERSONNEL COMPENSATION,"","REPKO,MARY F",01/01/12,03/31/12,SENIOR POLICY ADVISOR,"32,949.99",2012,"","","","REPKO,MARY F"
,OFFICE OF THE MINORITY LEADER,2012Q1,PERSONNEL COMPENSATION,"","ROLLAND,STACEY L",01/01/12,01/31/12,POLICY ADVISOR - TAX,-666.67,2012,"","","","ROLLAND,STACEY L"
,OFFICE OF THE MINORITY LEADER,2012Q1,PERSONNEL COMPENSATION,"","ROLLAND,STACEY L",01/01/12,03/31/12,POLICY ADVISOR - TAX,"30,000.00",2012,"","","","ROLLAND,STACEY L"
,OFFICE OF THE MINORITY LEADER,2012Q1,PERSONNEL COMPENSATION,"","ROMICK, BRIAN",01/01/12,01/31/12,MEMBER SERVICES DIRECTOR,-798.89,2012,"","","","ROMICK, BRIAN"
,OFFICE OF THE MINORITY LEADER,2012Q1,PERSONNEL COMPENSATION,"","ROMICK, BRIAN",01/01/12,03/31/12,MEMBER SERVICES DIRECTOR,"35,949.99",2012,"","","","ROMICK, BRIAN"
,OFFICE OF THE MINORITY LEADER,2012Q1,PERSONNEL COMPENSATION,"","SANCHEZ, CARLOS S",01/01/12,01/31/12,PRESS ADVISOR,-444.44,2012,"","","","SANCHEZ, CARLOS S"
,OFFICE OF THE MINORITY LEADER,2012Q1,PERSONNEL COMPENSATION,"","SANCHEZ, CARLOS S",01/01/12,03/31/12,PRESS ADVISOR,"20,000.01",2012,"","","","SANCHEZ, CARLOS S"
,OFFICE OF THE MINORITY LEADER,2012Q1,PERSONNEL COMPENSATION,"","SCHMIDT, AARON",01/01/12,01/31/12,POLICY ADVISOR,-500.00,2012,"","","","SCHMIDT, AARON"
,OFFICE OF THE MINORITY LEADER,2012Q1,PERSONNEL COMPENSATION,"","SCHMIDT, AARON",01/01/12,03/31/12,POLICY ADVISOR,"22,500.00",2012,"","","","SCHMIDT, AARON"
,OFFICE OF THE MINORITY LEADER,2012Q1,PERSONNEL COMPENSATION,"","SINGLETARY, BARVETTA",01/01/12,01/31/12,POLICY DIRECTOR,-738.89,2012,"","","","SINGLETARY, BARVETTA"
,OFFICE OF THE MINORITY LEADER,2012Q1,PERSONNEL COMPENSATION,"","SINGLETARY, BARVETTA",01/01/12,03/31/12,POLICY DIRECTOR,"33,249.99",2012,"","","","SINGLETARY, BARVETTA"
,OFFICE OF THE MINORITY LEADER,2012Q1,PERSONNEL COMPENSATION,"","SKEWES-COX,CHRISTINA J",01/01/12,01/31/12,OUTREACH MGR/SPEC ASST,-177.78,2012,"","","","SKEWES-COX,CHRISTINA J"
,OFFICE OF THE MINORITY LEADER,2012Q1,PERSONNEL COMPENSATION,"","SKEWES-COX,CHRISTINA J",01/19/12,01/31/12,OUTREACH MGR/SPEC ASST,"2,666.67",2012,"","","","SKEWES-COX,CHRISTINA J"
,OFFICE OF THE MINORITY LEADER,2012Q1,PERSONNEL COMPENSATION,"","SKEWES-COX,CHRISTINA J",02/01/12,03/31/12,ADVANCE DIRECTOR,"13,333.34",2012,"","","","SKEWES-COX,CHRISTINA J"
,OFFICE OF THE MINORITY LEADER,2012Q1,PERSONNEL COMPENSATION,"","STIVERS, JONATHAN",01/01/12,01/31/12,SENIOR ADVISOR,-777.78,2012,"","","","STIVERS, JONATHAN"
,OFFICE OF THE MINORITY LEADER,2012Q1,PERSONNEL COMPENSATION,"","STIVERS, JONATHAN",01/01/12,03/31/12,SENIOR ADVISOR,"35,000.01",2012,"","","","STIVERS, JONATHAN"
,OFFICE OF THE MINORITY LEADER,2012Q1,PERSONNEL COMPENSATION,"","SULLIVAN, BARRY K",01/01/12,01/31/12,CHIEF FLOOR SERVICE (MIN),-958.33,2012,"","","","SULLIVAN, BARRY K"
,OFFICE OF THE MINORITY LEADER,2012Q1,PERSONNEL COMPENSATION,"","SULLIVAN, BARRY K",01/01/12,03/31/12,CHIEF FLOOR SERVICE (MIN),"43,125.00",2012,"","","","SULLIVAN, BARRY K"
,OFFICE OF THE MINORITY LEADER,2012Q1,PERSONNEL COMPENSATION,"","SURGEON,BINA G",01/01/12,01/31/12,SPECIAL ASST TO THE LEADER,-388.89,2012,"","","","SURGEON,BINA G"
,OFFICE OF THE MINORITY LEADER,2012Q1,PERSONNEL COMPENSATION,"","SURGEON,BINA G",01/01/12,03/31/12,SPECIAL ASST TO THE LEADER,"17,499.99",2012,"","","","SURGEON,BINA G"
,OFFICE OF THE MINORITY LEADER,2012Q1,PERSONNEL COMPENSATION,"","TECKLENBURG, MICHAEL H",01/01/12,01/31/12,COUNSEL,-722.22,2012,"","","","TECKLENBURG, MICHAEL H"
,OFFICE OF THE MINORITY LEADER,2012Q1,PERSONNEL COMPENSATION,"","TECKLENBURG, MICHAEL H",01/01/12,03/31/12,COUNSEL,"32,499.99",2012,"","","","TECKLENBURG, MICHAEL H"
,OFFICE OF THE MINORITY LEADER,2012Q1,PERSONNEL COMPENSATION,"","UENG,STEPHANIE L",01/01/12,01/31/12,OUTREACH ASSISTANT,-276.26,2012,"","","","UENG,STEPHANIE L"
,OFFICE OF THE MINORITY LEADER,2012Q1,PERSONNEL COMPENSATION,"","UENG,STEPHANIE L",01/01/12,02/29/12,OUTREACH ASSISTANT,"8,287.66",2012,"","","","UENG,STEPHANIE L"
,OFFICE OF THE MINORITY LEADER,2012Q1,PERSONNEL COMPENSATION,"","UENG,STEPHANIE L",03/01/12,03/31/12,OUTREACH ADVISOR,"4,143.83",2012,"","","","UENG,STEPHANIE L"
,OFFICE OF THE MINORITY LEADER,2012Q1,PERSONNEL COMPENSATION,"","VEITCH, ALEXANDRA N",01/01/12,01/31/12,DIRECTOR OF SPEECHWRITING,-625.90,2012,"","","","VEITCH, ALEXANDRA N"
,OFFICE OF THE MINORITY LEADER,2012Q1,PERSONNEL COMPENSATION,"","VEITCH, ALEXANDRA N",01/01/12,03/31/12,DIRECTOR OF SPEECHWRITING,"28,165.50",2012,"","","","VEITCH, ALEXANDRA N"
,OFFICE OF THE MINORITY LEADER,2012Q1,PERSONNEL COMPENSATION,"","WATKINS, YELBERTON R",01/01/12,01/31/12,CHIEF OF STAFF,-916.67,2012,"","","","WATKINS, YELBERTON R"
,OFFICE OF THE MINORITY LEADER,2012Q1,PERSONNEL COMPENSATION,"","WATKINS, YELBERTON R",01/01/12,03/31/12,CHIEF OF STAFF,"41,250.00",2012,"","","","WATKINS, YELBERTON R"
,OFFICE OF THE MINORITY LEADER,2012Q1,PERSONNEL COMPENSATION,"","WEST,JULIUS L",01/01/12,01/31/12,DISTRICT ASSISTANT,-250.00,2012,"","","","WEST,JULIUS L"
,OFFICE OF THE MINORITY LEADER,2012Q1,PERSONNEL COMPENSATION,"","WEST,JULIUS L",01/01/12,03/31/12,DISTRICT ASSISTANT,"11,250.00",2012,"","","","WEST,JULIUS L"
,OFFICE OF THE MINORITY LEADER,2012Q1,PERSONNEL COMPENSATION,"","WILEDEN,LYDIA",01/01/12,01/31/12,STAFF ASSISTANT,-183.33,2012,"","","","WILEDEN,LYDIA"
,OFFICE OF THE MINORITY LEADER,2012Q1,PERSONNEL COMPENSATION,"","WILEDEN,LYDIA",01/01/12,03/31/12,STAFF ASSISTANT,"8,250.00",2012,"","","","WILEDEN,LYDIA"
,OFFICE OF THE MINORITY LEADER,2012Q1,PERSONNEL COMPENSATION,"","WILEDEN,LYDIA",01/01/12,02/29/12,STAFF ASSISTANT (OVERTIME),"3,641.06",2012,"","","","WILEDEN,LYDIA"
,OFFICE OF THE MINORITY LEADER,2012Q1,PERSONNEL COMPENSATION,"","WOLTERS, KATE",01/01/12,01/31/12,PERSONAL ASSISTANT,-769.92,2012,"","","","WOLTERS, KATE"
,OFFICE OF THE MINORITY LEADER,2012Q1,PERSONNEL COMPENSATION,"","WOLTERS, KATE",01/01/12,03/31/12,PERSONAL ASSISTANT,"34,646.49",2012,"","","","WOLTERS, KATE"
,OFFICE OF THE MINORITY LEADER,2012Q1,TRAVEL,01-30,"BARRY, MARY-KATE",01/17/12,01/18/12,TAXI/PARKING/TOLLS,35.00,2012,AP,Accounts payable,00365747,"BARRY, MARY-KATE"
,OFFICE OF THE MINORITY LEADER,2012Q1,TRAVEL,01-31,"WILEDEN, LYDIA",01/16/12,01/16/12,TAXI/PARKING/TOLLS,13.00,2012,AP,Accounts payable,00365754,"WILEDEN, LYDIA"
,OFFICE OF THE MINORITY LEADER,2012Q1,TRAVEL,01-31,"WOLTERS, KATE",01/10/12,01/13/12,TRAVEL SUBSISTENCE,"2,080.46",2012,AP,Accounts payable,00365757,"WOLTERS, KATE"
,OFFICE OF THE MINORITY LEADER,2012Q1,TRAVEL,02-01,"NEWTON, KARINA",01/11/12,01/13/12,TRAVEL SUBSISTENCE,161.78,2012,AP,Accounts payable,00367800,"NEWTON, KARINA"
,OFFICE OF THE MINORITY LEADER,2012Q1,TRAVEL,02-01,"WOLTERS, KATE",01/19/12,01/20/12,TRAVEL SUBSISTENCE,797.24,2012,AP,Accounts payable,00367805,"WOLTERS, KATE"
,OFFICE OF THE MINORITY LEADER,2012Q1,TRAVEL,02-02,"PATTI, VERNA A",12/23/11,01/03/12,COMMERCIAL TRANSPORTATION,283.00,2012,AP,Accounts payable,00368643,"PATTI, VERNA A"
,OFFICE OF THE MINORITY LEADER,2012Q1,TRAVEL,02-02,"PATTI, VERNA A",01/14/12,01/14/12,COMMERCIAL TRANSPORTATION,175.00,2012,AP,Accounts payable,00368648,"PATTI, VERNA A"
,OFFICE OF THE MINORITY LEADER,2012Q1,TRAVEL,02-10,CITIBANK GOV CARD SERVICE,01/19/12,01/19/12,MEALS,31.48,2012,AP,Accounts payable,00373914,CITIBANK GOV CARD SERVICE
,OFFICE OF THE MINORITY LEADER,2012Q1,TRAVEL,02-10,CITIBANK GOV CARD SERVICE,01/12/12,01/16/12,TRAVEL SUBSISTENCE,797.65,2012,AP,Accounts payable,00373916,CITIBANK GOV CARD SERVICE
,OFFICE OF THE MINORITY LEADER,2012Q1,TRAVEL,02-13,CITIBANK GOV CARD SERVICE,01/03/12,01/23/12,COMMERCIAL TRANSPORTATION,"5,767.70",2012,AP,Accounts payable,00373915,CITIBANK GOV CARD SERVICE
,OFFICE OF THE MINORITY LEADER,2012Q1,TRAVEL,02-16,"WOLTERS, KATE",01/29/12,01/31/12,TRAVEL SUBSISTENCE,608.77,2012,AP,Accounts payable,00377208,"WOLTERS, KATE"
,OFFICE OF THE MINORITY LEADER,2012Q1,TRAVEL,02-16,"HAMMILL, ANDREW T",01/19/12,01/20/12,TRAVEL SUBSISTENCE,760.86,2012,AP,Accounts payable,00377212,"HAMMILL, ANDREW T"
,OFFICE OF THE MINORITY LEADER,2012Q1,TRAVEL,02-16,"STIVERS, JONATHAN",01/10/12,02/02/12,TAXI/PARKING/TOLLS,48.00,2012,AP,Accounts payable,00377216,"STIVERS, JONATHAN"
,OFFICE OF THE MINORITY LEADER,2012Q1,TRAVEL,02-16,"WILEDEN, LYDIA",01/29/12,01/29/12,TAXI/PARKING/TOLLS,75.00,2012,AP,Accounts payable,00377218,"WILEDEN, LYDIA"
,OFFICE OF THE MINORITY LEADER,2012Q1,TRAVEL,02-16,"BARRY, MARY-KATE",01/19/12,01/19/12,PRIVATE AUTO MILEAGE,38.05,2012,AP,Accounts payable,00377220,"BARRY, MARY-KATE"
,OFFICE OF THE MINORITY LEADER,2012Q1,TRAVEL,02-16,"PRICE, REVA B",01/10/12,02/02/12,TAXI/PARKING/TOLLS,104.00,2012,AP,Accounts payable,00378138,"PRICE, REVA B"
,OFFICE OF THE MINORITY LEADER,2012Q1,TRAVEL,02-17,"SURGEON,BINA G",01/05/12,02/01/12,TAXI/PARKING/TOLLS,58.25,2012,AP,Accounts payable,00384829,"SURGEON,BINA G"
,OFFICE OF THE MINORITY LEADER,2012Q1,TRAVEL,02-17,"SURGEON,BINA G",01/12/12,01/28/12,TRAVEL SUBSISTENCE,70.36,2012,AP,Accounts payable,00384850,"SURGEON,BINA G"
,OFFICE OF THE MINORITY LEADER,2012Q1,TRAVEL,02-17,"SANCHEZ, CARLOS S",01/20/12,01/21/12,TRAVEL SUBSISTENCE,437.76,2012,AP,Accounts payable,00384853,"SANCHEZ, CARLOS S"
,OFFICE OF THE MINORITY LEADER,2012Q1,TRAVEL,02-17,"SANCHEZ, CARLOS S",02/08/12,02/09/12,TAXI/PARKING/TOLLS,27.00,2012,AP,Accounts payable,00384855,"SANCHEZ, CARLOS S"
,OFFICE OF THE MINORITY LEADER,2012Q1,TRAVEL,02-22,CITIBANK GOV CARD SERVICE,02/19/12,02/19/12,COMMERCIAL TRANSPORTATION,586.80,2012,AP,Accounts payable,00385956,CITIBANK GOV CARD SERVICE
,OFFICE OF THE MINORITY LEADER,2012Q1,TRAVEL,02-23,"WOLTERS, KATE",02/10/12,02/14/12,TRAVEL SUBSISTENCE,"1,785.87",2012,AP,Accounts payable,00386667,"WOLTERS, KATE"
,OFFICE OF THE MINORITY LEADER,2012Q1,TRAVEL,02-23,"LAWRENCE, JOHN A",02/13/12,02/13/12,TAXI/PARKING/TOLLS,7.50,2012,AP,Accounts payable,00386683,"LAWRENCE, JOHN A"
,OFFICE OF THE MINORITY LEADER,2012Q1,TRAVEL,02-24,"WILEDEN, LYDIA",02/09/12,02/09/12,TAXI/PARKING/TOLLS,40.00,2012,AP,Accounts payable,00386689,"WILEDEN, LYDIA"
,OFFICE OF THE MINORITY LEADER,2012Q1,TRAVEL,03-08,"HAMMILL, ANDREW T",02/22/12,02/22/12,TAXI/PARKING/TOLLS,35.00,2012,AP,Accounts payable,00395844,"HAMMILL, ANDREW T"
,OFFICE OF THE MINORITY LEADER,2012Q1,TRAVEL,03-08,"WOLTERS, KATE",02/17/12,02/21/12,TRAVEL SUBSISTENCE,894.12,2012,AP,Accounts payable,00395855,"WOLTERS, KATE"
,OFFICE OF THE MINORITY LEADER,2012Q1,TRAVEL,03-15,CITIBANK GOV CARD SERVICE,02/22/12,02/22/12,MEALS,22.79,2012,AP,Accounts payable,00400851,CITIBANK GOV CARD SERVICE
,OFFICE OF THE MINORITY LEADER,2012Q1,TRAVEL,03-15,CITIBANK GOV CARD SERVICE,02/03/12,02/24/12,TRAVEL SUBSISTENCE,"4,340.49",2012,AP,Accounts payable,00400855,CITIBANK GOV CARD SERVICE
,OFFICE OF THE MINORITY LEADER,2012Q1,TRAVEL,03-15,CITIBANK GOV CARD SERVICE,01/29/12,03/04/12,TRAVEL SUBSISTENCE,"5,543.70",2012,AP,Accounts payable,00400861,CITIBANK GOV CARD SERVICE
,OFFICE OF THE MINORITY LEADER,2012Q1,TRAVEL,03-15,"WOLTERS, KATE",03/02/12,03/05/12,TRAVEL SUBSISTENCE,645.19,2012,AP,Accounts payable,00401018,"WOLTERS, KATE"
,OFFICE OF THE MINORITY LEADER,2012Q1,TRAVEL,03-15,"BARRY, MARY-KATE",02/21/12,02/24/12,TRAVEL SUBSISTENCE,24.41,2012,AP,Accounts payable,00401021,"BARRY, MARY-KATE"
,OFFICE OF THE MINORITY LEADER,2012Q1,TRAVEL,03-15,"BARRY, MARY-KATE",03/01/12,03/06/12,TAXI/PARKING/TOLLS,48.00,2012,AP,Accounts payable,00401022,"BARRY, MARY-KATE"
,OFFICE OF THE MINORITY LEADER,2012Q1,TRAVEL,03-15,"BLOOM, MICHAEL",03/06/12,03/06/12,TAXI/PARKING/TOLLS,16.32,2012,AP,Accounts payable,00401023,"BLOOM, MICHAEL"
,OFFICE OF THE MINORITY LEADER,2012Q1,TRAVEL,03-15,"SKEWES-COX,CHRISTINA J",02/13/12,02/21/12,TRAVEL SUBSISTENCE,110.67,2012,AP,Accounts payable,00401034,"SKEWES-COX,CHRISTINA J"
,OFFICE OF THE MINORITY LEADER,2012Q1,TRAVEL,03-20,CITIBANK GOV CARD SERVICE,02/06/12,02/21/12,TRAVEL SUBSISTENCE,"1,983.31",2012,AP,Accounts payable,00407520,CITIBANK GOV CARD SERVICE
,OFFICE OF THE MINORITY LEADER,2012Q1,TRAVEL,03-28,"WOLTERS, KATE",03/11/12,03/17/12,TRAVEL SUBSISTENCE,44.45,2012,AP,Accounts payable,00412641,"WOLTERS, KATE"
,OFFICE OF THE MINORITY LEADER,2012Q1,TRAVEL,03-28,"WILEDEN, LYDIA",03/07/12,03/07/12,TAXI/PARKING/TOLLS,8.00,2012,AP,Accounts payable,00412643,"WILEDEN, LYDIA"
,OFFICE OF THE MINORITY LEADER,2012Q1,TRAVEL,03-28,"SANCHEZ, CARLOS S",03/02/12,03/04/12,TRAVEL SUBSISTENCE,89.42,2012,AP,Accounts payable,00412645,"SANCHEZ, CARLOS S"
,OFFICE OF THE MINORITY LEADER,2012Q1,TRAVEL,03-28,"SANCHEZ, CARLOS S",02/19/12,02/25/12,TRAVEL SUBSISTENCE,552.63,2012,AP,Accounts payable,00412647,"SANCHEZ, CARLOS S"
,OFFICE OF THE MINORITY LEADER,2012Q1,TRAVEL,03-28,"HAMMILL, ANDREW T",03/09/12,03/09/12,TRAVEL SUBSISTENCE,507.83,2012,AP,Accounts payable,00412654,"HAMMILL, ANDREW T"
,OFFICE OF THE MINORITY LEADER,2012Q1,TRAVEL,03-30,"WILEDEN, LYDIA",03/18/12,03/21/12,TAXI/PARKING/TOLLS,21.00,2012,AP,Accounts payable,00414098,"WILEDEN, LYDIA"
,OFFICE OF THE MINORITY LEADER,2012Q1,"RENT, COMMUNICATION, UTILITIES",02-15,CITIBANK P CARD,12/29/11,01/28/12,RECORDING (OUTSIDE),150.32,2012,AP,Accounts payable,00378659,CITIBANK P CARD
,OFFICE OF THE MINORITY LEADER,2012Q1,"RENT, COMMUNICATION, UTILITIES",02-23,FEDERAL EXPRESS,01/20/12,01/20/12,POSTAGE / COURIER / BOX RENTAL,24.36,2012,AP,Accounts payable,00386863,FEDERAL EXPRESS
,OFFICE OF THE MINORITY LEADER,2012Q1,"RENT, COMMUNICATION, UTILITIES",02-23,FEDERAL EXPRESS,01/14/12,01/14/12,POSTAGE / COURIER / BOX RENTAL,187.68,2012,AP,Accounts payable,00386868,FEDERAL EXPRESS
,OFFICE OF THE MINORITY LEADER,2012Q1,"RENT, COMMUNICATION, UTILITIES",03-09,FEDEX,01/20/12,01/24/12,POSTAGE / COURIER / BOX RENTAL,166.53,2012,AP,Accounts payable,00395830,FEDEX
,OFFICE OF THE MINORITY LEADER,2012Q1,"RENT, COMMUNICATION, UTILITIES",03-15,CITIBANK P CARD,01/29/12,02/28/12,RECORDING (OUTSIDE),45.38,2012,AP,Accounts payable,00400841,CITIBANK P CARD
,OFFICE OF THE MINORITY LEADER,2012Q1,"RENT, COMMUNICATION, UTILITIES",03-15,FEDEX,02/17/12,02/17/12,POSTAGE / COURIER / BOX RENTAL,7.41,2012,AP,Accounts payable,00401025,FEDEX
,OFFICE OF THE MINORITY LEADER,2012Q1,"RENT, COMMUNICATION, UTILITIES",03-15,FEDEX,02/13/12,02/16/12,POSTAGE / COURIER / BOX RENTAL,14.44,2012,AP,Accounts payable,00401026,FEDEX
,OFFICE OF THE MINORITY LEADER,2012Q1,"RENT, COMMUNICATION, UTILITIES",03-15,FEDEX,02/06/12,02/06/12,POSTAGE / COURIER / BOX RENTAL,4.88,2012,AP,Accounts payable,00401029,FEDEX
,OFFICE OF THE MINORITY LEADER,2012Q1,PRINTING AND REPRODUCTION,01-26,"",01/01/12,01/31/12,PHOTOGRAPHIC (TRANSFER),43.00,2012,GL,General ledger,PIX0016210,""
,OFFICE OF THE MINORITY LEADER,2012Q1,PRINTING AND REPRODUCTION,02-01,"HAMMILL, ANDREW T",01/10/12,01/10/12,PRINTING & REPRODUCTION,42.55,2012,AP,Accounts payable,00367808,"HAMMILL, ANDREW T"
,OFFICE OF THE MINORITY LEADER,2012Q1,PRINTING AND REPRODUCTION,02-16,"DAVID L. ANDRUKITUS, INC",02/02/12,02/02/12,PRINTING & REPRODUCTION,75.00,2012,AP,Accounts payable,00378149,"DAVID L. ANDRUKITUS, INC"
,OFFICE OF THE MINORITY LEADER,2012Q1,PRINTING AND REPRODUCTION,02-24,"",02/01/12,02/29/12,PHOTOGRAPHIC (TRANSFER),305.80,2012,GL,General ledger,PIX0016958,""
,OFFICE OF THE MINORITY LEADER,2012Q1,PRINTING AND REPRODUCTION,03-08,"HAMMILL, ANDREW T",02/22/12,02/22/12,PRINTING & REPRODUCTION,14.15,2012,AP,Accounts payable,00395840,"HAMMILL, ANDREW T"
,OFFICE OF THE MINORITY LEADER,2012Q1,PRINTING AND REPRODUCTION,03-28,"BARRY, MARY-KATE",03/09/12,03/09/12,PRINTING & REPRODUCTION,96.90,2012,AP,Accounts payable,00412650,"BARRY, MARY-KATE"
,OFFICE OF THE MINORITY LEADER,2012Q1,PRINTING AND REPRODUCTION,03-28,"BARRY, MARY-KATE",03/18/12,03/18/12,PRINTING & REPRODUCTION,53.77,2012,AP,Accounts payable,00412652,"BARRY, MARY-KATE"
,OFFICE OF THE MINORITY LEADER,2012Q1,PRINTING AND REPRODUCTION,03-29,"",03/01/12,03/31/12,PHOTOGRAPHIC (TRANSFER),566.70,2012,GL,General ledger,PIX0018025,""
,OFFICE OF THE MINORITY LEADER,2012Q1,OTHER SERVICES,02-01,BLACKBAUD,12/06/11,01/05/12,"WEB DEV HST,EMAIL & RLTD SERV","3,092.25",2012,AP,Accounts payable,00367794,BLACKBAUD
,OFFICE OF THE MINORITY LEADER,2012Q1,OTHER SERVICES,02-13,BERNARD RAIMO,01/01/12,01/31/12,CONSULTANT CONTRACT SERVICE,"7,628.00",2012,AP,Accounts payable,00375691,BERNARD RAIMO
,OFFICE OF THE MINORITY LEADER,2012Q1,OTHER SERVICES,02-15,BLACKBAUD,01/06/12,02/05/12,"WEB DEV HST,EMAIL & RLTD SERV","3,092.25",2012,AP,Accounts payable,00375680,BLACKBAUD
,OFFICE OF THE MINORITY LEADER,2012Q1,OTHER SERVICES,03-08,"NEAL R. GROSS & CO, INC",02/23/12,02/23/12,STENOGRAPHIC REPORTING,750.00,2012,AP,Accounts payable,00395827,"NEAL R. GROSS & CO, INC"
,OFFICE OF THE MINORITY LEADER,2012Q1,OTHER SERVICES,03-08,BERNARD RAIMO,02/01/12,02/29/12,CONSULTANT CONTRACT SERVICE,"7,628.00",2012,AP,Accounts payable,00395846,BERNARD RAIMO
,OFFICE OF THE MINORITY LEADER,2012Q1,SUPPLIES AND MATERIALS,01-30,"HAMMILL, ANDREW T",01/10/12,01/10/12,OFFICE SUPPLIES (OUTSIDE),22.49,2012,AP,Accounts payable,00365725,"HAMMILL, ANDREW T"
,OFFICE OF THE MINORITY LEADER,2012Q1,SUPPLIES AND MATERIALS,01-30,"ELSHAMI, NADEAM",01/10/12,01/10/12,OFFICE SUPPLIES (OUTSIDE),14.99,2012,AP,Accounts payable,00365731,"ELSHAMI, NADEAM"
,OFFICE OF THE MINORITY LEADER,2012Q1,SUPPLIES AND MATERIALS,02-01,MILLICENT BLUFORD,01/23/12,01/23/12,HABITATION EXPENSE,250.00,2012,AP,Accounts payable,00367715,MILLICENT BLUFORD
,OFFICE OF THE MINORITY LEADER,2012Q1,SUPPLIES AND MATERIALS,02-07,CAPITOL HOST,01/05/12,01/05/12,FOOD & BEVERAGE,135.00,2012,AP,Accounts payable,00370764,CAPITOL HOST
,OFFICE OF THE MINORITY LEADER,2012Q1,SUPPLIES AND MATERIALS,02-13,"WOLTERS, KATE",01/26/12,01/26/12,FOOD & BEVERAGE,118.91,2012,AP,Accounts payable,00375621,"WOLTERS, KATE"
,OFFICE OF THE MINORITY LEADER,2012Q1,SUPPLIES AND MATERIALS,02-15,CITIBANK P CARD,12/29/11,01/28/12,FOOD & BEVERAGE,"1,076.17",2012,AP,Accounts payable,00378659,CITIBANK P CARD
,OFFICE OF THE MINORITY LEADER,2012Q1,SUPPLIES AND MATERIALS,02-16,MILLICENT BLUFORD,01/30/12,01/30/12,HABITATION EXPENSE,250.00,2012,AP,Accounts payable,00378140,MILLICENT BLUFORD
,OFFICE OF THE MINORITY LEADER,2012Q1,SUPPLIES AND MATERIALS,02-16,MILLICENT BLUFORD,02/06/12,02/06/12,HABITATION EXPENSE,250.00,2012,AP,Accounts payable,00378142,MILLICENT BLUFORD
,OFFICE OF THE MINORITY LEADER,2012Q1,SUPPLIES AND MATERIALS,02-17,CAPITOLHOST,01/18/12,01/18/12,FOOD & BEVERAGE,33.00,2012,AP,Accounts payable,00384814,CAPITOLHOST
,OFFICE OF THE MINORITY LEADER,2012Q1,SUPPLIES AND MATERIALS,02-17,"SURGEON,BINA G",02/01/12,02/01/12,FOOD & BEVERAGE,18.39,2012,AP,Accounts payable,00384834,"SURGEON,BINA G"
,OFFICE OF THE MINORITY LEADER,2012Q1,SUPPLIES AND MATERIALS,02-23,HAGUE QUALITY WATER,02/01/12,02/29/12,WATER,378.00,2012,AP,Accounts payable,00386672,HAGUE QUALITY WATER
,OFFICE OF THE MINORITY LEADER,2012Q1,SUPPLIES AND MATERIALS,02-23,OCCASIONS CATERERS,01/24/12,01/24/12,FOOD & BEVERAGE,"10,810.60",2012,AP,Accounts payable,00386855,OCCASIONS CATERERS
,OFFICE OF THE MINORITY LEADER,2012Q1,SUPPLIES AND MATERIALS,02-23,MILLICENT BLUFORD,02/13/12,02/13/12,HABITATION EXPENSE,250.00,2012,AP,Accounts payable,00386859,MILLICENT BLUFORD
,OFFICE OF THE MINORITY LEADER,2012Q1,SUPPLIES AND MATERIALS,02-23,CRYSTAL SPRINGS,01/01/12,01/31/12,FOOD & BEVERAGE,237.23,2012,AP,Accounts payable,00386860,CRYSTAL SPRINGS
,OFFICE OF THE MINORITY LEADER,2012Q1,SUPPLIES AND MATERIALS,03-08,"SOUTHWEST DISTRIBUTION, INC",04/01/12,06/30/12,PUBLICATIONS/REFERENCE MAT'L,"3,701.11",2012,AP,Accounts payable,00395829,"SOUTHWEST DISTRIBUTION, INC"
,OFFICE OF THE MINORITY LEADER,2012Q1,SUPPLIES AND MATERIALS,03-08,MILLICENT BLUFORD,02/27/12,02/27/12,HABITATION EXPENSE,250.00,2012,AP,Accounts payable,00395848,MILLICENT BLUFORD
,OFFICE OF THE MINORITY LEADER,2012Q1,SUPPLIES AND MATERIALS,03-08,CAPITOLHOST,02/01/12,02/01/12,FOOD & BEVERAGE,33.00,2012,AP,Accounts payable,00395849,CAPITOLHOST
,OFFICE OF THE MINORITY LEADER,2012Q1,SUPPLIES AND MATERIALS,03-15,CITIBANK P CARD,01/29/12,02/28/12,FOOD & BEVERAGE,770.22,2012,AP,Accounts payable,00400841,CITIBANK P CARD
,OFFICE OF THE MINORITY LEADER,2012Q1,SUPPLIES AND MATERIALS,03-15,CAPITOLHOST,02/15/12,02/15/12,FOOD & BEVERAGE,33.00,2012,AP,Accounts payable,00401010,CAPITOLHOST
,OFFICE OF THE MINORITY LEADER,2012Q1,SUPPLIES AND MATERIALS,03-15,CRYSTAL SPRINGS,01/19/12,02/09/12,FOOD & BEVERAGE,"1,423.96",2012,AP,Accounts payable,00401014,CRYSTAL SPRINGS
,OFFICE OF THE MINORITY LEADER,2012Q1,SUPPLIES AND MATERIALS,03-15,BURRELLESLUCE,02/01/12,02/29/12,PUBLICATIONS/REFERENCE MAT'L,357.58,2012,AP,Accounts payable,00401028,BURRELLESLUCE
,OFFICE OF THE MINORITY LEADER,2012Q1,SUPPLIES AND MATERIALS,03-15,BULLETIN NEWS,05/18/12,05/17/13,PUBLICATIONS/REFERENCE MAT'L,"4,995.00",2012,AP,Accounts payable,00401032,BULLETIN NEWS
,OFFICE OF THE MINORITY LEADER,2012Q1,SUPPLIES AND MATERIALS,03-28,"WOLTERS, KATE",03/09/12,03/09/12,FOOD & BEVERAGE,110.47,2012,AP,Accounts payable,00412642,"WOLTERS, KATE"
,OFFICE OF THE MINORITY LEADER,2012Q1,SUPPLIES AND MATERIALS,03-28,CAPITOLHOST,02/21/12,02/21/12,FOOD & BEVERAGE,33.00,2012,AP,Accounts payable,00412656,CAPITOLHOST
,OFFICE OF THE MINORITY LEADER,2012Q1,SUPPLIES AND MATERIALS,03-28,CAPITOLHOST,02/22/12,02/22/12,FOOD & BEVERAGE,150.00,2012,AP,Accounts payable,00412657,CAPITOLHOST
,OFFICE OF THE MINORITY LEADER,2012Q1,SUPPLIES AND MATERIALS,03-28,CAPITOLHOST,02/29/12,02/29/12,FOOD & BEVERAGE,49.50,2012,AP,Accounts payable,00412659,CAPITOLHOST
,OFFICE OF THE MAJORITY WHIP,2012Q1,PERSONNEL COMPENSATION,"","BARNES,FREDERIC W",01/01/12,01/31/12,FLOOR ASSISTANT,-233.33,2012,"","","","BARNES,FREDERIC W"
,OFFICE OF THE MAJORITY WHIP,2012Q1,PERSONNEL COMPENSATION,"","BARNES,FREDERIC W",01/01/12,03/31/12,FLOOR ASSISTANT,"11,500.00",2012,"","","","BARNES,FREDERIC W"
,OFFICE OF THE MAJORITY WHIP,2012Q1,PERSONNEL COMPENSATION,"","BERRY,TIMOTHY J",01/01/12,01/31/12,CHIEF OF STAFF,-958.33,2012,"","","","BERRY,TIMOTHY J"
,OFFICE OF THE MAJORITY WHIP,2012Q1,PERSONNEL COMPENSATION,"","BERRY,TIMOTHY J",01/01/12,03/31/12,CHIEF OF STAFF,"43,125.00",2012,"","","","BERRY,TIMOTHY J"
,OFFICE OF THE MAJORITY WHIP,2012Q1,PERSONNEL COMPENSATION,"","BUCHANAN,NATALIE L",01/01/12,01/31/12,DIR OF MEMBER SERVICES,-433.33,2012,"","","","BUCHANAN,NATALIE L"
,OFFICE OF THE MAJORITY WHIP,2012Q1,PERSONNEL COMPENSATION,"","BUCHANAN,NATALIE L",01/01/12,03/31/12,DIR OF MEMBER SERVICES,"20,500.00",2012,"","","","BUCHANAN,NATALIE L"
,OFFICE OF THE MAJORITY WHIP,2012Q1,PERSONNEL COMPENSATION,"","CAREY,BRITTANY M",01/01/12,01/31/12,STAFF ASSISTANT,-183.33,2012,"","","","CAREY,BRITTANY M"
,OFFICE OF THE MAJORITY WHIP,2012Q1,PERSONNEL COMPENSATION,"","CAREY,BRITTANY M",01/01/12,03/31/12,STAFF ASSISTANT,"9,250.00",2012,"","","","CAREY,BRITTANY M"
,OFFICE OF THE MAJORITY WHIP,2012Q1,PERSONNEL COMPENSATION,"","DIXON, KELLY A",01/01/12,01/31/12,DEPUTY DIRECTOR OF FLOOR OPERA,-500.00,2012,"","","","DIXON, KELLY A"
,OFFICE OF THE MAJORITY WHIP,2012Q1,PERSONNEL COMPENSATION,"","DIXON, KELLY A",01/01/12,03/31/12,DEPUTY DIRECTOR OF FLOOR OPERA,"23,500.00",2012,"","","","DIXON, KELLY A"
,OFFICE OF THE MAJORITY WHIP,2012Q1,PERSONNEL COMPENSATION,"","ELLIOTT,ERICA L",01/01/12,01/31/12,PRESS SECRETARY,-566.67,2012,"","","","ELLIOTT,ERICA L"
,OFFICE OF THE MAJORITY WHIP,2012Q1,PERSONNEL COMPENSATION,"","ELLIOTT,ERICA L",01/01/12,03/31/12,PRESS SECRETARY,"26,500.00",2012,"","","","ELLIOTT,ERICA L"
,OFFICE OF THE MAJORITY WHIP,2012Q1,PERSONNEL COMPENSATION,"","HENEHAN, EMILY A",01/01/12,01/31/12,POLICY ADVISOR,-500.00,2012,"","","","HENEHAN, EMILY A"
,OFFICE OF THE MAJORITY WHIP,2012Q1,PERSONNEL COMPENSATION,"","HENEHAN, EMILY A",01/01/12,03/31/12,POLICY ADVISOR,"23,500.00",2012,"","","","HENEHAN, EMILY A"
,OFFICE OF THE MAJORITY WHIP,2012Q1,PERSONNEL COMPENSATION,"","HOWARD,BENJAMIN R",01/01/12,01/31/12,FLOOR ASSISTANT,-233.33,2012,"","","","HOWARD,BENJAMIN R"
,OFFICE OF THE MAJORITY WHIP,2012Q1,PERSONNEL COMPENSATION,"","HOWARD,BENJAMIN R",01/01/12,03/31/12,FLOOR ASSISTANT,"11,500.00",2012,"","","","HOWARD,BENJAMIN R"
,OFFICE OF THE MAJORITY WHIP,2012Q1,PERSONNEL COMPENSATION,"","LONG,MICHAEL P",01/01/12,01/31/12,PRESS AIDE,-133.33,2012,"","","","LONG,MICHAEL P"
,OFFICE OF THE MAJORITY WHIP,2012Q1,PERSONNEL COMPENSATION,"","LONG,MICHAEL P",01/01/12,03/31/12,PRESS AIDE,"7,000.00",2012,"","","","LONG,MICHAEL P"
,OFFICE OF THE MAJORITY WHIP,2012Q1,PERSONNEL COMPENSATION,"","MCCLELLAND, WESLEY R",01/01/12,01/31/12,POLICY ADVISOR,-500.00,2012,"","","","MCCLELLAND, WESLEY R"
,OFFICE OF THE MAJORITY WHIP,2012Q1,PERSONNEL COMPENSATION,"","MCCLELLAND, WESLEY R",01/01/12,03/31/12,POLICY ADVISOR,"23,500.00",2012,"","","","MCCLELLAND, WESLEY R"
,OFFICE OF THE MAJORITY WHIP,2012Q1,PERSONNEL COMPENSATION,"","METTLER,ASHLEY",01/01/12,01/31/12,SENIOR STAFF ASSISTANT,-33.33,2012,"","","","METTLER,ASHLEY"
,OFFICE OF THE MAJORITY WHIP,2012Q1,PERSONNEL COMPENSATION,"","METTLER,ASHLEY",01/01/12,03/31/12,SENIOR STAFF ASSISTANT,"4,000.00",2012,"","","","METTLER,ASHLEY"
,OFFICE OF THE MAJORITY WHIP,2012Q1,PERSONNEL COMPENSATION,"","MIN, JAMES B",01/01/12,01/31/12,DEPUTY CHIEF OF STAFF,-300.00,2012,"","","","MIN, JAMES B"
,OFFICE OF THE MAJORITY WHIP,2012Q1,PERSONNEL COMPENSATION,"","MIN, JAMES B",01/01/12,03/31/12,DEPUTY CHIEF OF STAFF,"20,000.00",2012,"","","","MIN, JAMES B"
,OFFICE OF THE MAJORITY WHIP,2012Q1,PERSONNEL COMPENSATION,"","MOORE,STEVEN E",01/01/12,01/31/12,CHIEF OF STAFF TO THE DEP WHIP,-333.33,2012,"","","","MOORE,STEVEN E"
,OFFICE OF THE MAJORITY WHIP,2012Q1,PERSONNEL COMPENSATION,"","MOORE,STEVEN E",01/01/12,03/31/12,CHIEF OF STAFF TO THE DEP WHIP,"15,000.00",2012,"","","","MOORE,STEVEN E"
,OFFICE OF THE MAJORITY WHIP,2012Q1,PERSONNEL COMPENSATION,"","PATAKI,TIMOTHY A",01/01/12,01/31/12,STAFF ASSISTANT,-166.67,2012,"","","","PATAKI,TIMOTHY A"
,OFFICE OF THE MAJORITY WHIP,2012Q1,PERSONNEL COMPENSATION,"","PATAKI,TIMOTHY A",01/01/12,03/31/12,STAFF ASSISTANT,"8,500.00",2012,"","","","PATAKI,TIMOTHY A"
,OFFICE OF THE MAJORITY WHIP,2012Q1,PERSONNEL COMPENSATION,"","PINKOS,STEPHEN M",01/01/12,01/31/12,POLICY DIR AND GENERAL COUNSEL,-833.33,2012,"","","","PINKOS,STEPHEN M"
,OFFICE OF THE MAJORITY WHIP,2012Q1,PERSONNEL COMPENSATION,"","PINKOS,STEPHEN M",01/01/12,03/31/12,POLICY DIR AND GENERAL COUNSEL,"38,500.00",2012,"","","","PINKOS,STEPHEN M"
,OFFICE OF THE MAJORITY WHIP,2012Q1,PERSONNEL COMPENSATION,"","POMPEI,SARAH",01/01/12,01/31/12,DIRECTOR OF COMMUNICATIONS,-750.00,2012,"","","","POMPEI,SARAH"
,OFFICE OF THE MAJORITY WHIP,2012Q1,PERSONNEL COMPENSATION,"","POMPEI,SARAH",01/01/12,03/31/12,DIRECTOR OF COMMUNICATIONS,"34,750.00",2012,"","","","POMPEI,SARAH"
,OFFICE OF THE MAJORITY WHIP,2012Q1,PERSONNEL COMPENSATION,"","PRATAPAS,LAUREN M",01/01/12,01/31/12,DIRECTOR OF NEW MEDIA,-300.00,2012,"","","","PRATAPAS,LAUREN M"
,OFFICE OF THE MAJORITY WHIP,2012Q1,PERSONNEL COMPENSATION,"","PRATAPAS,LAUREN M",01/01/12,03/31/12,DIRECTOR OF NEW MEDIA,"13,500.00",2012,"","","","PRATAPAS,LAUREN M"
,OFFICE OF THE MAJORITY WHIP,2012Q1,PERSONNEL COMPENSATION,"","STIPICEVIC, JOHN A",01/01/12,01/31/12,DIRECTOR OF FLOOR OPERATIONS,-666.67,2012,"","","","STIPICEVIC, JOHN A"
,OFFICE OF THE MAJORITY WHIP,2012Q1,PERSONNEL COMPENSATION,"","STIPICEVIC, JOHN A",01/01/12,03/31/12,DIRECTOR OF FLOOR OPERATIONS,"32,000.00",2012,"","","","STIPICEVIC, JOHN A"
,OFFICE OF THE MAJORITY WHIP,2012Q1,PERSONNEL COMPENSATION,"","THOMPSON,DEAN J",01/01/12,01/31/12,SR ADV FR WHIP OP/CHF DEP WHIP,-166.67,2012,"","","","THOMPSON,DEAN J"
,OFFICE OF THE MAJORITY WHIP,2012Q1,PERSONNEL COMPENSATION,"","THOMPSON,DEAN J",01/01/12,03/31/12,SR ADV FR WHIP OP/CHF DEP WHIP,"7,500.00",2012,"","","","THOMPSON,DEAN J"
,OFFICE OF THE MAJORITY WHIP,2012Q1,PERSONNEL COMPENSATION,"","THOMSON, KRISTIN",03/01/12,03/31/12,SHARED EMPLOYEE,"5,000.00",2012,"","","","THOMSON, KRISTIN"
,OFFICE OF THE MAJORITY WHIP,2012Q1,PERSONNEL COMPENSATION,"","WORTH,BRIAN A",01/01/12,01/31/12,DIRECTOR OF COALITIONS,-750.00,2012,"","","","WORTH,BRIAN A"
,OFFICE OF THE MAJORITY WHIP,2012Q1,PERSONNEL COMPENSATION,"","WORTH,BRIAN A",01/01/12,03/31/12,DIRECTOR OF COALITIONS,"34,750.00",2012,"","","","WORTH,BRIAN A"
,OFFICE OF THE MAJORITY WHIP,2012Q1,"RENT, COMMUNICATION, UTILITIES",02-29,"",02/01/12,02/29/12,HIR GRAPHICS (TRANSFER),160.00,2012,GL,General ledger,GRP0017080,""
,OFFICE OF THE MAJORITY WHIP,2012Q1,"RENT, COMMUNICATION, UTILITIES",03-29,"",03/01/12,03/31/12,HIR GRAPHICS (TRANSFER),73.00,2012,GL,General ledger,GRP0017966,""
,OFFICE OF THE MAJORITY WHIP,2012Q1,SUPPLIES AND MATERIALS,02-15,CITIBANK P CARD,12/29/11,01/28/12,FOOD & BEVERAGE,"8,551.55",2012,AP,Accounts payable,00378659,CITIBANK P CARD
,OFFICE OF THE MAJORITY WHIP,2012Q1,SUPPLIES AND MATERIALS,02-15,CITIBANK P CARD,12/29/11,01/28/12,PUBLICATIONS/REFERENCE MAT'L,37.10,2012,AP,Accounts payable,00378659,CITIBANK P CARD
,OFFICE OF THE MAJORITY WHIP,2012Q1,SUPPLIES AND MATERIALS,02-17,TV EYES INC,03/15/12,01/02/13,PUBLICATIONS/REFERENCE MAT'L,"1,900.00",2012,AP,Accounts payable,00384718,TV EYES INC
,OFFICE OF THE MAJORITY WHIP,2012Q1,SUPPLIES AND MATERIALS,02-17,DEER PARK,12/27/11,01/26/12,WATER,431.65,2012,AP,Accounts payable,00384724,DEER PARK
,OFFICE OF THE MAJORITY WHIP,2012Q1,SUPPLIES AND MATERIALS,02-17,"MIN, JAMES B",02/02/12,02/02/12,FOOD & BEVERAGE,269.64,2012,AP,Accounts payable,00384772,"MIN, JAMES B"
,OFFICE OF THE MAJORITY WHIP,2012Q1,SUPPLIES AND MATERIALS,02-23,"MIN, JAMES B",01/31/12,01/31/12,FOOD & BEVERAGE,418.39,2012,AP,Accounts payable,00384746,"MIN, JAMES B"
,OFFICE OF THE MAJORITY WHIP,2012Q1,SUPPLIES AND MATERIALS,02-29,BOISE CASCADE,02/14/12,02/14/12,OFFICE SUPPLIES (OUTSIDE),116.76,2012,AP,Accounts payable,00388033,BOISE CASCADE
,OFFICE OF THE MAJORITY WHIP,2012Q1,SUPPLIES AND MATERIALS,03-15,CITIBANK P CARD,01/29/12,02/28/12,FOOD & BEVERAGE,"6,427.42",2012,AP,Accounts payable,00400841,CITIBANK P CARD
,OFFICE OF THE MAJORITY WHIP,2012Q1,SUPPLIES AND MATERIALS,03-15,CITIBANK P CARD,01/29/12,02/28/12,PUBLICATIONS/REFERENCE MAT'L,37.10,2012,AP,Accounts payable,00400841,CITIBANK P CARD
,OFFICE OF THE MAJORITY WHIP,2012Q1,SUPPLIES AND MATERIALS,03-19,"MIN, JAMES B",02/26/12,02/26/12,FOOD & BEVERAGE,349.09,2012,AP,Accounts payable,00406340,"MIN, JAMES B"
,OFFICE OF THE MINORITY WHIP,2012Q1,FRANKED MAIL,02-24,UNITED STATES POSTAL SERVICE,01/03/12,01/31/12,FRANKED MAIL,23.88,2012,AP,Accounts payable,00388867,UNITED STATES POSTAL SERVICE
,OFFICE OF THE MINORITY WHIP,2012Q1,PERSONNEL COMPENSATION,"","ABOUCHAR, KEITH S",01/01/12,01/31/12,SENIOR POLICY ADVISOR,-12.22,2012,"","","","ABOUCHAR, KEITH S"
,OFFICE OF THE MINORITY WHIP,2012Q1,PERSONNEL COMPENSATION,"","ABOUCHAR, KEITH S",01/01/12,03/31/12,SENIOR POLICY ADVISOR,549.99,2012,"","","","ABOUCHAR, KEITH S"
,OFFICE OF THE MINORITY WHIP,2012Q1,PERSONNEL COMPENSATION,"","AVILES,DANIELLE R",01/01/12,01/31/12,STAFF ASSISTANT,-155.56,2012,"","","","AVILES,DANIELLE R"
,OFFICE OF THE MINORITY WHIP,2012Q1,PERSONNEL COMPENSATION,"","AVILES,DANIELLE R",01/01/12,03/31/12,STAFF ASSISTANT,"6,999.99",2012,"","","","AVILES,DANIELLE R"
,OFFICE OF THE MINORITY WHIP,2012Q1,PERSONNEL COMPENSATION,"","AVILES,DANIELLE R",01/01/12,02/29/12,STAFF ASSISTANT (OVERTIME),"2,019.21",2012,"","","","AVILES,DANIELLE R"
,OFFICE OF THE MINORITY WHIP,2012Q1,PERSONNEL COMPENSATION,"","BEACH,MAUREEN M",01/01/12,01/31/12,MD PRESS SEC/DEP PRESS SEC,-188.89,2012,"","","","BEACH,MAUREEN M"
,OFFICE OF THE MINORITY WHIP,2012Q1,PERSONNEL COMPENSATION,"","BEACH,MAUREEN M",01/01/12,03/31/12,MD PRESS SEC/DEP PRESS SEC,"8,916.66",2012,"","","","BEACH,MAUREEN M"
,OFFICE OF THE MINORITY WHIP,2012Q1,PERSONNEL COMPENSATION,"","BOHANAN JR, JOHN L",01/01/12,01/31/12,CONSTITUENT LIAISON,-33.33,2012,"","","","BOHANAN JR, JOHN L"
,OFFICE OF THE MINORITY WHIP,2012Q1,PERSONNEL COMPENSATION,"","BOHANAN JR, JOHN L",01/01/12,03/31/12,CONSTITUENT LIAISON,"1,500.00",2012,"","","","BOHANAN JR, JOHN L"
,OFFICE OF THE MINORITY WHIP,2012Q1,PERSONNEL COMPENSATION,"","BURNES, AUSTIN W",01/01/12,01/31/12,DIR. OF LEGISLATIVE OPERATIONS,-6.67,2012,"","","","BURNES, AUSTIN W"
,OFFICE OF THE MINORITY WHIP,2012Q1,PERSONNEL COMPENSATION,"","BURNES, AUSTIN W",01/01/12,03/31/12,DIR. OF LEGISLATIVE OPERATIONS,300.00,2012,"","","","BURNES, AUSTIN W"
,OFFICE OF THE MINORITY WHIP,2012Q1,PERSONNEL COMPENSATION,"","COLLINS, MICHAEL E",01/01/12,01/31/12,CHIEF DEPUTY WHIP,-236.11,2012,"","","","COLLINS, MICHAEL E"
,OFFICE OF THE MINORITY WHIP,2012Q1,PERSONNEL COMPENSATION,"","COLLINS, MICHAEL E",01/01/12,03/31/12,CHIEF DEPUTY WHIP,"10,625.01",2012,"","","","COLLINS, MICHAEL E"
,OFFICE OF THE MINORITY WHIP,2012Q1,PERSONNEL COMPENSATION,"","COVEY-BRANDT, ALEXIS",01/01/12,01/31/12,CHIEF OF STAFF,-6.67,2012,"","","","COVEY-BRANDT, ALEXIS"
,OFFICE OF THE MINORITY WHIP,2012Q1,PERSONNEL COMPENSATION,"","COVEY-BRANDT, ALEXIS",01/01/12,03/31/12,CHIEF OF STAFF,300.00,2012,"","","","COVEY-BRANDT, ALEXIS"
,OFFICE OF THE MINORITY WHIP,2012Q1,PERSONNEL COMPENSATION,"","DEBOSIER, CHRISTOPHER M",01/01/12,01/31/12,DIR OF MEM SERVICES & OUTREACH,-486.11,2012,"","","","DEBOSIER, CHRISTOPHER M"
,OFFICE OF THE MINORITY WHIP,2012Q1,PERSONNEL COMPENSATION,"","DEBOSIER, CHRISTOPHER M",01/01/12,03/31/12,DIR OF MEM SERVICES & OUTREACH,"21,875.01",2012,"","","","DEBOSIER, CHRISTOPHER M"
,OFFICE OF THE MINORITY WHIP,2012Q1,PERSONNEL COMPENSATION,"","EISENBERG,MICHAEL",01/01/12,01/31/12,WHIP COORDINATOR,-333.33,2012,"","","","EISENBERG,MICHAEL"
,OFFICE OF THE MINORITY WHIP,2012Q1,PERSONNEL COMPENSATION,"","EISENBERG,MICHAEL",01/01/12,03/31/12,WHIP COORDINATOR,"15,000.00",2012,"","","","EISENBERG,MICHAEL"
,OFFICE OF THE MINORITY WHIP,2012Q1,PERSONNEL COMPENSATION,"","FRY,COURTNEY",01/01/12,01/31/12,MEMBER SRVS AND OUTREACH COORD,-388.89,2012,"","","","FRY,COURTNEY"
,OFFICE OF THE MINORITY WHIP,2012Q1,PERSONNEL COMPENSATION,"","FRY,COURTNEY",01/01/12,03/31/12,MEMBER SRVS AND OUTREACH COORD,"17,499.99",2012,"","","","FRY,COURTNEY"
,OFFICE OF THE MINORITY WHIP,2012Q1,PERSONNEL COMPENSATION,"","GENSEMER,ELLIOT J",01/01/12,01/31/12,STAFF ASSISTANT,-138.89,2012,"","","","GENSEMER,ELLIOT J"
,OFFICE OF THE MINORITY WHIP,2012Q1,PERSONNEL COMPENSATION,"","GENSEMER,ELLIOT J",01/01/12,03/31/12,STAFF ASSISTANT,"6,249.99",2012,"","","","GENSEMER,ELLIOT J"
,OFFICE OF THE MINORITY WHIP,2012Q1,PERSONNEL COMPENSATION,"","GENSEMER,ELLIOT J",01/01/12,02/29/12,STAFF ASSISTANT (OVERTIME),"1,838.93",2012,"","","","GENSEMER,ELLIOT J"
,OFFICE OF THE MINORITY WHIP,2012Q1,PERSONNEL COMPENSATION,"","GHOSH,APRATIM",01/01/12,01/31/12,SPECIAL ASSISTANT,-222.22,2012,"","","","GHOSH,APRATIM"
,OFFICE OF THE MINORITY WHIP,2012Q1,PERSONNEL COMPENSATION,"","GHOSH,APRATIM",01/01/12,03/31/12,SPECIAL ASSISTANT,"9,999.99",2012,"","","","GHOSH,APRATIM"
,OFFICE OF THE MINORITY WHIP,2012Q1,PERSONNEL COMPENSATION,"","GOFF,SHUWANZA R",01/01/12,01/31/12,DEPUTY DIR LEG OPERATIONS,-388.89,2012,"","","","GOFF,SHUWANZA R"
,OFFICE OF THE MINORITY WHIP,2012Q1,PERSONNEL COMPENSATION,"","GOFF,SHUWANZA R",01/01/12,03/31/12,DEPUTY DIR LEG OPERATIONS,"17,499.99",2012,"","","","GOFF,SHUWANZA R"
,OFFICE OF THE MINORITY WHIP,2012Q1,PERSONNEL COMPENSATION,"","GRANT,KATHRYN L",01/01/12,01/31/12,COMMUNICATIONS DIRECTOR,-500.00,2012,"","","","GRANT,KATHRYN L"
,OFFICE OF THE MINORITY WHIP,2012Q1,PERSONNEL COMPENSATION,"","GRANT,KATHRYN L",01/01/12,03/31/12,COMMUNICATIONS DIRECTOR,"24,166.67",2012,"","","","GRANT,KATHRYN L"
,OFFICE OF THE MINORITY WHIP,2012Q1,PERSONNEL COMPENSATION,"","HUGHES,JOHN C",01/01/12,01/31/12,SENIOR POLICY ADVISOR,-6.67,2012,"","","","HUGHES,JOHN C"
,OFFICE OF THE MINORITY WHIP,2012Q1,PERSONNEL COMPENSATION,"","HUGHES,JOHN C",01/01/12,03/31/12,SENIOR POLICY ADVISOR,300.00,2012,"","","","HUGHES,JOHN C"
,OFFICE OF THE MINORITY WHIP,2012Q1,PERSONNEL COMPENSATION,"","LEUSCHEN, JAMES P",01/01/12,01/31/12,SENIOR POLICY ADVISOR,-638.89,2012,"","","","LEUSCHEN, JAMES P"
,OFFICE OF THE MINORITY WHIP,2012Q1,PERSONNEL COMPENSATION,"","LEUSCHEN, JAMES P",01/01/12,03/31/12,SENIOR POLICY ADVISOR,"28,749.99",2012,"","","","LEUSCHEN, JAMES P"
,OFFICE OF THE MINORITY WHIP,2012Q1,PERSONNEL COMPENSATION,"","MEDLEY, ANNA E",01/01/12,01/31/12,DIR OF SCHEDLNG & SPEC EVENTS,-388.89,2012,"","","","MEDLEY, ANNA E"
,OFFICE OF THE MINORITY WHIP,2012Q1,PERSONNEL COMPENSATION,"","MEDLEY, ANNA E",01/01/12,03/31/12,DIR OF SCHEDLNG & SPEC EVENTS,"17,499.99",2012,"","","","MEDLEY, ANNA E"
,OFFICE OF THE MINORITY WHIP,2012Q1,PERSONNEL COMPENSATION,"","MOORE, MIKAEL",01/01/12,01/31/12,CHIEF DEPUTY WHIP,-222.22,2012,"","","","MOORE, MIKAEL"
,OFFICE OF THE MINORITY WHIP,2012Q1,PERSONNEL COMPENSATION,"","MOORE, MIKAEL",01/01/12,03/31/12,CHIEF DEPUTY WHIP,"9,999.99",2012,"","","","MOORE, MIKAEL"
,OFFICE OF THE MINORITY WHIP,2012Q1,PERSONNEL COMPENSATION,"","MURRAY, ELIZABETH M",01/01/12,01/31/12,SENIOR POLICY ADVISOR,-738.89,2012,"","","","MURRAY, ELIZABETH M"
,OFFICE OF THE MINORITY WHIP,2012Q1,PERSONNEL COMPENSATION,"","MURRAY, ELIZABETH M",01/01/12,03/31/12,SENIOR POLICY ADVISOR,"33,249.99",2012,"","","","MURRAY, ELIZABETH M"
,OFFICE OF THE MINORITY WHIP,2012Q1,PERSONNEL COMPENSATION,"","OCAMPO,MARIA L",01/01/12,01/31/12,MEM SER AND OUTREACH COORDIN,-377.78,2012,"","","","OCAMPO,MARIA L"
,OFFICE OF THE MINORITY WHIP,2012Q1,PERSONNEL COMPENSATION,"","OCAMPO,MARIA L",01/01/12,03/31/12,MEM SER AND OUTREACH COORDIN,"17,000.01",2012,"","","","OCAMPO,MARIA L"
,OFFICE OF THE MINORITY WHIP,2012Q1,PERSONNEL COMPENSATION,"","REILLY,DANIEL W",01/01/12,01/31/12,PRESS SECRETARY,-55.56,2012,"","","","REILLY,DANIEL W"
,OFFICE OF THE MINORITY WHIP,2012Q1,PERSONNEL COMPENSATION,"","REILLY,DANIEL W",01/01/12,03/31/12,PRESS SECRETARY,"2,499.99",2012,"","","","REILLY,DANIEL W"
,OFFICE OF THE MINORITY WHIP,2012Q1,PERSONNEL COMPENSATION,"","REPKO,MARY F",01/01/12,01/31/12,SENIOR POLICY ADVISOR,-6.67,2012,"","","","REPKO,MARY F"
,OFFICE OF THE MINORITY WHIP,2012Q1,PERSONNEL COMPENSATION,"","REPKO,MARY F",01/01/12,03/31/12,SENIOR POLICY ADVISOR,300.00,2012,"","","","REPKO,MARY F"
,OFFICE OF THE MINORITY WHIP,2012Q1,PERSONNEL COMPENSATION,"","ROMICK, BRIAN",01/01/12,01/31/12,WHIP DIR AND SENIOR ADVISOR,-6.67,2012,"","","","ROMICK, BRIAN"
,OFFICE OF THE MINORITY WHIP,2012Q1,PERSONNEL COMPENSATION,"","ROMICK, BRIAN",01/01/12,03/31/12,WHIP DIR AND SENIOR ADVISOR,300.00,2012,"","","","ROMICK, BRIAN"
,OFFICE OF THE MINORITY WHIP,2012Q1,PERSONNEL COMPENSATION,"","SAEZ,MARIEL S",01/01/12,01/31/12,PRESS AND RESEARCH ASSISTANT,-200.00,2012,"","","","SAEZ,MARIEL S"
,OFFICE OF THE MINORITY WHIP,2012Q1,PERSONNEL COMPENSATION,"","SAEZ,MARIEL S",01/01/12,03/31/12,PRESS AND RESEARCH ASSISTANT,"9,750.00",2012,"","","","SAEZ,MARIEL S"
,OFFICE OF THE MINORITY WHIP,2012Q1,PERSONNEL COMPENSATION,"","SHOTT,DANIEL",01/01/12,01/31/12,EXECUTIVE ASST/OFFICE MANAGER,-222.22,2012,"","","","SHOTT,DANIEL"
,OFFICE OF THE MINORITY WHIP,2012Q1,PERSONNEL COMPENSATION,"","SHOTT,DANIEL",01/01/12,03/31/12,EXECUTIVE ASST/OFFICE MANAGER,"9,999.99",2012,"","","","SHOTT,DANIEL"
,OFFICE OF THE MINORITY WHIP,2012Q1,PERSONNEL COMPENSATION,"","SIXKILLER, MARIAH S",01/01/12,01/31/12,SENIOR POLICY ADVISOR,-322.22,2012,"","","","SIXKILLER, MARIAH S"
,OFFICE OF THE MINORITY WHIP,2012Q1,PERSONNEL COMPENSATION,"","SIXKILLER, MARIAH S",01/01/12,03/31/12,SENIOR POLICY ADVISOR,"14,499.99",2012,"","","","SIXKILLER, MARIAH S"
,OFFICE OF THE MINORITY WHIP,2012Q1,PERSONNEL COMPENSATION,"","WEISSMANN, ADAM",01/01/12,01/31/12,SPEECHWRITER,-305.56,2012,"","","","WEISSMANN, ADAM"
,OFFICE OF THE MINORITY WHIP,2012Q1,PERSONNEL COMPENSATION,"","WEISSMANN, ADAM",01/01/12,03/31/12,SPEECHWRITER,"13,749.99",2012,"","","","WEISSMANN, ADAM"
,OFFICE OF THE MINORITY WHIP,2012Q1,"RENT, COMMUNICATION, UTILITIES",02-15,CITIBANK P CARD,12/29/11,01/28/12,TELECOMSRV/EQ/TOLL CHARGE,170.00,2012,AP,Accounts payable,00378659,CITIBANK P CARD
,OFFICE OF THE MINORITY WHIP,2012Q1,PRINTING AND REPRODUCTION,02-15,CITIBANK P CARD,12/29/11,01/28/12,MISCELLANEOUS PRINTING,"5,891.00",2012,AP,Accounts payable,00378659,CITIBANK P CARD
,OFFICE OF THE MINORITY WHIP,2012Q1,OTHER SERVICES,02-15,CITIBANK P CARD,12/29/11,01/28/12,LAUNDRY SERVICES,50.88,2012,AP,Accounts payable,00378659,CITIBANK P CARD
,OFFICE OF THE MINORITY WHIP,2012Q1,OTHER SERVICES,03-15,CITIBANK P CARD,01/29/12,02/28/12,NON-TECHNOLOGY SERVICE CONTR,49.00,2012,AP,Accounts payable,00400841,CITIBANK P CARD
,OFFICE OF THE MINORITY WHIP,2012Q1,OTHER SERVICES,03-15,CITIBANK P CARD,01/29/12,02/28/12,LAUNDRY SERVICES,216.46,2012,AP,Accounts payable,00400841,CITIBANK P CARD
,OFFICE OF THE MINORITY WHIP,2012Q1,SUPPLIES AND MATERIALS,02-15,CITIBANK P CARD,12/29/11,01/28/12,FOOD & BEVERAGE,"2,621.10",2012,AP,Accounts payable,00378659,CITIBANK P CARD
,OFFICE OF THE MINORITY WHIP,2012Q1,SUPPLIES AND MATERIALS,02-15,CITIBANK P CARD,12/29/11,01/28/12,PUBLICATIONS/REFERENCE MAT'L,1.05,2012,AP,Accounts payable,00378659,CITIBANK P CARD
,OFFICE OF THE MINORITY WHIP,2012Q1,SUPPLIES AND MATERIALS,02-29,BOISE CASCADE,02/14/12,02/14/12,FOOD & BEVERAGE,53.53,2012,AP,Accounts payable,00388033,BOISE CASCADE
,OFFICE OF THE MINORITY WHIP,2012Q1,SUPPLIES AND MATERIALS,03-15,CITIBANK P CARD,01/29/12,02/28/12,FOOD & BEVERAGE,"1,459.69",2012,AP,Accounts payable,00400841,CITIBANK P CARD
,OFFICE OF THE MINORITY WHIP,2012Q1,SUPPLIES AND MATERIALS,03-15,CITIBANK P CARD,01/29/12,02/28/12,PUBLICATIONS/REFERENCE MAT'L,74.20,2012,AP,Accounts payable,00400841,CITIBANK P CARD
,DEMOCRATIC CAUCUS,2012Q1,FRANKED MAIL,02-24,UNITED STATES POSTAL SERVICE,01/03/12,01/31/12,FRANKED MAIL,11.96,2012,AP,Accounts payable,00388867,UNITED STATES POSTAL SERVICE
,DEMOCRATIC CAUCUS,2012Q1,PERSONNEL COMPENSATION,"","BANJAC,SRDAN",01/01/12,01/31/12,ASSISTANT TO THE CHAIRMAN,-300.00,2012,"","","","BANJAC,SRDAN"
,DEMOCRATIC CAUCUS,2012Q1,PERSONNEL COMPENSATION,"","BANJAC,SRDAN",01/01/12,03/31/12,ASSISTANT TO THE CHAIRMAN,"13,916.67",2012,"","","","BANJAC,SRDAN"
,DEMOCRATIC CAUCUS,2012Q1,PERSONNEL COMPENSATION,"","BRACHMAN, ELLIS A",01/01/12,01/31/12,COMMUNICATIONS DIRECTOR,-600.00,2012,"","","","BRACHMAN, ELLIS A"
,DEMOCRATIC CAUCUS,2012Q1,PERSONNEL COMPENSATION,"","BRACHMAN, ELLIS A",01/01/12,03/31/12,COMMUNICATIONS DIRECTOR,"27,000.00",2012,"","","","BRACHMAN, ELLIS A"
,DEMOCRATIC CAUCUS,2012Q1,PERSONNEL COMPENSATION,"","CASCA,MICHAEL A",02/01/12,03/31/12,PRESS FELLOW,"2,000.00",2012,"","","","CASCA,MICHAEL A"
,DEMOCRATIC CAUCUS,2012Q1,PERSONNEL COMPENSATION,"","DAGADAKIS,STAMATIOS",01/01/12,01/31/12,SHARED EMPLOYEE,-283.33,2012,"","","","DAGADAKIS,STAMATIOS"
,DEMOCRATIC CAUCUS,2012Q1,PERSONNEL COMPENSATION,"","DAGADAKIS,STAMATIOS",01/01/12,03/31/12,SHARED EMPLOYEE,"13,833.34",2012,"","","","DAGADAKIS,STAMATIOS"
,DEMOCRATIC CAUCUS,2012Q1,PERSONNEL COMPENSATION,"","DE PUY,GERALDINE M",01/01/12,01/31/12,CORRESPONDENCE ASSISTANT,-225.00,2012,"","","","DE PUY,GERALDINE M"
,DEMOCRATIC CAUCUS,2012Q1,PERSONNEL COMPENSATION,"","DE PUY,GERALDINE M",01/01/12,03/31/12,CORRESPONDENCE ASSISTANT,"10,125.00",2012,"","","","DE PUY,GERALDINE M"
,DEMOCRATIC CAUCUS,2012Q1,PERSONNEL COMPENSATION,"","DELANEY, ERIC L",01/01/12,01/31/12,MEMBER OUTREACH ASST-VICE CHR,-244.44,2012,"","","","DELANEY, ERIC L"
,DEMOCRATIC CAUCUS,2012Q1,PERSONNEL COMPENSATION,"","DELANEY, ERIC L",01/01/12,03/31/12,MEMBER OUTREACH ASST-VICE CHR,"11,000.01",2012,"","","","DELANEY, ERIC L"
,DEMOCRATIC CAUCUS,2012Q1,PERSONNEL COMPENSATION,"","DELANEY, ERIC L",01/01/12,01/01/12,MEMBER OUTREACH ASST-VICE CHR (OTHER COMPENSATION),"-1,008.00",2012,"","","","DELANEY, ERIC L"
,DEMOCRATIC CAUCUS,2012Q1,PERSONNEL COMPENSATION,"","DELANEY, ERIC L",01/01/12,01/31/12,MEMBER OUTREACH ASST-VICE CHR (OTHER COMPENSATION),"1,008.00",2012,"","","","DELANEY, ERIC L"
,DEMOCRATIC CAUCUS,2012Q1,PERSONNEL COMPENSATION,"","GLEESON,JAMES M",01/01/12,01/31/12,PRESS SEC FOR THE VICE CHAIR,-66.67,2012,"","","","GLEESON,JAMES M"
,DEMOCRATIC CAUCUS,2012Q1,PERSONNEL COMPENSATION,"","GLEESON,JAMES M",01/01/12,03/31/12,PRESS SEC FOR THE VICE CHAIR,"7,645.83",2012,"","","","GLEESON,JAMES M"
,DEMOCRATIC CAUCUS,2012Q1,PERSONNEL COMPENSATION,"","GONZALES, MELONDY S",01/01/12,01/31/12,DIR OF MBR OUTREACH-VICE CHAIR,-383.33,2012,"","","","GONZALES, MELONDY S"
,DEMOCRATIC CAUCUS,2012Q1,PERSONNEL COMPENSATION,"","GONZALES, MELONDY S",01/01/12,03/31/12,DIR OF MBR OUTREACH-VICE CHAIR,"17,250.00",2012,"","","","GONZALES, MELONDY S"
,DEMOCRATIC CAUCUS,2012Q1,PERSONNEL COMPENSATION,"","GONZALES, MELONDY S",01/01/12,01/01/12,DIR OF MBR OUTREACH-VICE CHAIR (OTHER COMPENSATION),"-1,098.00",2012,"","","","GONZALES, MELONDY S"
,DEMOCRATIC CAUCUS,2012Q1,PERSONNEL COMPENSATION,"","GONZALES, MELONDY S",01/01/12,01/31/12,DIR OF MBR OUTREACH-VICE CHAIR (OTHER COMPENSATION),"1,098.00",2012,"","","","GONZALES, MELONDY S"
,DEMOCRATIC CAUCUS,2012Q1,PERSONNEL COMPENSATION,"","GRADY,KATHERINE K",01/01/12,01/31/12,POLICY & OUTREACH COORDINATOR,-227.78,2012,"","","","GRADY,KATHERINE K"
,DEMOCRATIC CAUCUS,2012Q1,PERSONNEL COMPENSATION,"","GRADY,KATHERINE K",01/01/12,03/31/12,POLICY & OUTREACH COORDINATOR,"10,250.01",2012,"","","","GRADY,KATHERINE K"
,DEMOCRATIC CAUCUS,2012Q1,PERSONNEL COMPENSATION,"","JAWORSKI, KIMBERLY H",01/01/12,01/31/12,EVENTS AND PROJECTS COORDINATO,-288.89,2012,"","","","JAWORSKI, KIMBERLY H"
,DEMOCRATIC CAUCUS,2012Q1,PERSONNEL COMPENSATION,"","JAWORSKI, KIMBERLY H",01/01/12,03/31/12,EVENTS AND PROJECTS COORDINATO,"12,999.99",2012,"","","","JAWORSKI, KIMBERLY H"
,DEMOCRATIC CAUCUS,2012Q1,PERSONNEL COMPENSATION,"","KISSINGER,JUSTIN A",01/01/12,01/31/12,COUNSEL,-500.00,2012,"","","","KISSINGER,JUSTIN A"
,DEMOCRATIC CAUCUS,2012Q1,PERSONNEL COMPENSATION,"","KISSINGER,JUSTIN A",01/01/12,03/31/12,COUNSEL,"22,500.00",2012,"","","","KISSINGER,JUSTIN A"
,DEMOCRATIC CAUCUS,2012Q1,PERSONNEL COMPENSATION,"","LAWSON, ANITA S",02/01/12,02/29/12,SHARED EMPLOYEE,"2,083.33",2012,"","","","LAWSON, ANITA S"
,DEMOCRATIC CAUCUS,2012Q1,PERSONNEL COMPENSATION,"","LAWSON, ANITA S",03/01/12,03/31/12,FINANCIAL ADMINISTRATOR,"2,083.33",2012,"","","","LAWSON, ANITA S"
,DEMOCRATIC CAUCUS,2012Q1,PERSONNEL COMPENSATION,"","LEE,SYLVIA",01/01/12,01/31/12,STAFF ASSISTANT,-172.22,2012,"","","","LEE,SYLVIA"
,DEMOCRATIC CAUCUS,2012Q1,PERSONNEL COMPENSATION,"","LEE,SYLVIA",01/01/12,03/31/12,STAFF ASSISTANT,"7,749.99",2012,"","","","LEE,SYLVIA"
,DEMOCRATIC CAUCUS,2012Q1,PERSONNEL COMPENSATION,"","MCCLUSKIE,SEAN E",01/01/12,01/31/12,STAFF DIR FOR THE VICE CHAIR,-134.84,2012,"","","","MCCLUSKIE,SEAN E"
,DEMOCRATIC CAUCUS,2012Q1,PERSONNEL COMPENSATION,"","MCCLUSKIE,SEAN E",01/01/12,03/31/12,STAFF DIR FOR THE VICE CHAIR,"16,481.01",2012,"","","","MCCLUSKIE,SEAN E"
,DEMOCRATIC CAUCUS,2012Q1,PERSONNEL COMPENSATION,"","MCMAHON,KYLE A",01/01/12,01/31/12,PRESS ASSISTANT,-161.11,2012,"","","","MCMAHON,KYLE A"
,DEMOCRATIC CAUCUS,2012Q1,PERSONNEL COMPENSATION,"","MCMAHON,KYLE A",01/01/12,03/31/12,PRESS ASSISTANT,"7,750.01",2012,"","","","MCMAHON,KYLE A"
,DEMOCRATIC CAUCUS,2012Q1,PERSONNEL COMPENSATION,"","MORA,JASMINE",01/01/12,01/31/12,PRESS ASST/RESCHR FOR VICE CHR,-219.44,2012,"","","","MORA,JASMINE"
,DEMOCRATIC CAUCUS,2012Q1,PERSONNEL COMPENSATION,"","MORA,JASMINE",01/01/12,03/15/12,PRESS ASST/RESCHR FOR VICE CHR,"8,229.17",2012,"","","","MORA,JASMINE"
,DEMOCRATIC CAUCUS,2012Q1,PERSONNEL COMPENSATION,"","MORA,JASMINE",01/01/12,01/01/12,PRESS ASST/RESCHR FOR VICE CHR (OTHER COMPENSATION),"-3,291.67",2012,"","","","MORA,JASMINE"
,DEMOCRATIC CAUCUS,2012Q1,PERSONNEL COMPENSATION,"","MORA,JASMINE",01/01/12,01/31/12,PRESS ASST/RESCHR FOR VICE CHR (OTHER COMPENSATION),"3,291.67",2012,"","","","MORA,JASMINE"
,DEMOCRATIC CAUCUS,2012Q1,PERSONNEL COMPENSATION,"","PERONACE,ANTONIO",01/01/12,01/31/12,DIR OF MULTIMEDIA COMM AND TEC,-444.44,2012,"","","","PERONACE,ANTONIO"
,DEMOCRATIC CAUCUS,2012Q1,PERSONNEL COMPENSATION,"","PERONACE,ANTONIO",01/01/12,03/31/12,DIR OF MULTIMEDIA COMM AND TEC,"20,000.01",2012,"","","","PERONACE,ANTONIO"
,DEMOCRATIC CAUCUS,2012Q1,PERSONNEL COMPENSATION,"","PLATT,ANDREW J",01/01/12,01/31/12,RESEARCH AND TECHNOLOGY ASST,-194.44,2012,"","","","PLATT,ANDREW J"
,DEMOCRATIC CAUCUS,2012Q1,PERSONNEL COMPENSATION,"","PLATT,ANDREW J",01/01/12,02/29/12,RESEARCH & TECHNOLOGY ASST,"3,111.11",2012,"","","","PLATT,ANDREW J"
,DEMOCRATIC CAUCUS,2012Q1,PERSONNEL COMPENSATION,"","RESENDENZ,MARVENE R",01/01/12,01/31/12,EXECUTIVE ASSISTANT/SCHEDULER,-333.33,2012,"","","","RESENDENZ,MARVENE R"
,DEMOCRATIC CAUCUS,2012Q1,PERSONNEL COMPENSATION,"","RESENDENZ,MARVENE R",01/01/12,03/31/12,EXECUTIVE ASSISTANT/SCHEDULER,"15,000.00",2012,"","","","RESENDENZ,MARVENE R"
,DEMOCRATIC CAUCUS,2012Q1,PERSONNEL COMPENSATION,"","RODRIGUEZ-OLVERA,LORENZO A",01/01/12,01/31/12,MEMBER OUTREACH ASST-VICE CHR,-219.44,2012,"","","","RODRIGUEZ-OLVERA,LORENZO A"
,DEMOCRATIC CAUCUS,2012Q1,PERSONNEL COMPENSATION,"","RODRIGUEZ-OLVERA,LORENZO A",01/01/12,03/31/12,MEMBER OUTREACH ASST-VICE CHR,"9,875.01",2012,"","","","RODRIGUEZ-OLVERA,LORENZO A"
,DEMOCRATIC CAUCUS,2012Q1,PERSONNEL COMPENSATION,"","RODRIGUEZ-OLVERA,LORENZO A",01/01/12,01/01/12,MEMBER OUTREACH ASST-VICE CHR (OTHER COMPENSATION),"-1,008.00",2012,"","","","RODRIGUEZ-OLVERA,LORENZO A"
,DEMOCRATIC CAUCUS,2012Q1,PERSONNEL COMPENSATION,"","RODRIGUEZ-OLVERA,LORENZO A",01/01/12,01/31/12,MEMBER OUTREACH ASST-VICE CHR (OTHER COMPENSATION),"1,008.00",2012,"","","","RODRIGUEZ-OLVERA,LORENZO A"
,DEMOCRATIC CAUCUS,2012Q1,PERSONNEL COMPENSATION,"","RUBINO,SHELLEY M",01/01/12,01/31/12,ADVISOR TO THE CHAIRMAN,-479.17,2012,"","","","RUBINO,SHELLEY M"
,DEMOCRATIC CAUCUS,2012Q1,PERSONNEL COMPENSATION,"","RUBINO,SHELLEY M",01/01/12,03/31/12,ADVISOR TO THE CHAIRMAN,"28,650.00",2012,"","","","RUBINO,SHELLEY M"
,DEMOCRATIC CAUCUS,2012Q1,PERSONNEL COMPENSATION,"","RUDD,DIANA",01/01/12,01/31/12,STAFF ASSISTANT,-172.22,2012,"","","","RUDD,DIANA"
,DEMOCRATIC CAUCUS,2012Q1,PERSONNEL COMPENSATION,"","RUDD,DIANA",01/01/12,03/31/12,STAFF ASSISTANT,"7,749.99",2012,"","","","RUDD,DIANA"
,DEMOCRATIC CAUCUS,2012Q1,PERSONNEL COMPENSATION,"","SHEVLIN IV, GEORGE F",01/01/12,01/31/12,EXECUTIVE DIRECTOR,-958.33,2012,"","","","SHEVLIN IV, GEORGE F"
,DEMOCRATIC CAUCUS,2012Q1,PERSONNEL COMPENSATION,"","SHEVLIN IV, GEORGE F",01/01/12,02/01/12,EXECUTIVE DIRECTOR,"14,854.17",2012,"","","","SHEVLIN IV, GEORGE F"
,DEMOCRATIC CAUCUS,2012Q1,PERSONNEL COMPENSATION,"","SHEVLIN IV, GEORGE F",02/01/12,02/01/12,EXECUTIVE DIRECTOR (OTHER COMPENSATION),"6,229.17",2012,"","","","SHEVLIN IV, GEORGE F"
,DEMOCRATIC CAUCUS,2012Q1,PERSONNEL COMPENSATION,"","SLATER,LEE",01/01/12,01/31/12,SHARED EMPLOYEE,-200.00,2012,"","","","SLATER,LEE"
,DEMOCRATIC CAUCUS,2012Q1,PERSONNEL COMPENSATION,"","SLATER,LEE",01/01/12,03/31/12,SHARED EMPLOYEE,"15,000.00",2012,"","","","SLATER,LEE"
,DEMOCRATIC CAUCUS,2012Q1,TRAVEL,02-08,"BANJAC,SRDAN",01/24/12,01/30/12,CAR RENTAL,"1,656.21",2012,AP,Accounts payable,00372612,"BANJAC,SRDAN"
,DEMOCRATIC CAUCUS,2012Q1,TRAVEL,02-08,"BANJAC,SRDAN",01/24/12,01/28/12,GASOLINE,187.44,2012,AP,Accounts payable,00372613,"BANJAC,SRDAN"
,DEMOCRATIC CAUCUS,2012Q1,TRAVEL,02-16,"RUBINO,SHELLEY M",01/31/12,02/01/12,TAXI/PARKING/TOLLS,30.00,2012,AP,Accounts payable,00378178,"RUBINO,SHELLEY M"
,DEMOCRATIC CAUCUS,2012Q1,TRAVEL,02-16,"RUBINO,SHELLEY M",01/20/12,01/28/12,TRAVEL SUBSISTENCE,136.37,2012,AP,Accounts payable,00378181,"RUBINO,SHELLEY M"
,DEMOCRATIC CAUCUS,2012Q1,TRAVEL,02-22,"RUBINO,SHELLEY M",01/20/12,01/30/12,CAR RENTAL,696.04,2012,AP,Accounts payable,00386402,"RUBINO,SHELLEY M"
,DEMOCRATIC CAUCUS,2012Q1,TRAVEL,02-27,"RUBINO,SHELLEY M",01/22/12,02/15/12,TAXI/PARKING/TOLLS,53.00,2012,AP,Accounts payable,00388920,"RUBINO,SHELLEY M"
,DEMOCRATIC CAUCUS,2012Q1,TRAVEL,03-22,STEPHENS' LIMOUSINE SERVICE LLC,01/25/12,01/27/12,TRAVEL SUBSISTENCE,"12,124.00",2012,AP,Accounts payable,00409541,STEPHENS' LIMOUSINE SERVICE LLC
,DEMOCRATIC CAUCUS,2012Q1,TRAVEL,03-30,"RUBINO,SHELLEY M",02/27/12,02/27/12,TAXI/PARKING/TOLLS,39.30,2012,AP,Accounts payable,00414046,"RUBINO,SHELLEY M"
,DEMOCRATIC CAUCUS,2012Q1,PRINTING AND REPRODUCTION,03-29,"",03/01/12,03/31/12,PHOTOGRAPHIC (TRANSFER),6.40,2012,GL,General ledger,PIX0018025,""
,DEMOCRATIC CAUCUS,2012Q1,OTHER SERVICES,02-01,TV EYES INC,01/01/12,12/31/12,CONSULTANT CONTRACT SERVICE,"1,200.00",2012,AP,Accounts payable,00364839,TV EYES INC
,DEMOCRATIC CAUCUS,2012Q1,OTHER SERVICES,02-17,BOX.NET INC,12/27/11,01/26/12,CONSULTANT CONTRACT SERVICE,100.00,2012,AP,Accounts payable,00378290,BOX.NET INC
,DEMOCRATIC CAUCUS,2012Q1,OTHER SERVICES,03-14,CAPITOL VALET,02/21/12,02/21/12,LAUNDRY SERVICES,84.80,2012,AP,Accounts payable,00399672,CAPITOL VALET
,DEMOCRATIC CAUCUS,2012Q1,SUPPLIES AND MATERIALS,01-31,TAXANALYSTS,01/03/12,01/03/12,PUBLICATIONS/REFERENCE MAT'L,"2,300.00",2012,AP,Accounts payable,00364831,TAXANALYSTS
,DEMOCRATIC CAUCUS,2012Q1,SUPPLIES AND MATERIALS,01-31,BULLETIN NEWS,01/04/12,01/02/13,PUBLICATIONS/REFERENCE MAT'L,"4,245.75",2012,AP,Accounts payable,00364833,BULLETIN NEWS
,DEMOCRATIC CAUCUS,2012Q1,SUPPLIES AND MATERIALS,01-31,"LEADERSHIP DIRECTORIES, INC",01/03/12,01/03/12,PUBLICATIONS/REFERENCE MAT'L,420.00,2012,AP,Accounts payable,00364837,"LEADERSHIP DIRECTORIES, INC"
,DEMOCRATIC CAUCUS,2012Q1,SUPPLIES AND MATERIALS,02-01,POLITICO,01/03/12,01/02/13,PUBLICATIONS/REFERENCE MAT'L,"2,644.70",2012,AP,Accounts payable,00364835,POLITICO
,DEMOCRATIC CAUCUS,2012Q1,SUPPLIES AND MATERIALS,02-01,"RUBINO,SHELLEY M",01/06/12,01/06/12,FOOD & BEVERAGE,8.91,2012,AP,Accounts payable,00364844,"RUBINO,SHELLEY M"
,DEMOCRATIC CAUCUS,2012Q1,SUPPLIES AND MATERIALS,02-01,"BANJAC,SRDAN",01/10/12,01/10/12,OFFICE SUPPLIES (OUTSIDE),126.05,2012,AP,Accounts payable,00364845,"BANJAC,SRDAN"
,DEMOCRATIC CAUCUS,2012Q1,SUPPLIES AND MATERIALS,02-02,"RUBINO,SHELLEY M",01/05/12,01/05/12,FOOD & BEVERAGE,157.00,2012,AP,Accounts payable,00364841,"RUBINO,SHELLEY M"
,DEMOCRATIC CAUCUS,2012Q1,SUPPLIES AND MATERIALS,02-02,"RUBINO,SHELLEY M",01/05/12,01/05/12,FOOD & BEVERAGE,44.56,2012,AP,Accounts payable,00364842,"RUBINO,SHELLEY M"
,DEMOCRATIC CAUCUS,2012Q1,SUPPLIES AND MATERIALS,02-06,CAPITOL VALET,01/04/12,01/04/12,HABITATION EXPENSE,143.10,2012,AP,Accounts payable,00370257,CAPITOL VALET
,DEMOCRATIC CAUCUS,2012Q1,SUPPLIES AND MATERIALS,02-06,"RUBINO,SHELLEY M",01/21/12,01/21/12,FOOD & BEVERAGE,532.14,2012,AP,Accounts payable,00370267,"RUBINO,SHELLEY M"
,DEMOCRATIC CAUCUS,2012Q1,SUPPLIES AND MATERIALS,02-08,"RUBINO,SHELLEY M",01/26/12,01/26/12,FOOD & BEVERAGE,554.40,2012,AP,Accounts payable,00372610,"RUBINO,SHELLEY M"
,DEMOCRATIC CAUCUS,2012Q1,SUPPLIES AND MATERIALS,02-08,"BANJAC,SRDAN",01/24/12,01/24/12,FOOD & BEVERAGE,212.12,2012,AP,Accounts payable,00372611,"BANJAC,SRDAN"
,DEMOCRATIC CAUCUS,2012Q1,SUPPLIES AND MATERIALS,02-10,"RUBINO,SHELLEY M",01/17/12,01/17/12,FOOD & BEVERAGE,94.60,2012,AP,Accounts payable,00370259,"RUBINO,SHELLEY M"
,DEMOCRATIC CAUCUS,2012Q1,SUPPLIES AND MATERIALS,02-10,"RUBINO,SHELLEY M",01/17/12,01/17/12,FOOD & BEVERAGE,23.73,2012,AP,Accounts payable,00370262,"RUBINO,SHELLEY M"
,DEMOCRATIC CAUCUS,2012Q1,SUPPLIES AND MATERIALS,02-16,"RUBINO,SHELLEY M",01/12/12,01/25/12,FOOD & BEVERAGE,"1,135.37",2012,AP,Accounts payable,00378177,"RUBINO,SHELLEY M"
,DEMOCRATIC CAUCUS,2012Q1,SUPPLIES AND MATERIALS,02-16,"RUBINO,SHELLEY M",01/26/12,01/26/12,OFFICE SUPPLIES (OUTSIDE),141.38,2012,AP,Accounts payable,00378179,"RUBINO,SHELLEY M"
,DEMOCRATIC CAUCUS,2012Q1,SUPPLIES AND MATERIALS,02-17,"RUBINO,SHELLEY M",01/31/12,02/05/12,FOOD & BEVERAGE,766.45,2012,AP,Accounts payable,00378285,"RUBINO,SHELLEY M"
,DEMOCRATIC CAUCUS,2012Q1,SUPPLIES AND MATERIALS,02-17,"RUDD, DIANA",01/23/12,01/23/12,FOOD & BEVERAGE,183.32,2012,AP,Accounts payable,00378295,"RUDD, DIANA"
,DEMOCRATIC CAUCUS,2012Q1,SUPPLIES AND MATERIALS,02-27,CAPITOL VALET,02/06/12,02/06/12,HABITATION EXPENSE,84.80,2012,AP,Accounts payable,00388896,CAPITOL VALET
,DEMOCRATIC CAUCUS,2012Q1,SUPPLIES AND MATERIALS,02-27,"RUBINO,SHELLEY M",02/07/12,02/07/12,FOOD & BEVERAGE,527.90,2012,AP,Accounts payable,00388912,"RUBINO,SHELLEY M"
,DEMOCRATIC CAUCUS,2012Q1,SUPPLIES AND MATERIALS,02-27,"RUBINO,SHELLEY M",02/06/12,02/06/12,FOOD & BEVERAGE,158.03,2012,AP,Accounts payable,00388915,"RUBINO,SHELLEY M"
,DEMOCRATIC CAUCUS,2012Q1,SUPPLIES AND MATERIALS,02-27,"PERONACE,ANTONIO",02/06/12,02/06/12,OFFICE SUPPLIES (OUTSIDE),214.06,2012,AP,Accounts payable,00388922,"PERONACE,ANTONIO"
,DEMOCRATIC CAUCUS,2012Q1,SUPPLIES AND MATERIALS,03-07,"RUBINO,SHELLEY M",02/14/12,02/14/12,FOOD & BEVERAGE,427.29,2012,AP,Accounts payable,00394751,"RUBINO,SHELLEY M"
,DEMOCRATIC CAUCUS,2012Q1,SUPPLIES AND MATERIALS,03-07,"RUBINO,SHELLEY M",02/15/12,02/15/12,FOOD & BEVERAGE,70.32,2012,AP,Accounts payable,00394754,"RUBINO,SHELLEY M"
,DEMOCRATIC CAUCUS,2012Q1,SUPPLIES AND MATERIALS,03-07,"RUBINO,SHELLEY M",02/09/12,02/09/12,FOOD & BEVERAGE,19.56,2012,AP,Accounts payable,00394757,"RUBINO,SHELLEY M"
,DEMOCRATIC CAUCUS,2012Q1,SUPPLIES AND MATERIALS,03-07,"RUBINO,SHELLEY M",02/16/12,02/16/12,FOOD & BEVERAGE,557.17,2012,AP,Accounts payable,00394762,"RUBINO,SHELLEY M"
,DEMOCRATIC CAUCUS,2012Q1,SUPPLIES AND MATERIALS,03-14,HYATT REGENCY CHESAPEAKE BAY,01/24/12,01/26/12,MISC. SUPPLIES & MATERIALS,"71,280.21",2012,AP,Accounts payable,00395559,HYATT REGENCY CHESAPEAKE BAY
,DEMOCRATIC CAUCUS,2012Q1,SUPPLIES AND MATERIALS,03-14,"RUBINO,SHELLEY M",02/27/12,02/27/12,FOOD & BEVERAGE,187.08,2012,AP,Accounts payable,00399676,"RUBINO,SHELLEY M"
,DEMOCRATIC CAUCUS,2012Q1,SUPPLIES AND MATERIALS,03-14,"KISSINGER,JUSTIN A",01/24/12,01/24/12,OFFICE SUPPLIES (OUTSIDE),118.72,2012,AP,Accounts payable,00399680,"KISSINGER,JUSTIN A"
,DEMOCRATIC CAUCUS,2012Q1,SUPPLIES AND MATERIALS,03-14,CTH DESIGNS,01/04/12,01/04/12,MISC. SUPPLIES & MATERIALS,"4,607.86",2012,AP,Accounts payable,00399687,CTH DESIGNS
,DEMOCRATIC CAUCUS,2012Q1,SUPPLIES AND MATERIALS,03-15,VICTOR ADVERTISING SERVICE LLC,02/07/12,02/07/12,OFFICE SUPPLIES (OUTSIDE),"8,072.76",2012,AP,Accounts payable,00400919,VICTOR ADVERTISING SERVICE LLC
,DEMOCRATIC CAUCUS,2012Q1,SUPPLIES AND MATERIALS,03-22,"RUBINO,SHELLEY M",02/15/12,02/15/12,FOOD & BEVERAGE,568.18,2012,AP,Accounts payable,00407308,"RUBINO,SHELLEY M"
,DEMOCRATIC CAUCUS,2012Q1,SUPPLIES AND MATERIALS,03-22,"RUBINO,SHELLEY M",03/03/12,03/03/12,FOOD & BEVERAGE,603.16,2012,AP,Accounts payable,00407310,"RUBINO,SHELLEY M"
,DEMOCRATIC CAUCUS,2012Q1,SUPPLIES AND MATERIALS,03-22,"RUBINO,SHELLEY M",03/03/12,03/03/12,FOOD & BEVERAGE,25.44,2012,AP,Accounts payable,00407312,"RUBINO,SHELLEY M"
,DEMOCRATIC CAUCUS,2012Q1,SUPPLIES AND MATERIALS,03-22,"RUBINO,SHELLEY M",03/03/12,03/03/12,FOOD & BEVERAGE,78.44,2012,AP,Accounts payable,00407319,"RUBINO,SHELLEY M"
,DEMOCRATIC CAUCUS,2012Q1,SUPPLIES AND MATERIALS,03-30,CAPITOL VALET,03/15/12,03/15/12,HABITATION EXPENSE,84.80,2012,AP,Accounts payable,00414060,CAPITOL VALET
,REPUBLICAN CONFERENCE,2012Q1,PERSONNEL COMPENSATION,"","BROWN, CHELSEA E",01/01/12,01/31/12,DIR OPS/DEP DIR MBR SERV&EVENT,-472.22,2012,"","","","BROWN, CHELSEA E"
,REPUBLICAN CONFERENCE,2012Q1,PERSONNEL COMPENSATION,"","BROWN, CHELSEA E",01/01/12,03/31/12,DIR OPS/DEP DIR MBR SERV&EVENT,"21,249.99",2012,"","","","BROWN, CHELSEA E"
,REPUBLICAN CONFERENCE,2012Q1,PERSONNEL COMPENSATION,"","BUCHANAN, MICHAEL D",01/01/12,01/31/12,CHIEF OF STAFF (STATUTORY),-958.33,2012,"","","","BUCHANAN, MICHAEL D"
,REPUBLICAN CONFERENCE,2012Q1,PERSONNEL COMPENSATION,"","BUCHANAN, MICHAEL D",01/01/12,03/31/12,CHIEF OF STAFF (STATUTORY),"43,125.00",2012,"","","","BUCHANAN, MICHAEL D"
,REPUBLICAN CONFERENCE,2012Q1,PERSONNEL COMPENSATION,"","COLLIGAN,DYLAN H",01/01/12,01/31/12,STAFF ASSISTANT,-166.67,2012,"","","","COLLIGAN,DYLAN H"
,REPUBLICAN CONFERENCE,2012Q1,PERSONNEL COMPENSATION,"","COLLIGAN,DYLAN H",01/01/12,03/31/12,STAFF ASSISTANT,"7,500.00",2012,"","","","COLLIGAN,DYLAN H"
,REPUBLICAN CONFERENCE,2012Q1,PERSONNEL COMPENSATION,"","HESTER,THOMAS M",02/10/12,03/31/12,STAFF ASSISTANT,"4,250.00",2012,"","","","HESTER,THOMAS M"
,REPUBLICAN CONFERENCE,2012Q1,PERSONNEL COMPENSATION,"","HILER,JONATHAN D",01/01/12,01/31/12,POLICY ADVISOR,-294.44,2012,"","","","HILER,JONATHAN D"
,REPUBLICAN CONFERENCE,2012Q1,PERSONNEL COMPENSATION,"","HILER,JONATHAN D",01/01/12,03/31/12,POLICY ADVISOR,"13,250.01",2012,"","","","HILER,JONATHAN D"
,REPUBLICAN CONFERENCE,2012Q1,PERSONNEL COMPENSATION,"","KLINGLER,HANS J",01/01/12,01/31/12,DEPUTY CHIEF OF STAFF,-847.22,2012,"","","","KLINGLER,HANS J"
,REPUBLICAN CONFERENCE,2012Q1,PERSONNEL COMPENSATION,"","KLINGLER,HANS J",01/01/12,03/31/12,DEPUTY CHIEF OF STAFF,"38,124.99",2012,"","","","KLINGLER,HANS J"
,REPUBLICAN CONFERENCE,2012Q1,PERSONNEL COMPENSATION,"","KOENIG,ANDREW D",01/01/12,01/31/12,DEPUTY POLICY DIRECTOR,-416.67,2012,"","","","KOENIG,ANDREW D"
,REPUBLICAN CONFERENCE,2012Q1,PERSONNEL COMPENSATION,"","KOENIG,ANDREW D",01/01/12,03/31/12,DEPUTY POLICY DIRECTOR,"18,750.00",2012,"","","","KOENIG,ANDREW D"
,REPUBLICAN CONFERENCE,2012Q1,PERSONNEL COMPENSATION,"","MAKIN, SARAH E",01/01/12,01/31/12,"SR POL ADV, DIR OF COALITIONS",-372.22,2012,"","","","MAKIN, SARAH E"
,REPUBLICAN CONFERENCE,2012Q1,PERSONNEL COMPENSATION,"","MAKIN, SARAH E",01/01/12,03/31/12,"SR POL ADV, DIR OF COALITIONS","16,749.99",2012,"","","","MAKIN, SARAH E"
,REPUBLICAN CONFERENCE,2012Q1,PERSONNEL COMPENSATION,"","MCGAHN, SHANNON",01/01/12,01/31/12,COMMUNICATIONS DIRECTOR,-777.78,2012,"","","","MCGAHN, SHANNON"
,REPUBLICAN CONFERENCE,2012Q1,PERSONNEL COMPENSATION,"","MCGAHN, SHANNON",01/01/12,02/24/12,COMMUNICATIONS DIRECTOR,"21,000.00",2012,"","","","MCGAHN, SHANNON"
,REPUBLICAN CONFERENCE,2012Q1,PERSONNEL COMPENSATION,"","MEEKS,DARIS",01/01/12,01/31/12,POLICY DIRECTOR,-555.56,2012,"","","","MEEKS,DARIS"
,REPUBLICAN CONFERENCE,2012Q1,PERSONNEL COMPENSATION,"","MEEKS,DARIS",01/01/12,03/31/12,POLICY DIRECTOR,"24,999.99",2012,"","","","MEEKS,DARIS"
,REPUBLICAN CONFERENCE,2012Q1,PERSONNEL COMPENSATION,"","PATRU, KATHRYN M",01/01/12,01/31/12,DIR OF MEMBER SERVICES,-777.78,2012,"","","","PATRU, KATHRYN M"
,REPUBLICAN CONFERENCE,2012Q1,PERSONNEL COMPENSATION,"","PATRU, KATHRYN M",01/01/12,03/31/12,DIR OF MEMBER SERVICES,"35,000.01",2012,"","","","PATRU, KATHRYN M"
,REPUBLICAN CONFERENCE,2012Q1,PERSONNEL COMPENSATION,"","PINEGAR,PHILLIP",01/01/12,01/31/12,STAFF ASSISTANT,-166.67,2012,"","","","PINEGAR,PHILLIP"
,REPUBLICAN CONFERENCE,2012Q1,PERSONNEL COMPENSATION,"","PINEGAR,PHILLIP",01/01/12,03/31/12,STAFF ASSISTANT,"7,500.00",2012,"","","","PINEGAR,PHILLIP"
,REPUBLICAN CONFERENCE,2012Q1,PERSONNEL COMPENSATION,"","POPP, DAVID M",01/01/12,01/31/12,DEPUTY COMMUNICATIONS DIRECTOR,-361.11,2012,"","","","POPP, DAVID M"
,REPUBLICAN CONFERENCE,2012Q1,PERSONNEL COMPENSATION,"","POPP, DAVID M",01/01/12,03/31/12,DEPUTY COMMUNICATIONS DIRECTOR,"16,250.01",2012,"","","","POPP, DAVID M"
,REPUBLICAN CONFERENCE,2012Q1,PERSONNEL COMPENSATION,"","PUSKAR,JOHN E",01/01/12,01/20/12,STAFF ASSISTANT,"1,666.67",2012,"","","","PUSKAR,JOHN E"
,REPUBLICAN CONFERENCE,2012Q1,PERSONNEL COMPENSATION,"","PUSKAR,JOHN E",01/01/12,01/31/12,STAFF ASSISTANT,-111.11,2012,"","","","PUSKAR,JOHN E"
,REPUBLICAN CONFERENCE,2012Q1,PERSONNEL COMPENSATION,"","QUALTERE,THOMAS A",01/01/12,01/31/12,SPEECHWRITER,-233.33,2012,"","","","QUALTERE,THOMAS A"
,REPUBLICAN CONFERENCE,2012Q1,PERSONNEL COMPENSATION,"","QUALTERE,THOMAS A",01/01/12,03/31/12,SPEECHWRITER,"10,500.00",2012,"","","","QUALTERE,THOMAS A"
,REPUBLICAN CONFERENCE,2012Q1,PERSONNEL COMPENSATION,"","RABBITT,CAROLINE",01/01/12,01/31/12,DEPUTY PRESS SECRETARY,-233.33,2012,"","","","RABBITT,CAROLINE"
,REPUBLICAN CONFERENCE,2012Q1,PERSONNEL COMPENSATION,"","RABBITT,CAROLINE",01/01/12,03/31/12,DEPUTY PRESS SECRETARY,"10,500.00",2012,"","","","RABBITT,CAROLINE"
,REPUBLICAN CONFERENCE,2012Q1,PERSONNEL COMPENSATION,"","ROSENFELD,DAVID M",01/01/12,01/31/12,SENIOR HEALTH COUNSEL,-333.33,2012,"","","","ROSENFELD,DAVID M"
,REPUBLICAN CONFERENCE,2012Q1,PERSONNEL COMPENSATION,"","ROSENFELD,DAVID M",01/01/12,03/31/12,SENIOR HEALTH COUNSEL,"15,000.00",2012,"","","","ROSENFELD,DAVID M"
,REPUBLICAN CONFERENCE,2012Q1,PERSONNEL COMPENSATION,"","SUTTON,CLAY",01/01/12,01/31/12,PRESS ASSISTANT,-166.67,2012,"","","","SUTTON,CLAY"
,REPUBLICAN CONFERENCE,2012Q1,PERSONNEL COMPENSATION,"","SUTTON,CLAY",01/01/12,03/31/12,PRESS ASSISTANT,"7,500.00",2012,"","","","SUTTON,CLAY"
,REPUBLICAN CONFERENCE,2012Q1,PERSONNEL COMPENSATION,"","TOMBERLIN, MICHAEL",02/10/12,03/31/12,SENIOR ADVISOR,"11,976.64",2012,"","","","TOMBERLIN, MICHAEL"
,REPUBLICAN CONFERENCE,2012Q1,TRAVEL,02-23,"MAKIN, SARAH E",02/08/12,02/08/12,TAXI/PARKING/TOLLS,20.00,2012,AP,Accounts payable,00386911,"MAKIN, SARAH E"
,REPUBLICAN CONFERENCE,2012Q1,TRAVEL,02-23,"MAKIN, SARAH E",01/25/12,01/25/12,TAXI/PARKING/TOLLS,7.00,2012,AP,Accounts payable,00386913,"MAKIN, SARAH E"
,REPUBLICAN CONFERENCE,2012Q1,"RENT, COMMUNICATION, UTILITIES",01-24,TODD SCOGGINS PRODUCTIONS,01/08/12,01/08/12,RECORDING (OUTSIDE),750.00,2012,AP,Accounts payable,00361433,TODD SCOGGINS PRODUCTIONS
,REPUBLICAN CONFERENCE,2012Q1,"RENT, COMMUNICATION, UTILITIES",02-02,AGE PRODUCTIONS,01/05/12,01/05/12,RECORDING (OUTSIDE),"1,250.00",2012,AP,Accounts payable,00369334,AGE PRODUCTIONS
,REPUBLICAN CONFERENCE,2012Q1,"RENT, COMMUNICATION, UTILITIES",03-14,"BUCHANAN, MICHAEL D",02/24/12,02/24/12,TELECOMSRV/EQ/TOLL CHARGE,9.95,2012,AP,Accounts payable,00399653,"BUCHANAN, MICHAEL D"
,REPUBLICAN CONFERENCE,2012Q1,PRINTING AND REPRODUCTION,03-14,ACCURATE WORD LLC,02/15/12,02/15/12,PRINTING & REPRODUCTION,61.85,2012,AP,Accounts payable,00399646,ACCURATE WORD LLC
,REPUBLICAN CONFERENCE,2012Q1,OTHER SERVICES,02-15,CITIBANK P CARD,12/29/11,01/28/12,NON-TECHNOLOGY SERVICE CONTR,5.95,2012,AP,Accounts payable,00378659,CITIBANK P CARD
,REPUBLICAN CONFERENCE,2012Q1,SUPPLIES AND MATERIALS,02-02,"COLLIGAN, DYLAN H",01/23/12,01/23/12,FOOD & BEVERAGE,49.46,2012,AP,Accounts payable,00369341,"COLLIGAN, DYLAN H"
,REPUBLICAN CONFERENCE,2012Q1,SUPPLIES AND MATERIALS,02-15,CITIBANK P CARD,12/29/11,01/28/12,FOOD & BEVERAGE,414.74,2012,AP,Accounts payable,00378659,CITIBANK P CARD
,REPUBLICAN CONFERENCE,2012Q1,SUPPLIES AND MATERIALS,02-15,CITIBANK P CARD,12/29/11,01/28/12,PUBLICATIONS/REFERENCE MAT'L,15.90,2012,AP,Accounts payable,00378659,CITIBANK P CARD
,REPUBLICAN CONFERENCE,2012Q1,SUPPLIES AND MATERIALS,02-16,"BROWN, CHELSEA E",02/08/12,02/08/12,FOOD & BEVERAGE,162.83,2012,AP,Accounts payable,00377225,"BROWN, CHELSEA E"
,REPUBLICAN CONFERENCE,2012Q1,SUPPLIES AND MATERIALS,02-16,"BROWN, CHELSEA E",02/06/12,02/06/12,FOOD & BEVERAGE,720.66,2012,AP,Accounts payable,00377235,"BROWN, CHELSEA E"
,REPUBLICAN CONFERENCE,2012Q1,SUPPLIES AND MATERIALS,02-16,"BROWN, CHELSEA E",02/10/12,02/10/12,FOOD & BEVERAGE,250.32,2012,AP,Accounts payable,00379198,"BROWN, CHELSEA E"
,REPUBLICAN CONFERENCE,2012Q1,SUPPLIES AND MATERIALS,02-22,"BUCHANAN, MICHAEL D",02/14/12,02/14/12,FOOD & BEVERAGE,"2,066.90",2012,AP,Accounts payable,00385935,"BUCHANAN, MICHAEL D"
,REPUBLICAN CONFERENCE,2012Q1,SUPPLIES AND MATERIALS,02-23,"BROWN, CHELSEA E",02/08/12,02/08/12,OFFICE SUPPLIES (OUTSIDE),83.56,2012,AP,Accounts payable,00386908,"BROWN, CHELSEA E"
,REPUBLICAN CONFERENCE,2012Q1,SUPPLIES AND MATERIALS,02-23,"COLLIGAN, DYLAN H",02/13/12,02/13/12,FOOD & BEVERAGE,80.00,2012,AP,Accounts payable,00386917,"COLLIGAN, DYLAN H"
,REPUBLICAN CONFERENCE,2012Q1,SUPPLIES AND MATERIALS,02-24,CAPITOLHOST,01/31/12,01/31/12,FOOD & BEVERAGE,385.20,2012,AP,Accounts payable,00387967,CAPITOLHOST
,REPUBLICAN CONFERENCE,2012Q1,SUPPLIES AND MATERIALS,02-24,CAPITOLHOST,01/25/12,01/25/12,FOOD & BEVERAGE,963.00,2012,AP,Accounts payable,00387970,CAPITOLHOST
,REPUBLICAN CONFERENCE,2012Q1,SUPPLIES AND MATERIALS,02-24,CAPITOLHOST,01/24/12,01/24/12,FOOD & BEVERAGE,740.00,2012,AP,Accounts payable,00387975,CAPITOLHOST
,REPUBLICAN CONFERENCE,2012Q1,SUPPLIES AND MATERIALS,02-24,CAPITOLHOST,01/24/12,01/24/12,FOOD & BEVERAGE,740.00,2012,AP,Accounts payable,00387981,CAPITOLHOST
,REPUBLICAN CONFERENCE,2012Q1,SUPPLIES AND MATERIALS,02-24,"BROWN, CHELSEA E",02/17/12,02/17/12,FOOD & BEVERAGE,283.93,2012,AP,Accounts payable,00387986,"BROWN, CHELSEA E"
,REPUBLICAN CONFERENCE,2012Q1,SUPPLIES AND MATERIALS,03-14,CAPITOL HOST,02/15/12,02/15/12,FOOD & BEVERAGE,740.00,2012,AP,Accounts payable,00399648,CAPITOL HOST
,REPUBLICAN CONFERENCE,2012Q1,SUPPLIES AND MATERIALS,03-14,"SHADOW TV, INC",04/01/12,06/30/12,PUBLICATIONS/REFERENCE MAT'L,"1,500.00",2012,AP,Accounts payable,00399655,"SHADOW TV, INC"
,REPUBLICAN CONFERENCE,2012Q1,SUPPLIES AND MATERIALS,03-15,CITIBANK P CARD,01/29/12,02/28/12,FOOD & BEVERAGE,"1,001.60",2012,AP,Accounts payable,00400841,CITIBANK P CARD
,OFFICE OF THE SPEAKER,2012Q1,PERSONNEL COMPENSATION,02-29,"",10/01/11,12/31/11,NON-STATUTORY COMPENSATION,"193,874.97",FISCAL YEAR 2012,GL,General ledger,PAD0017180,""
,OFFICE OF THE SPEAKER,2012Q1,PERSONNEL COMPENSATION,"","CASSIDY, ED",01/01/12,01/02/12,DIRECTOR OF HOUSE OPERATIONS,933.33,FISCAL YEAR 2012,"","","","CASSIDY, ED"
,OFFICE OF THE SPEAKER,2012Q1,PERSONNEL COMPENSATION,"","CATANZARO,MICHAEL J",01/01/12,01/02/12,ASST TO THE SPEAKER FOR POLICY,933.33,FISCAL YEAR 2012,"","","","CATANZARO,MICHAEL J"
,OFFICE OF THE SPEAKER,2012Q1,PERSONNEL COMPENSATION,"","GREEN, JO-MARIE S",01/01/12,01/02/12,GEN COUNSEL & CHIEF OF LEG OPS,955.56,FISCAL YEAR 2012,"","","","GREEN, JO-MARIE S"
,OFFICE OF THE SPEAKER,2012Q1,PERSONNEL COMPENSATION,"","JACKSON,BARRY S",01/01/12,01/02/12,CHIEF OF STAFF,958.33,FISCAL YEAR 2012,"","","","JACKSON,BARRY S"
,OFFICE OF THE SPEAKER,2012Q1,PERSONNEL COMPENSATION,"","KOLEGO, TREVOR W",01/01/12,01/02/12,DEPUTY DIR MEMBER SERVICES,722.22,FISCAL YEAR 2012,"","","","KOLEGO, TREVOR W"
,OFFICE OF THE SPEAKER,2012Q1,PERSONNEL COMPENSATION,"","LOPER,BRETT S",01/01/12,01/02/12,POLICY DIRECTOR,955.56,FISCAL YEAR 2012,"","","","LOPER,BRETT S"
,OFFICE OF THE SPEAKER,2012Q1,PERSONNEL COMPENSATION,"","PIERSON, JAY",01/01/12,01/02/12,FLOOR ASSISTANT,935.56,FISCAL YEAR 2012,"","","","PIERSON, JAY"
,OFFICE OF THE SPEAKER,2012Q1,PERSONNEL COMPENSATION,"","PORTER, EMILY S",01/01/12,01/02/12,ASST TO THE SPEAKER FOR POLICY,611.11,FISCAL YEAR 2012,"","","","PORTER, EMILY S"
,OFFICE OF THE SPEAKER,2012Q1,PERSONNEL COMPENSATION,"","RICCI,MICHAEL",01/01/12,01/02/12,DIRECTOR OF SPEECHWRITING,700.00,FISCAL YEAR 2012,"","","","RICCI,MICHAEL"
,OFFICE OF THE SPEAKER,2012Q1,PERSONNEL COMPENSATION,"","ROGERS, GEORGE R",01/01/12,01/02/12,ASST TO THE SPEAKER FOR POLICY,833.33,FISCAL YEAR 2012,"","","","ROGERS, GEORGE R"
,OFFICE OF THE SPEAKER,2012Q1,PERSONNEL COMPENSATION,"","SCHNITTGER, DAVID M",01/01/12,01/02/12,"DEP CHIEF OF STAFF,COMMUN OPS",958.33,FISCAL YEAR 2012,"","","","SCHNITTGER, DAVID M"
,OFFICE OF THE SPEAKER,2012Q1,PERSONNEL COMPENSATION,"","SMITH, KEVIN",01/01/12,01/02/12,DIRECTOR OF COMMUNICATIONS,863.89,FISCAL YEAR 2012,"","","","SMITH, KEVIN"
,OFFICE OF THE SPEAKER,2012Q1,PERSONNEL COMPENSATION,"","SOMMERS, MICHAEL J",01/01/12,01/02/12,DEP CHIEF OF STAF FOR LEAD OPS,958.33,FISCAL YEAR 2012,"","","","SOMMERS, MICHAEL J"
,OFFICE OF THE SPEAKER,2012Q1,PERSONNEL COMPENSATION,"","STEWART, JENNIFER M",01/01/12,01/02/12,ASST TO SPEAKER FOR POLICY,611.11,FISCAL YEAR 2012,"","","","STEWART, JENNIFER M"
,OFFICE OF THE SPEAKER,2012Q1,PERSONNEL COMPENSATION,02-29,"",10/01/11,12/31/11,NON-STATUTORY COMPENSATION,"190,912.53",FISCAL YEAR 2012,GL,General ledger,PAD0017180,""
,OFFICE OF THE SPEAKER,2012Q1,PERSONNEL COMPENSATION,"","ANDRES, ELIZABETH G",01/01/12,01/02/12,DIRECTOR OF ADVANCE,416.11,FISCAL YEAR 2012,"","","","ANDRES, ELIZABETH G"
,OFFICE OF THE SPEAKER,2012Q1,PERSONNEL COMPENSATION,"","ANDREWS,THOMAS S",01/01/12,01/02/12,SENIOR STAFF ASSISTANT,177.78,FISCAL YEAR 2012,"","","","ANDREWS,THOMAS S"
,OFFICE OF THE SPEAKER,2012Q1,PERSONNEL COMPENSATION,"","ANDREWS,THOMAS S",12/01/11,12/31/11,SENIOR STAFF ASSISTANT (OVERTIME),519.22,FISCAL YEAR 2012,"","","","ANDREWS,THOMAS S"
,OFFICE OF THE SPEAKER,2012Q1,PERSONNEL COMPENSATION,"","AVONDOGLIO,BRYANT J",01/01/12,01/02/12,ADVANCE & DIGITAL PRODUC MGR,444.44,FISCAL YEAR 2012,"","","","AVONDOGLIO,BRYANT J"
,OFFICE OF THE SPEAKER,2012Q1,PERSONNEL COMPENSATION,"","BARNETT,MITCHELL H",01/01/12,01/02/12,SHARED EMPLOYEE,277.78,FISCAL YEAR 2012,"","","","BARNETT,MITCHELL H"
,OFFICE OF THE SPEAKER,2012Q1,PERSONNEL COMPENSATION,"","BECKER,ALEXANDER M",01/01/12,01/02/12,STAFF ASSISTANT,155.56,FISCAL YEAR 2012,"","","","BECKER,ALEXANDER M"
,OFFICE OF THE SPEAKER,2012Q1,PERSONNEL COMPENSATION,"","BECKER,ALEXANDER M",12/01/11,12/31/11,STAFF ASSISTANT (OVERTIME),262.50,FISCAL YEAR 2012,"","","","BECKER,ALEXANDER M"
,OFFICE OF THE SPEAKER,2012Q1,PERSONNEL COMPENSATION,"","BELAIR, BRENDAN M",01/01/12,01/02/12,SHARED EMPLOYEE,444.44,FISCAL YEAR 2012,"","","","BELAIR, BRENDAN M"
,OFFICE OF THE SPEAKER,2012Q1,PERSONNEL COMPENSATION,"","BENJAMIN, WILLIAM C",01/01/12,01/02/12,DIR OF INFORMATION TECHNOLOGY,516.67,FISCAL YEAR 2012,"","","","BENJAMIN, WILLIAM C"
,OFFICE OF THE SPEAKER,2012Q1,PERSONNEL COMPENSATION,"","BLAKE,KRISTENE",01/01/12,01/02/12,EXECUTIVE ASSISTANT,333.33,FISCAL YEAR 2012,"","","","BLAKE,KRISTENE"
,OFFICE OF THE SPEAKER,2012Q1,PERSONNEL COMPENSATION,"","BOYD,KATHRYN E",01/01/12,01/02/12,ASST COMMUNICATIONS DIRECTOR,444.44,FISCAL YEAR 2012,"","","","BOYD,KATHRYN E"
,OFFICE OF THE SPEAKER,2012Q1,PERSONNEL COMPENSATION,"","BUCK, BRENDAN K",01/01/12,01/02/12,PRESS SECRETARY,638.89,FISCAL YEAR 2012,"","","","BUCK, BRENDAN K"
,OFFICE OF THE SPEAKER,2012Q1,PERSONNEL COMPENSATION,"","CHAPLIN, KRISTEN F",01/01/12,01/02/12,DIR OF SCHEDLNG & SPEC EVENTS,541.67,FISCAL YEAR 2012,"","","","CHAPLIN, KRISTEN F"
,OFFICE OF THE SPEAKER,2012Q1,PERSONNEL COMPENSATION,"","DESTEFANO,JOHN",01/01/12,01/02/12,SR ADVISOR FOR MEMBER SERVICES,916.67,FISCAL YEAR 2012,"","","","DESTEFANO,JOHN"
,OFFICE OF THE SPEAKER,2012Q1,PERSONNEL COMPENSATION,"","DEUTSCH,JEREMY",01/01/12,01/02/12,SHARED EMPLOYEE,444.44,FISCAL YEAR 2012,"","","","DEUTSCH,JEREMY"
,OFFICE OF THE SPEAKER,2012Q1,PERSONNEL COMPENSATION,"","ECKARD,NASTASHA",01/01/12,01/02/12,LEGISLATIVE ASSISTANT,288.89,FISCAL YEAR 2012,"","","","ECKARD,NASTASHA"
,OFFICE OF THE SPEAKER,2012Q1,PERSONNEL COMPENSATION,"","EICHHORN, JARED D",01/01/12,01/02/12,FLOOR ASSISTANT,266.67,FISCAL YEAR 2012,"","","","EICHHORN, JARED D"
,OFFICE OF THE SPEAKER,2012Q1,PERSONNEL COMPENSATION,"","FINNEGAN,PATRICK",01/01/12,01/02/12,HOUSE OPERATIONS ASSISTANT,222.22,FISCAL YEAR 2012,"","","","FINNEGAN,PATRICK"
,OFFICE OF THE SPEAKER,2012Q1,PERSONNEL COMPENSATION,"","GILLESPIE,MAURA M",01/01/12,01/02/12,STAFF ASSISTANT,155.56,FISCAL YEAR 2012,"","","","GILLESPIE,MAURA M"
,OFFICE OF THE SPEAKER,2012Q1,PERSONNEL COMPENSATION,"","GILLESPIE,MAURA M",12/01/11,12/31/11,STAFF ASSISTANT (OVERTIME),555.28,FISCAL YEAR 2012,"","","","GILLESPIE,MAURA M"
,OFFICE OF THE SPEAKER,2012Q1,PERSONNEL COMPENSATION,"","GREENE,WILLIAM P",01/01/12,01/02/12,DIRECTOR-OUTREACH,751.67,FISCAL YEAR 2012,"","","","GREENE,WILLIAM P"
,OFFICE OF THE SPEAKER,2012Q1,PERSONNEL COMPENSATION,"","HALEY, KATHERINE C",01/01/12,01/02/12,ASST TO SPEAKER FOR POLICY,491.67,FISCAL YEAR 2012,"","","","HALEY, KATHERINE C"
,OFFICE OF THE SPEAKER,2012Q1,PERSONNEL COMPENSATION,"","HARROUN, TIMOTHY J",01/01/12,01/02/12,MANAGER REPUBLICAN CLOAKROOM,739.72,FISCAL YEAR 2012,"","","","HARROUN, TIMOTHY J"
,OFFICE OF THE SPEAKER,2012Q1,PERSONNEL COMPENSATION,"","HERRLE, CYNTHIA A",01/01/12,01/02/12,ASST TO THE SPEAKER FOR POLICY,790.00,FISCAL YEAR 2012,"","","","HERRLE, CYNTHIA A"
,OFFICE OF THE SPEAKER,2012Q1,PERSONNEL COMPENSATION,"","HUTCHESON,NATHANIEL J",01/01/12,01/02/12,FLOOR ASSISTANT,222.22,FISCAL YEAR 2012,"","","","HUTCHESON,NATHANIEL J"
,OFFICE OF THE SPEAKER,2012Q1,PERSONNEL COMPENSATION,"","KAMIS,KYLA M",01/01/12,01/02/12,"PROFESSIONAL STAFF MEMBER, O&I",222.22,FISCAL YEAR 2012,"","","","KAMIS,KYLA M"
,OFFICE OF THE SPEAKER,2012Q1,PERSONNEL COMPENSATION,"","KINZEL,WILL C",01/01/12,01/02/12,ASST TO THE SPEAKER FOR POLICY,635.56,FISCAL YEAR 2012,"","","","KINZEL,WILL C"
,OFFICE OF THE SPEAKER,2012Q1,PERSONNEL COMPENSATION,"","LAMPERT,JUSTIN",01/01/12,01/02/12,RESEARCH ASSISTANT,250.00,FISCAL YEAR 2012,"","","","LAMPERT,JUSTIN"
,OFFICE OF THE SPEAKER,2012Q1,PERSONNEL COMPENSATION,"","LOLLI,TIMOTHY R",01/01/12,01/02/12,STAFF ASSISTANT,166.67,FISCAL YEAR 2012,"","","","LOLLI,TIMOTHY R"
,OFFICE OF THE SPEAKER,2012Q1,PERSONNEL COMPENSATION,"","LOLLI,TIMOTHY R",12/01/11,12/31/11,STAFF ASSISTANT (OVERTIME),162.26,FISCAL YEAR 2012,"","","","LOLLI,TIMOTHY R"
,OFFICE OF THE SPEAKER,2012Q1,PERSONNEL COMPENSATION,"","LOZUPONE, AMY S",01/01/12,01/02/12,DIR OF ADMIN OPERATIONS,794.44,FISCAL YEAR 2012,"","","","LOZUPONE, AMY S"
,OFFICE OF THE SPEAKER,2012Q1,PERSONNEL COMPENSATION,"","LUKEMAN,KATHERINE A",01/01/12,01/02/12,ASSOCIATE COUNSEL,288.89,FISCAL YEAR 2012,"","","","LUKEMAN,KATHERINE A"
,OFFICE OF THE SPEAKER,2012Q1,PERSONNEL COMPENSATION,"","MACDONALD, B",01/01/12,01/02/12,SHARED EMPLOYEE,444.44,FISCAL YEAR 2012,"","","","MACDONALD, B"
,OFFICE OF THE SPEAKER,2012Q1,PERSONNEL COMPENSATION,"","MINKLER,ANN W",01/01/12,01/02/12,STAFF ASSISTANT,155.56,FISCAL YEAR 2012,"","","","MINKLER,ANN W"
,OFFICE OF THE SPEAKER,2012Q1,PERSONNEL COMPENSATION,"","MINKLER,ANN W",12/01/11,12/31/11,STAFF ASSISTANT (OVERTIME),312.98,FISCAL YEAR 2012,"","","","MINKLER,ANN W"
,OFFICE OF THE SPEAKER,2012Q1,PERSONNEL COMPENSATION,"","PROPP,ELIZABETH R",01/01/12,01/02/12,DEPUTY PRESS SECRETARY,316.67,FISCAL YEAR 2012,"","","","PROPP,ELIZABETH R"
,OFFICE OF THE SPEAKER,2012Q1,PERSONNEL COMPENSATION,"","REED, HEATHER E",01/01/12,01/02/12,ASSISTANT PRESS SECRETARY,250.00,FISCAL YEAR 2012,"","","","REED, HEATHER E"
,OFFICE OF THE SPEAKER,2012Q1,PERSONNEL COMPENSATION,"","REED, MARY K",01/01/12,01/02/12,SHARED EMPLOYEE,180.56,FISCAL YEAR 2012,"","","","REED, MARY K"
,OFFICE OF THE SPEAKER,2012Q1,PERSONNEL COMPENSATION,"","SAGER,MICHAEL J",01/01/12,01/02/12,SYSTEMS ADMINISTRATOR,444.44,FISCAL YEAR 2012,"","","","SAGER,MICHAEL J"
,OFFICE OF THE SPEAKER,2012Q1,PERSONNEL COMPENSATION,"","SAUNDERS,GRANT H",01/01/12,01/02/12,MEMBER SERVICES MANAGER,238.89,FISCAL YEAR 2012,"","","","SAUNDERS,GRANT H"
,OFFICE OF THE SPEAKER,2012Q1,PERSONNEL COMPENSATION,"","SEYMOUR JR, DONALD P",01/01/12,01/02/12,DIGITAL COMMUNICATIONS DIRECTO,727.78,FISCAL YEAR 2012,"","","","SEYMOUR JR, DONALD P"
,OFFICE OF THE SPEAKER,2012Q1,PERSONNEL COMPENSATION,"","SKRZYCKI, KRISTIN S",01/01/12,01/02/12,SHARED EMPLOYEE,444.44,FISCAL YEAR 2012,"","","","SKRZYCKI, KRISTIN S"
,OFFICE OF THE SPEAKER,2012Q1,PERSONNEL COMPENSATION,"","STEEL, MICHAEL",01/01/12,01/02/12,PRESS SECRETARY,736.11,FISCAL YEAR 2012,"","","","STEEL, MICHAEL"
,OFFICE OF THE SPEAKER,2012Q1,PERSONNEL COMPENSATION,"","STEWART, DAVID B",01/01/12,01/02/12,ASST TO SPEAKER FOR POLICY,736.11,FISCAL YEAR 2012,"","","","STEWART, DAVID B"
,OFFICE OF THE SPEAKER,2012Q1,PERSONNEL COMPENSATION,"","STOCKWELL,KERRY W",01/01/12,01/02/12,SPECIAL EVENTS COORDINATOR,305.56,FISCAL YEAR 2012,"","","","STOCKWELL,KERRY W"
,OFFICE OF THE SPEAKER,2012Q1,PERSONNEL COMPENSATION,"","STRUNK, JEFFREY A",01/01/12,01/02/12,DEPUTY FLOOR DIRECTOR,416.67,FISCAL YEAR 2012,"","","","STRUNK, JEFFREY A"
,OFFICE OF THE SPEAKER,2012Q1,PERSONNEL COMPENSATION,"","THORSEN, ANNE B",01/01/12,01/02/12,FLOOR DIRECTOR,777.78,FISCAL YEAR 2012,"","","","THORSEN, ANNE B"
,OFFICE OF THE SPEAKER,2012Q1,PERSONNEL COMPENSATION,"","WOLF,ADAM J",01/01/12,01/02/12,FLOOR ASSISTANT,259.44,FISCAL YEAR 2012,"","","","WOLF,ADAM J"
,OFFICE OF THE SPEAKER,2012Q1,TRAVEL,01-04,"BENJAMIN, WILLIAM C",11/10/11,11/10/11,PRIVATE AUTO MILEAGE,55.08,FISCAL YEAR 2012,AP,Accounts payable,00344859,"BENJAMIN, WILLIAM C"
,OFFICE OF THE SPEAKER,2012Q1,TRAVEL,01-04,"SOMMERS,MICHAEL",10/06/11,11/30/11,TAXI/PARKING/TOLLS,62.00,FISCAL YEAR 2012,AP,Accounts payable,00344894,"SOMMERS,MICHAEL"
,OFFICE OF THE SPEAKER,2012Q1,TRAVEL,01-04,"SOMMERS,MICHAEL",10/11/11,10/11/11,TAXI/PARKING/TOLLS,12.00,FISCAL YEAR 2012,AP,Accounts payable,00344896,"SOMMERS,MICHAEL"
,OFFICE OF THE SPEAKER,2012Q1,TRAVEL,01-04,"HALEY, KATHERINE C",11/02/11,12/02/11,TAXI/PARKING/TOLLS,63.00,FISCAL YEAR 2012,AP,Accounts payable,00344906,"HALEY, KATHERINE C"
,OFFICE OF THE SPEAKER,2012Q1,TRAVEL,01-04,"GREENE,WILLIAM P",10/05/11,12/14/11,TAXI/PARKING/TOLLS,150.00,FISCAL YEAR 2012,AP,Accounts payable,00344915,"GREENE,WILLIAM P"
,OFFICE OF THE SPEAKER,2012Q1,TRAVEL,01-04,"PORTER, EMILY",10/17/11,10/17/11,TAXI/PARKING/TOLLS,16.00,FISCAL YEAR 2012,AP,Accounts payable,00344929,"PORTER, EMILY"
,OFFICE OF THE SPEAKER,2012Q1,TRAVEL,01-05,"JACKSON,BARRY S",11/21/11,11/21/11,TAXI/PARKING/TOLLS,76.74,FISCAL YEAR 2012,AP,Accounts payable,00344903,"JACKSON,BARRY S"
,OFFICE OF THE SPEAKER,2012Q1,TRAVEL,01-10,"ROGERS, GEORGE",12/08/11,12/08/11,LODGING,342.01,FISCAL YEAR 2012,AP,Accounts payable,00339671,"ROGERS, GEORGE"
,OFFICE OF THE SPEAKER,2012Q1,TRAVEL,01-19,"SMITH, KEVIN",10/18/11,11/08/11,TAXI/PARKING/TOLLS,50.00,FISCAL YEAR 2012,AP,Accounts payable,00359139,"SMITH, KEVIN"
,OFFICE OF THE SPEAKER,2012Q1,TRAVEL,02-01,"SAGER, MICHAEL J",11/07/11,11/15/11,TAXI/PARKING/TOLLS,46.00,FISCAL YEAR 2012,AP,Accounts payable,00368350,"SAGER, MICHAEL J"
,OFFICE OF THE SPEAKER,2012Q1,"RENT, COMMUNICATION, UTILITIES",01-05,FEDERAL EXPRESS CORP,11/29/11,11/29/11,POSTAGE / COURIER / BOX RENTAL,4.37,FISCAL YEAR 2012,AP,Accounts payable,00345925,FEDERAL EXPRESS CORP
,OFFICE OF THE SPEAKER,2012Q1,"RENT, COMMUNICATION, UTILITIES",01-05,FEDERAL EXPRESS CORP,12/09/11,12/09/11,POSTAGE / COURIER / BOX RENTAL,6.61,FISCAL YEAR 2012,AP,Accounts payable,00345925,FEDERAL EXPRESS CORP
,OFFICE OF THE SPEAKER,2012Q1,"RENT, COMMUNICATION, UTILITIES",01-05,FEDERAL EXPRESS CORP,12/16/11,12/16/11,POSTAGE / COURIER / BOX RENTAL,13.92,FISCAL YEAR 2012,AP,Accounts payable,00345925,FEDERAL EXPRESS CORP
,OFFICE OF THE SPEAKER,2012Q1,"RENT, COMMUNICATION, UTILITIES",01-18,CITIBANK P CARD,11/29/11,12/28/11,TELECOMSRV/EQ/TOLL CHARGE,301.85,FISCAL YEAR 2012,AP,Accounts payable,00355079,CITIBANK P CARD
,OFFICE OF THE SPEAKER,2012Q1,"RENT, COMMUNICATION, UTILITIES",02-13,FEDERAL EXPRESS CORP,02/07/12,02/07/12,POSTAGE / COURIER / BOX RENTAL,23.97,FISCAL YEAR 2012,AP,Accounts payable,00376470,FEDERAL EXPRESS CORP
,OFFICE OF THE SPEAKER,2012Q1,"RENT, COMMUNICATION, UTILITIES",02-16,FEDERAL EXPRESS CORP,12/30/11,12/30/11,POSTAGE / COURIER / BOX RENTAL,14.43,FISCAL YEAR 2012,AP,Accounts payable,00377698,FEDERAL EXPRESS CORP
,OFFICE OF THE SPEAKER,2012Q1,"RENT, COMMUNICATION, UTILITIES",02-17,FEDERAL EXPRESS CORP,01/04/12,01/04/12,POSTAGE / COURIER / BOX RENTAL,4.93,FISCAL YEAR 2012,AP,Accounts payable,00384630,FEDERAL EXPRESS CORP
,OFFICE OF THE SPEAKER,2012Q1,"RENT, COMMUNICATION, UTILITIES",02-17,FEDERAL EXPRESS CORP,01/17/12,01/17/12,POSTAGE / COURIER / BOX RENTAL,5.96,FISCAL YEAR 2012,AP,Accounts payable,00384634,FEDERAL EXPRESS CORP
,OFFICE OF THE SPEAKER,2012Q1,"RENT, COMMUNICATION, UTILITIES",02-21,FEDERAL EXPRESS CORP,01/23/12,01/23/12,POSTAGE / COURIER / BOX RENTAL,5.65,FISCAL YEAR 2012,AP,Accounts payable,00384638,FEDERAL EXPRESS CORP
,OFFICE OF THE SPEAKER,2012Q1,"RENT, COMMUNICATION, UTILITIES",02-23,FEDERAL EXPRESS CORP,02/10/12,02/10/12,POSTAGE / COURIER / BOX RENTAL,19.77,FISCAL YEAR 2012,AP,Accounts payable,00386041,FEDERAL EXPRESS CORP
,OFFICE OF THE SPEAKER,2012Q1,"RENT, COMMUNICATION, UTILITIES",02-24,FEDERAL EXPRESS CORP,02/15/12,02/15/12,POSTAGE / COURIER / BOX RENTAL,5.60,FISCAL YEAR 2012,AP,Accounts payable,00388764,FEDERAL EXPRESS CORP
,OFFICE OF THE SPEAKER,2012Q1,"RENT, COMMUNICATION, UTILITIES",03-05,FEDERAL EXPRESS CORP,02/22/12,02/22/12,POSTAGE / COURIER / BOX RENTAL,11.49,FISCAL YEAR 2012,AP,Accounts payable,00393929,FEDERAL EXPRESS CORP
,OFFICE OF THE SPEAKER,2012Q1,"RENT, COMMUNICATION, UTILITIES",03-05,FEDERAL EXPRESS CORP,02/24/12,02/24/12,POSTAGE / COURIER / BOX RENTAL,63.40,FISCAL YEAR 2012,AP,Accounts payable,00393929,FEDERAL EXPRESS CORP
,OFFICE OF THE SPEAKER,2012Q1,"RENT, COMMUNICATION, UTILITIES",03-05,FEDERAL EXPRESS CORP,02/27/12,02/27/12,POSTAGE / COURIER / BOX RENTAL,4.88,FISCAL YEAR 2012,AP,Accounts payable,00393929,FEDERAL EXPRESS CORP
,OFFICE OF THE SPEAKER,2012Q1,"RENT, COMMUNICATION, UTILITIES",03-12,FEDERAL EXPRESS CORP,02/29/12,02/29/12,POSTAGE / COURIER / BOX RENTAL,5.47,FISCAL YEAR 2012,AP,Accounts payable,00398177,FEDERAL EXPRESS CORP
,OFFICE OF THE SPEAKER,2012Q1,"RENT, COMMUNICATION, UTILITIES",03-27,FEDERAL EXPRESS CORP,03/14/12,03/14/12,POSTAGE / COURIER / BOX RENTAL,6.63,FISCAL YEAR 2012,AP,Accounts payable,00411789,FEDERAL EXPRESS CORP
,OFFICE OF THE SPEAKER,2012Q1,"RENT, COMMUNICATION, UTILITIES",03-27,FEDERAL EXPRESS CORP,03/16/12,03/16/12,POSTAGE / COURIER / BOX RENTAL,70.13,FISCAL YEAR 2012,AP,Accounts payable,00411789,FEDERAL EXPRESS CORP
,OFFICE OF THE SPEAKER,2012Q1,"RENT, COMMUNICATION, UTILITIES",03-27,FEDERAL EXPRESS CORP,03/20/12,03/20/12,POSTAGE / COURIER / BOX RENTAL,11.61,FISCAL YEAR 2012,AP,Accounts payable,00411789,FEDERAL EXPRESS CORP
,OFFICE OF THE SPEAKER,2012Q1,SUPPLIES AND MATERIALS,01-04,HAGUE QUALITY WATER OF MD INC,12/04/11,12/04/11,WATER,252.00,FISCAL YEAR 2012,AP,Accounts payable,00344865,HAGUE QUALITY WATER OF MD INC
,OFFICE OF THE SPEAKER,2012Q1,SUPPLIES AND MATERIALS,01-04,COCA-COLA ENTERPRISES,12/13/11,12/13/11,FOOD & BEVERAGE,132.48,FISCAL YEAR 2012,AP,Accounts payable,00344870,COCA-COLA ENTERPRISES
,OFFICE OF THE SPEAKER,2012Q1,SUPPLIES AND MATERIALS,01-04,COCA-COLA ENTERPRISES,12/06/11,12/06/11,FOOD & BEVERAGE,234.24,FISCAL YEAR 2012,AP,Accounts payable,00344877,COCA-COLA ENTERPRISES
,OFFICE OF THE SPEAKER,2012Q1,SUPPLIES AND MATERIALS,01-04,"GILLESPIE, MAURA M",12/01/11,12/01/11,HABITATION EXPENSE,11.70,FISCAL YEAR 2012,AP,Accounts payable,00345036,"GILLESPIE, MAURA M"
,OFFICE OF THE SPEAKER,2012Q1,SUPPLIES AND MATERIALS,01-18,CITIBANK P CARD,11/29/11,12/28/11,FOOD & BEVERAGE,"6,610.42",FISCAL YEAR 2012,AP,Accounts payable,00355079,CITIBANK P CARD
,OFFICE OF THE SPEAKER,2012Q1,SUPPLIES AND MATERIALS,01-19,JOE RAGAN'S COFFEE LTD,12/22/11,12/22/11,FOOD & BEVERAGE,735.39,FISCAL YEAR 2012,AP,Accounts payable,00359137,JOE RAGAN'S COFFEE LTD
,OFFICE OF THE SPEAKER,2012Q1,SUPPLIES AND MATERIALS,01-20,JOE RAGAN'S COFFEE LTD,12/01/11,12/01/11,FOOD & BEVERAGE,549.79,FISCAL YEAR 2012,AP,Accounts payable,00359725,JOE RAGAN'S COFFEE LTD
,OFFICE OF THE SPEAKER,2012Q1,SUPPLIES AND MATERIALS,01-20,JOE RAGAN'S COFFEE LTD,12/02/11,12/02/11,FOOD & BEVERAGE,180.00,FISCAL YEAR 2012,AP,Accounts payable,00359727,JOE RAGAN'S COFFEE LTD
,OFFICE OF THE SPEAKER,2012Q1,SUPPLIES AND MATERIALS,01-20,JOE RAGAN'S COFFEE LTD,12/08/11,12/08/11,FOOD & BEVERAGE,469.46,FISCAL YEAR 2012,AP,Accounts payable,00359729,JOE RAGAN'S COFFEE LTD
,OFFICE OF THE SPEAKER,2012Q1,SUPPLIES AND MATERIALS,01-20,JOE RAGAN'S COFFEE LTD,12/15/11,12/15/11,FOOD & BEVERAGE,497.48,FISCAL YEAR 2012,AP,Accounts payable,00359730,JOE RAGAN'S COFFEE LTD
,OFFICE OF THE SPEAKER,2012Q1,SUPPLIES AND MATERIALS,01-20,JOE RAGAN'S COFFEE LTD,12/19/11,12/19/11,FOOD & BEVERAGE,115.60,FISCAL YEAR 2012,AP,Accounts payable,00359732,JOE RAGAN'S COFFEE LTD
,OFFICE OF THE SPEAKER,2012Q1,SUPPLIES AND MATERIALS,01-20,DESIGN CUISINE,12/06/11,12/06/11,FOOD & BEVERAGE,"6,478.00",FISCAL YEAR 2012,AP,Accounts payable,00359734,DESIGN CUISINE
,OFFICE OF THE SPEAKER,2012Q1,SUPPLIES AND MATERIALS,01-20,DESIGN CUISINE,12/12/11,12/12/11,FOOD & BEVERAGE,"21,372.00",FISCAL YEAR 2012,AP,Accounts payable,00359737,DESIGN CUISINE
,OFFICE OF THE SPEAKER,2012Q1,SUPPLIES AND MATERIALS,01-30,"LEADERSHIP DIRECTORIES, INC",12/01/11,12/01/12,PUBLICATIONS/REFERENCE MAT'L,400.00,FISCAL YEAR 2012,AP,Accounts payable,00365764,"LEADERSHIP DIRECTORIES, INC"
,OFFICE OF THE SPEAKER,2012Q1,SUPPLIES AND MATERIALS,02-09,"GILLESPIE, MAURA M",12/09/11,12/09/11,FOOD & BEVERAGE,17.73,FISCAL YEAR 2012,AP,Accounts payable,00373729,"GILLESPIE, MAURA M"
,OFFICE OF THE SPEAKER,2012Q1,SUPPLIES AND MATERIALS,02-15,CITIBANK P CARD,10/29/11,11/28/11,HABITATION EXPENSE,-164.29,FISCAL YEAR 2012,AP,Accounts payable,00378659,CITIBANK P CARD
,OFFICE OF THE SPEAKER,2012Q1,PERSONNEL BENEFITS,01-17,HON. JOHN A. BOEHNER,12/01/11,12/31/11,OFFICIAL EXPENSES FOR LEADERS,"1,069.48",FISCAL YEAR 2012,AP,Accounts payable,00354943,HON. JOHN A. BOEHNER
,OFFICE OF THE MAJORITY LEADER,2012Q1,PERSONNEL COMPENSATION,"","BRADLEY, NEIL L",01/01/12,01/02/12,DEPUTY CHIEF OF STAFF,958.33,FISCAL YEAR 2012,"","","","BRADLEY, NEIL L"
,OFFICE OF THE MAJORITY LEADER,2012Q1,PERSONNEL COMPENSATION,"","DAYSPRING, BRADFORD",01/01/12,01/02/12,DEPUTY CHIEF OF STAFF,935.62,FISCAL YEAR 2012,"","","","DAYSPRING, BRADFORD"
,OFFICE OF THE MAJORITY LEADER,2012Q1,PERSONNEL COMPENSATION,"","DOLBOW, WILLIAM R",01/01/12,01/02/12,SENIOR ADVISOR,958.33,FISCAL YEAR 2012,"","","","DOLBOW, WILLIAM R"
,OFFICE OF THE MAJORITY LEADER,2012Q1,PERSONNEL COMPENSATION,"","FERENCE, MICHAEL J",01/01/12,01/02/12,DIRECTOR OF OUTREACH,935.62,FISCAL YEAR 2012,"","","","FERENCE, MICHAEL J"
,OFFICE OF THE MAJORITY LEADER,2012Q1,PERSONNEL COMPENSATION,"","NEVINS, KYLE W",01/01/12,01/02/12,DEPUTY CHIEF OF STAFF,958.33,FISCAL YEAR 2012,"","","","NEVINS, KYLE W"
,OFFICE OF THE MAJORITY LEADER,2012Q1,PERSONNEL COMPENSATION,"","STOMBRES, STEVEN C",01/01/12,01/02/12,CHIEF OF STAFF,958.33,FISCAL YEAR 2012,"","","","STOMBRES, STEVEN C"
,OFFICE OF THE MAJORITY LEADER,2012Q1,PERSONNEL COMPENSATION,"","BARRERA,AMY D",01/01/12,01/02/12,DIRECTOR OF ADMINISTRATION,83.33,FISCAL YEAR 2012,"","","","BARRERA,AMY D"
,OFFICE OF THE MAJORITY LEADER,2012Q1,PERSONNEL COMPENSATION,"","BRAVO, MATTHEW",01/01/12,01/02/12,FLOOR ASSISTANT/SPECIAL ASSIST,250.00,FISCAL YEAR 2012,"","","","BRAVO, MATTHEW"
,OFFICE OF THE MAJORITY LEADER,2012Q1,PERSONNEL COMPENSATION,"","CUMMINGS,TIMOTHY P",01/01/12,01/02/12,STAFF ASSISTANT,133.33,FISCAL YEAR 2012,"","","","CUMMINGS,TIMOTHY P"
,OFFICE OF THE MAJORITY LEADER,2012Q1,PERSONNEL COMPENSATION,"","FALLON,LAENA E",01/01/12,01/02/12,PRESS SECRETARY,666.67,FISCAL YEAR 2012,"","","","FALLON,LAENA E"
,OFFICE OF THE MAJORITY LEADER,2012Q1,PERSONNEL COMPENSATION,"","FREDERICKS, AUTUMN",01/01/12,01/02/12,SHARED EMPLOYEE,66.67,FISCAL YEAR 2012,"","","","FREDERICKS, AUTUMN"
,OFFICE OF THE MAJORITY LEADER,2012Q1,PERSONNEL COMPENSATION,"","GUSTAFSON,NICOLE M",01/01/12,01/02/12,POLICY ADVISOR/COUNSEL,108.33,FISCAL YEAR 2012,"","","","GUSTAFSON,NICOLE M"
,OFFICE OF THE MAJORITY LEADER,2012Q1,PERSONNEL COMPENSATION,"","JAEGER, CHERYL L",01/01/12,01/02/12,SENIOR POLICY ADVISOR,72.22,FISCAL YEAR 2012,"","","","JAEGER, CHERYL L"
,OFFICE OF THE MAJORITY LEADER,2012Q1,PERSONNEL COMPENSATION,"","JOHNSTON,STEVEN",01/01/12,01/02/12,ASSOCIATE DIR OF NEW MEDIA,230.56,FISCAL YEAR 2012,"","","","JOHNSTON,STEVEN"
,OFFICE OF THE MAJORITY LEADER,2012Q1,PERSONNEL COMPENSATION,"","KAREM,ROBERT S",01/01/12,01/02/12,SENIOR POLICY ADVISOR,650.00,FISCAL YEAR 2012,"","","","KAREM,ROBERT S"
,OFFICE OF THE MAJORITY LEADER,2012Q1,PERSONNEL COMPENSATION,"","KEECH,EMILY H",01/01/12,01/02/12,STAFF ASSISTANT,138.89,FISCAL YEAR 2012,"","","","KEECH,EMILY H"
,OFFICE OF THE MAJORITY LEADER,2012Q1,PERSONNEL COMPENSATION,"","LIRA,MATHEW L",01/01/12,01/02/12,DIRECTOR OF NEW MEDIA,527.78,FISCAL YEAR 2012,"","","","LIRA,MATHEW L"
,OFFICE OF THE MAJORITY LEADER,2012Q1,PERSONNEL COMPENSATION,"","MAHAN,ROGER A",01/01/12,01/02/12,POLICY ADVISOR,152.78,FISCAL YEAR 2012,"","","","MAHAN,ROGER A"
,OFFICE OF THE MAJORITY LEADER,2012Q1,PERSONNEL COMPENSATION,"","NELSON, VALERIE S",01/01/12,01/02/12,DIR OF MEMBER SERVICES,638.89,FISCAL YEAR 2012,"","","","NELSON, VALERIE S"
,OFFICE OF THE MAJORITY LEADER,2012Q1,PERSONNEL COMPENSATION,"","O'CONNOR, KATHLEEN",01/01/12,01/02/12,DEPUTY DIR MEMBERS SERVICES,280.56,FISCAL YEAR 2012,"","","","O'CONNOR, KATHLEEN"
,OFFICE OF THE MAJORITY LEADER,2012Q1,PERSONNEL COMPENSATION,"","PATRICK,BRIAN C",01/01/12,01/02/12,STRATEGIC COMMUNICATIONS,375.00,FISCAL YEAR 2012,"","","","PATRICK,BRIAN C"
,OFFICE OF THE MAJORITY LEADER,2012Q1,PERSONNEL COMPENSATION,"","RODRIGUERA JR,SERGIO G",01/01/12,01/02/12,SPEECH WRITER,305.56,FISCAL YEAR 2012,"","","","RODRIGUERA JR,SERGIO G"
,OFFICE OF THE MAJORITY LEADER,2012Q1,PERSONNEL COMPENSATION,"","SCHAFFER,CHRISTINE A",01/01/12,01/02/12,DEPUTY SCHEDULER,294.44,FISCAL YEAR 2012,"","","","SCHAFFER,CHRISTINE A"
,OFFICE OF THE MAJORITY LEADER,2012Q1,PERSONNEL COMPENSATION,"","STRAUS,JESSICA",01/01/12,01/02/12,ASSISTANT PRESS SECRETARY,272.22,FISCAL YEAR 2012,"","","","STRAUS,JESSICA"
,OFFICE OF THE MAJORITY LEADER,2012Q1,PERSONNEL COMPENSATION,"","TUELL,JAMES A",01/01/12,01/02/12,ASST TO THE CHIEF OF STAFF,173.61,FISCAL YEAR 2012,"","","","TUELL,JAMES A"
,OFFICE OF THE MAJORITY LEADER,2012Q1,PERSONNEL COMPENSATION,"","VIESON, CHRISTOPHER W",01/01/12,01/02/12,DEPUTY DIRECTOR OF FLOOR OPERA,472.22,FISCAL YEAR 2012,"","","","VIESON, CHRISTOPHER W"
,OFFICE OF THE MAJORITY LEADER,2012Q1,PERSONNEL COMPENSATION,"","WILLIAMS, KELLY K",01/01/12,01/02/12,FINANCIAL ADMINISTRATOR,33.33,FISCAL YEAR 2012,"","","","WILLIAMS, KELLY K"
,OFFICE OF THE MAJORITY LEADER,2012Q1,PERSONNEL COMPENSATION,"","ZACKON,MATTHEW R",01/01/12,01/02/12,SPECIAL ASSISTANT,138.89,FISCAL YEAR 2012,"","","","ZACKON,MATTHEW R"
,OFFICE OF THE MAJORITY LEADER,2012Q1,TRAVEL,01-13,"KEECH, EMILY H",12/05/11,12/12/11,PRIVATE AUTO MILEAGE,17.17,FISCAL YEAR 2012,AP,Accounts payable,00350341,"KEECH, EMILY H"
,OFFICE OF THE MAJORITY LEADER,2012Q1,TRAVEL,01-13,"FERENCE, MICHAEL J",10/27/11,10/27/11,TAXI/PARKING/TOLLS,24.00,FISCAL YEAR 2012,AP,Accounts payable,00350352,"FERENCE, MICHAEL J"
,OFFICE OF THE MAJORITY LEADER,2012Q1,TRAVEL,01-13,"GUSTAFSON,NICOLE M",10/12/11,11/02/11,TAXI/PARKING/TOLLS,27.00,FISCAL YEAR 2012,AP,Accounts payable,00350402,"GUSTAFSON,NICOLE M"
,OFFICE OF THE MAJORITY LEADER,2012Q1,TRAVEL,01-13,"TUELL,JAMES A",12/02/11,12/02/11,PRIVATE AUTO MILEAGE,26.26,FISCAL YEAR 2012,AP,Accounts payable,00350407,"TUELL,JAMES A"
,OFFICE OF THE MAJORITY LEADER,2012Q1,TRAVEL,01-13,"ZACKON, MATTHEW",11/29/11,11/29/11,TAXI/PARKING/TOLLS,14.00,FISCAL YEAR 2012,AP,Accounts payable,00350409,"ZACKON, MATTHEW"
,OFFICE OF THE MAJORITY LEADER,2012Q1,TRAVEL,01-13,"KEECH, EMILY H",11/16/11,12/01/11,PRIVATE AUTO MILEAGE,52.02,FISCAL YEAR 2012,AP,Accounts payable,00350412,"KEECH, EMILY H"
,OFFICE OF THE MAJORITY LEADER,2012Q1,TRAVEL,01-13,"ZACKON, MATTHEW",12/15/11,12/15/11,TAXI/PARKING/TOLLS,35.00,FISCAL YEAR 2012,AP,Accounts payable,00350414,"ZACKON, MATTHEW"
,OFFICE OF THE MAJORITY LEADER,2012Q1,TRAVEL,01-13,"CUMMINGS, TIMOTHY P",11/08/11,12/02/11,PRIVATE AUTO MILEAGE,4.04,FISCAL YEAR 2012,AP,Accounts payable,00350418,"CUMMINGS, TIMOTHY P"
,OFFICE OF THE MAJORITY LEADER,2012Q1,TRAVEL,01-17,"NELSON, VALERIE S",11/17/11,12/01/11,TAXI/PARKING/TOLLS,98.00,FISCAL YEAR 2012,AP,Accounts payable,00350344,"NELSON, VALERIE S"
,OFFICE OF THE MAJORITY LEADER,2012Q1,TRAVEL,01-17,"ZACKON, MATTHEW",12/01/11,12/01/11,TAXI/PARKING/TOLLS,14.50,FISCAL YEAR 2012,AP,Accounts payable,00350404,"ZACKON, MATTHEW"
,OFFICE OF THE MAJORITY LEADER,2012Q1,TRAVEL,03-16,"FERENCE, MICHAEL J",12/08/11,12/08/11,TAXI/PARKING/TOLLS,13.00,FISCAL YEAR 2012,AP,Accounts payable,00401744,"FERENCE, MICHAEL J"
,OFFICE OF THE MAJORITY LEADER,2012Q1,"RENT, COMMUNICATION, UTILITIES",01-18,CITIBANK P CARD,11/29/11,12/28/11,TELECOMSRV/EQ/TOLL CHARGE,25.00,FISCAL YEAR 2012,AP,Accounts payable,00355079,CITIBANK P CARD
,OFFICE OF THE MAJORITY LEADER,2012Q1,"RENT, COMMUNICATION, UTILITIES",01-18,CITIBANK P CARD,11/29/11,12/28/11,UTILITIES,99.00,FISCAL YEAR 2012,AP,Accounts payable,00355079,CITIBANK P CARD
,OFFICE OF THE MAJORITY LEADER,2012Q1,PRINTING AND REPRODUCTION,01-18,CITIBANK P CARD,11/29/11,12/28/11,ADVERTISEMENTS,47.99,FISCAL YEAR 2012,AP,Accounts payable,00355079,CITIBANK P CARD
,OFFICE OF THE MAJORITY LEADER,2012Q1,OTHER SERVICES,01-18,CITIBANK P CARD,11/29/11,12/28/11,NON-TECHNOLOGY SERVICE CONTR,180.12,FISCAL YEAR 2012,AP,Accounts payable,00355079,CITIBANK P CARD
,OFFICE OF THE MAJORITY LEADER,2012Q1,SUPPLIES AND MATERIALS,01-13,HIGHLAND ESTATES COFFEE,12/15/11,12/15/11,FOOD & BEVERAGE,234.60,FISCAL YEAR 2012,AP,Accounts payable,00350347,HIGHLAND ESTATES COFFEE
,OFFICE OF THE MAJORITY LEADER,2012Q1,SUPPLIES AND MATERIALS,01-13,"NEVINS, KYLE W",10/23/11,10/23/11,OFFICE SUPPLIES (OUTSIDE),41.34,FISCAL YEAR 2012,AP,Accounts payable,00350350,"NEVINS, KYLE W"
,OFFICE OF THE MAJORITY LEADER,2012Q1,SUPPLIES AND MATERIALS,01-13,HIGHLAND ESTATES COFFEE,12/05/11,12/05/11,FOOD & BEVERAGE,234.60,FISCAL YEAR 2012,AP,Accounts payable,00350355,HIGHLAND ESTATES COFFEE
,OFFICE OF THE MAJORITY LEADER,2012Q1,SUPPLIES AND MATERIALS,01-13,HIGHLAND ESTATES COFFEE,12/19/11,12/19/11,FOOD & BEVERAGE,218.70,FISCAL YEAR 2012,AP,Accounts payable,00350357,HIGHLAND ESTATES COFFEE
,OFFICE OF THE MAJORITY LEADER,2012Q1,SUPPLIES AND MATERIALS,01-13,"WILLIAMS, KELLY K",12/15/11,12/28/11,OFFICE SUPPLIES (OUTSIDE),49.75,FISCAL YEAR 2012,AP,Accounts payable,00350363,"WILLIAMS, KELLY K"
,OFFICE OF THE MAJORITY LEADER,2012Q1,SUPPLIES AND MATERIALS,01-13,"KEECH, EMILY H",12/12/11,12/12/11,FOOD & BEVERAGE,192.56,FISCAL YEAR 2012,AP,Accounts payable,00350399,"KEECH, EMILY H"
,OFFICE OF THE MAJORITY LEADER,2012Q1,SUPPLIES AND MATERIALS,01-13,U.S. HOUSE GIFT SHOP,12/15/11,12/15/11,OFFICE SUPPLIES (OUTSIDE),"1,268.50",FISCAL YEAR 2012,AP,Accounts payable,00350421,U.S. HOUSE GIFT SHOP
,OFFICE OF THE MAJORITY LEADER,2012Q1,SUPPLIES AND MATERIALS,01-17,PANERA BREAD COMPANY,11/30/11,11/30/11,FOOD & BEVERAGE,147.92,FISCAL YEAR 2012,AP,Accounts payable,00352912,PANERA BREAD COMPANY
,OFFICE OF THE MAJORITY LEADER,2012Q1,SUPPLIES AND MATERIALS,01-17,PANERA BREAD COMPANY,12/01/11,12/01/11,FOOD & BEVERAGE,95.91,FISCAL YEAR 2012,AP,Accounts payable,00352915,PANERA BREAD COMPANY
,OFFICE OF THE MAJORITY LEADER,2012Q1,SUPPLIES AND MATERIALS,01-18,CITIBANK P CARD,11/29/11,12/28/11,FOOD & BEVERAGE,985.96,FISCAL YEAR 2012,AP,Accounts payable,00355079,CITIBANK P CARD
,OFFICE OF THE MAJORITY LEADER,2012Q1,SUPPLIES AND MATERIALS,01-18,CITIBANK P CARD,11/29/11,12/28/11,PUBLICATIONS/REFERENCE MAT'L,67.05,FISCAL YEAR 2012,AP,Accounts payable,00355079,CITIBANK P CARD
,OFFICE OF THE MAJORITY LEADER,2012Q1,SUPPLIES AND MATERIALS,02-10,"RESTAURANT ASSOCIATES, LLC",12/08/11,12/08/11,FOOD & BEVERAGE,"5,635.00",FISCAL YEAR 2012,AP,Accounts payable,00374819,"RESTAURANT ASSOCIATES, LLC"
,OFFICE OF THE MAJORITY LEADER,2012Q1,SUPPLIES AND MATERIALS,02-23,CAPITOLHOST,12/14/11,12/14/11,FOOD & BEVERAGE,112.50,FISCAL YEAR 2012,AP,Accounts payable,00387326,CAPITOLHOST
,OFFICE OF THE MAJORITY LEADER,2012Q1,SUPPLIES AND MATERIALS,02-23,DEER PARK,11/28/11,12/14/11,WATER,647.57,FISCAL YEAR 2012,AP,Accounts payable,00387328,DEER PARK
,OFFICE OF THE MAJORITY LEADER,2012Q1,SUPPLIES AND MATERIALS,03-08,HIGHLAND ESTATES COFFEE,11/07/11,11/07/11,FOOD & BEVERAGE,345.90,FISCAL YEAR 2012,AP,Accounts payable,00395823,HIGHLAND ESTATES COFFEE
,OFFICE OF THE MAJORITY LEADER,2012Q1,PRINTING AND REPRODUCTION,01-13,ACCURATE WORD LLC,07/21/11,07/21/11,PRINTING & REPRODUCTION,33.95,FISCAL YEAR 2011,AP,Accounts payable,00350368,ACCURATE WORD LLC
,OFFICE OF THE MAJORITY LEADER,2012Q1,PRINTING AND REPRODUCTION,01-13,ACCURATE WORD LLC,07/12/11,07/12/11,PRINTING & REPRODUCTION,69.85,FISCAL YEAR 2011,AP,Accounts payable,00350391,ACCURATE WORD LLC
,OFFICE OF THE MAJORITY LEADER,2012Q1,PRINTING AND REPRODUCTION,01-13,ACCURATE WORD LLC,09/22/11,09/22/11,PRINTING & REPRODUCTION,39.90,FISCAL YEAR 2011,AP,Accounts payable,00350394,ACCURATE WORD LLC
,OFFICE OF THE MAJORITY LEADER,2012Q1,SUPPLIES AND MATERIALS,01-13,DEER PARK,08/27/11,09/26/11,WATER,450.20,FISCAL YEAR 2011,AP,Accounts payable,00350396,DEER PARK
,OFFICE OF THE MAJORITY LEADER,2012Q1,SUPPLIES AND MATERIALS,01-17,"SAEZ, MARIEL",09/11/11,12/04/11,PUBLICATIONS/REFERENCE MAT'L,111.30,FISCAL YEAR 2011,AP,Accounts payable,00352910,"SAEZ, MARIEL"
,OFFICE OF THE MINORITY LEADER,2012Q1,PERSONNEL COMPENSATION,02-29,"",10/01/11,12/31/11,NON-STATUTORY COMPENSATION,"488,384.49",FISCAL YEAR 2012,GL,General ledger,PAD0017180,""
,OFFICE OF THE MINORITY LEADER,2012Q1,PERSONNEL COMPENSATION,"","ABOUCHAR, KEITH S",01/01/12,01/02/12,SENIOR POLICY ADVISOR,726.67,FISCAL YEAR 2012,"","","","ABOUCHAR, KEITH S"
,OFFICE OF THE MINORITY LEADER,2012Q1,PERSONNEL COMPENSATION,"","CAPRON, MARGARET W",01/01/12,01/02/12,SENIOR ADV POLICY & COMM,709.43,FISCAL YEAR 2012,"","","","CAPRON, MARGARET W"
,OFFICE OF THE MINORITY LEADER,2012Q1,PERSONNEL COMPENSATION,"","COVEY-BRANDT, ALEXIS",01/01/12,01/02/12,FLOOR DIRECTOR,951.67,FISCAL YEAR 2012,"","","","COVEY-BRANDT, ALEXIS"
,OFFICE OF THE MINORITY LEADER,2012Q1,PERSONNEL COMPENSATION,"","DEGRAFF, KENNETH B",01/01/12,01/02/12,SENIOR POLICY ADVISOR,638.89,FISCAL YEAR 2012,"","","","DEGRAFF, KENNETH B"
,OFFICE OF THE MINORITY LEADER,2012Q1,PERSONNEL COMPENSATION,"","DEVLIN, PATRICK J",01/01/12,01/02/12,COMMUNICATIONS DIRECTOR,694.44,FISCAL YEAR 2012,"","","","DEVLIN, PATRICK J"
,OFFICE OF THE MINORITY LEADER,2012Q1,PERSONNEL COMPENSATION,"","ELSHAMI,NADEEM",01/01/12,01/02/12,COMM DIR/SENIOR ADVISOR (STAT),958.33,FISCAL YEAR 2012,"","","","ELSHAMI,NADEEM"
,OFFICE OF THE MINORITY LEADER,2012Q1,PERSONNEL COMPENSATION,"","HAMMILL, ANDREW T",01/01/12,01/02/12,PRESS SEC & DEPUTY COMM DIR,910.40,FISCAL YEAR 2012,"","","","HAMMILL, ANDREW T"
,OFFICE OF THE MINORITY LEADER,2012Q1,PERSONNEL COMPENSATION,"","HARTZ, JERRY",01/01/12,01/02/12,DIRECTOR OF FLOOR OPERATIONS,958.33,FISCAL YEAR 2012,"","","","HARTZ, JERRY"
,OFFICE OF THE MINORITY LEADER,2012Q1,PERSONNEL COMPENSATION,"","KUNDANIS, GEORGE",01/01/12,01/02/12,DEPUTY CHIEF OF STAFF,958.33,FISCAL YEAR 2012,"","","","KUNDANIS, GEORGE"
,OFFICE OF THE MINORITY LEADER,2012Q1,PERSONNEL COMPENSATION,"","LAWRENCE, JOHN A",01/01/12,01/02/12,CHIEF OF STAFF,958.33,FISCAL YEAR 2012,"","","","LAWRENCE, JOHN A"
,OFFICE OF THE MINORITY LEADER,2012Q1,PERSONNEL COMPENSATION,"","LIZARRAGA, JAIME E",01/01/12,01/02/12,SR ADV & DIR OF MEMBER SVC,886.79,FISCAL YEAR 2012,"","","","LIZARRAGA, JAIME E"
,OFFICE OF THE MINORITY LEADER,2012Q1,PERSONNEL COMPENSATION,"","MEDLIN,MELINDA L",01/01/12,01/02/12,DIRECTOR OF SCHEDULING,796.60,FISCAL YEAR 2012,"","","","MEDLIN,MELINDA L"
,OFFICE OF THE MINORITY LEADER,2012Q1,PERSONNEL COMPENSATION,"","MELTZER,RICHARD",01/01/12,01/02/12,POLICY ADVISOR,958.33,FISCAL YEAR 2012,"","","","MELTZER,RICHARD"
,OFFICE OF THE MINORITY LEADER,2012Q1,PERSONNEL COMPENSATION,"","NEWTON, KARINA L",01/01/12,01/02/12,DIRECTOR OF NEW MEDIA,750.00,FISCAL YEAR 2012,"","","","NEWTON, KARINA L"
,OFFICE OF THE MINORITY LEADER,2012Q1,PERSONNEL COMPENSATION,"","PARKER, WYNDEE R",01/01/12,01/02/12,SENIOR POLICY ADVISOR,958.33,FISCAL YEAR 2012,"","","","PARKER, WYNDEE R"
,OFFICE OF THE MINORITY LEADER,2012Q1,PERSONNEL COMPENSATION,"","PRIMUS, WENDELL E",01/01/12,01/02/12,SENIOR POLICY ADVISOR,958.33,FISCAL YEAR 2012,"","","","PRIMUS, WENDELL E"
,OFFICE OF THE MINORITY LEADER,2012Q1,PERSONNEL COMPENSATION,"","SINGLETARY, BARVETTA",01/01/12,01/02/12,POLICY DIRECTOR,738.89,FISCAL YEAR 2012,"","","","SINGLETARY, BARVETTA"
,OFFICE OF THE MINORITY LEADER,2012Q1,PERSONNEL COMPENSATION,"","STIVERS, JONATHAN",01/01/12,01/02/12,SENIOR ADVISOR,777.78,FISCAL YEAR 2012,"","","","STIVERS, JONATHAN"
,OFFICE OF THE MINORITY LEADER,2012Q1,PERSONNEL COMPENSATION,"","WATKINS, YELBERTON R",01/01/12,01/02/12,CHIEF OF STAFF,916.67,FISCAL YEAR 2012,"","","","WATKINS, YELBERTON R"
,OFFICE OF THE MINORITY LEADER,2012Q1,PERSONNEL COMPENSATION,02-29,"",10/01/11,12/31/11,NON-STATUTORY COMPENSATION,"383,343.47",FISCAL YEAR 2012,GL,General ledger,PAD0017180,""
,OFFICE OF THE MINORITY LEADER,2012Q1,PERSONNEL COMPENSATION,"","BARRY,MARY K",01/01/12,01/02/12,DEPUTY DIRECTOR OF ADVANCE,361.11,FISCAL YEAR 2012,"","","","BARRY,MARY K"
,OFFICE OF THE MINORITY LEADER,2012Q1,PERSONNEL COMPENSATION,"","BLOOM, MICHAEL T",01/01/12,01/02/12,DEPUTY POLICY DIRECTOR,429.79,FISCAL YEAR 2012,"","","","BLOOM, MICHAEL T"
,OFFICE OF THE MINORITY LEADER,2012Q1,PERSONNEL COMPENSATION,"","BURNES, AUSTIN W",01/01/12,01/02/12,DIR. OF LEGISLATIVE OPERATIONS,655.56,FISCAL YEAR 2012,"","","","BURNES, AUSTIN W"
,OFFICE OF THE MINORITY LEADER,2012Q1,PERSONNEL COMPENSATION,"","CASHMAN,MARY D",01/01/12,01/02/12,ASST TO THE CHIEF OF STAFF,400.00,FISCAL YEAR 2012,"","","","CASHMAN,MARY D"
,OFFICE OF THE MINORITY LEADER,2012Q1,PERSONNEL COMPENSATION,"","CHARVILLE,BRIDGET F",01/01/12,01/02/12,DIRECTOR OF PROTOCOL,654.82,FISCAL YEAR 2012,"","","","CHARVILLE,BRIDGET F"
,OFFICE OF THE MINORITY LEADER,2012Q1,PERSONNEL COMPENSATION,"","CHERRY,STEPHANIE",01/01/12,01/02/12,PRESS ADVISOR,371.38,FISCAL YEAR 2012,"","","","CHERRY,STEPHANIE"
,OFFICE OF THE MINORITY LEADER,2012Q1,PERSONNEL COMPENSATION,"","DAY,TAMIKA K",01/01/12,01/02/12,SR STAFF ASST SYS ADMIN,277.78,FISCAL YEAR 2012,"","","","DAY,TAMIKA K"
,OFFICE OF THE MINORITY LEADER,2012Q1,PERSONNEL COMPENSATION,"","DEWHIRST, DIANE",01/01/12,01/02/12,SENIOR ADVISOR,655.56,FISCAL YEAR 2012,"","","","DEWHIRST, DIANE"
,OFFICE OF THE MINORITY LEADER,2012Q1,PERSONNEL COMPENSATION,"","ELLISON,MATTHEW B",01/01/12,01/02/12,RESEARCH ASSISTANT,166.67,FISCAL YEAR 2012,"","","","ELLISON,MATTHEW B"
,OFFICE OF THE MINORITY LEADER,2012Q1,PERSONNEL COMPENSATION,"","FISCHER JR, ROBERT V",01/01/12,01/02/12,ASST FLOOR CHIEF,739.77,FISCAL YEAR 2012,"","","","FISCHER JR, ROBERT V"
,OFFICE OF THE MINORITY LEADER,2012Q1,PERSONNEL COMPENSATION,"","GEORGE,EVANGELINE M",01/01/12,01/02/12,PRESS ADVISOR,294.44,FISCAL YEAR 2012,"","","","GEORGE,EVANGELINE M"
,OFFICE OF THE MINORITY LEADER,2012Q1,PERSONNEL COMPENSATION,"","GREENER, APRIL L",01/01/12,01/02/12,RESEARCH DIRECTOR,472.22,FISCAL YEAR 2012,"","","","GREENER, APRIL L"
,OFFICE OF THE MINORITY LEADER,2012Q1,PERSONNEL COMPENSATION,"","HAYNES JR, WILFRED J",01/01/12,01/02/12,IT DIRECTOR,545.12,FISCAL YEAR 2012,"","","","HAYNES JR, WILFRED J"
,OFFICE OF THE MINORITY LEADER,2012Q1,PERSONNEL COMPENSATION,"","HUGHES,JOHN C",01/01/12,01/02/12,SENIOR POLICY ADVISOR,715.56,FISCAL YEAR 2012,"","","","HUGHES,JOHN C"
,OFFICE OF THE MINORITY LEADER,2012Q1,PERSONNEL COMPENSATION,"","IVESTER, WREN",01/01/12,01/02/12,ASST FLOOR CHIEF,666.10,FISCAL YEAR 2012,"","","","IVESTER, WREN"
,OFFICE OF THE MINORITY LEADER,2012Q1,PERSONNEL COMPENSATION,"","JUDGE, KRISTINE A",01/01/12,01/02/12,SENIOR ADVISOR/POLICY COMM,709.43,FISCAL YEAR 2012,"","","","JUDGE, KRISTINE A"
,OFFICE OF THE MINORITY LEADER,2012Q1,PERSONNEL COMPENSATION,"","KEITA,KAMILAH Z",01/01/12,01/02/12,DEPUTY INFOMATION TECH. DIRECT,495.18,FISCAL YEAR 2012,"","","","KEITA,KAMILAH Z"
,OFFICE OF THE MINORITY LEADER,2012Q1,PERSONNEL COMPENSATION,"","KING,RYAN M",01/01/12,01/02/12,PRESS ASSISTANT,183.33,FISCAL YEAR 2012,"","","","KING,RYAN M"
,OFFICE OF THE MINORITY LEADER,2012Q1,PERSONNEL COMPENSATION,"","LONG,MICHAEL G",01/01/12,01/02/12,DEPUTY DIRECTOR OF MEMBER SVCS,416.67,FISCAL YEAR 2012,"","","","LONG,MICHAEL G"
,OFFICE OF THE MINORITY LEADER,2012Q1,PERSONNEL COMPENSATION,"","MANGRUM, PEARL J",01/01/12,01/02/12,FINANCIAL ADMINISTRATOR,286.11,FISCAL YEAR 2012,"","","","MANGRUM, PEARL J"
,OFFICE OF THE MINORITY LEADER,2012Q1,PERSONNEL COMPENSATION,"","MERRITT,TIMOTHY",01/01/12,01/02/12,DEPUTY DIRECTOR OF SCHEDULING,333.33,FISCAL YEAR 2012,"","","","MERRITT,TIMOTHY"
,OFFICE OF THE MINORITY LEADER,2012Q1,PERSONNEL COMPENSATION,"","MERZ, JULIE E",01/01/12,01/02/12,DIR OF MEMBER SERVICES,555.56,FISCAL YEAR 2012,"","","","MERZ, JULIE E"
,OFFICE OF THE MINORITY LEADER,2012Q1,PERSONNEL COMPENSATION,"","MILLER,AMY M",01/01/12,01/02/12,SENIOR ADVISOR,555.56,FISCAL YEAR 2012,"","","","MILLER,AMY M"
,OFFICE OF THE MINORITY LEADER,2012Q1,PERSONNEL COMPENSATION,"","PATTI,VERNA A",01/01/12,01/02/12,SPECIAL ASSISTANT,66.67,FISCAL YEAR 2012,"","","","PATTI,VERNA A"
,OFFICE OF THE MINORITY LEADER,2012Q1,PERSONNEL COMPENSATION,"","PATTI,VERNA A",12/01/11,12/31/11,CORRESPONDENCE ASSISTANT (OVERTIME),629.45,FISCAL YEAR 2012,"","","","PATTI,VERNA A"
,OFFICE OF THE MINORITY LEADER,2012Q1,PERSONNEL COMPENSATION,"","PEPPER, LORI J",01/01/12,01/02/12,DEPUTY DIR. - FLOOR OPERATIONS,694.44,FISCAL YEAR 2012,"","","","PEPPER, LORI J"
,OFFICE OF THE MINORITY LEADER,2012Q1,PERSONNEL COMPENSATION,"","POWELL,JONATHAN M",01/01/12,01/02/12,DEPUTY SPEECHWRITER,444.44,FISCAL YEAR 2012,"","","","POWELL,JONATHAN M"
,OFFICE OF THE MINORITY LEADER,2012Q1,PERSONNEL COMPENSATION,"","PRICE, REVA B",01/01/12,01/02/12,ADVISOR TO THE LEADER,709.43,FISCAL YEAR 2012,"","","","PRICE, REVA B"
,OFFICE OF THE MINORITY LEADER,2012Q1,PERSONNEL COMPENSATION,"","REPKO,MARY F",01/01/12,01/02/12,SENIOR POLICY ADVISOR,732.22,FISCAL YEAR 2012,"","","","REPKO,MARY F"
,OFFICE OF THE MINORITY LEADER,2012Q1,PERSONNEL COMPENSATION,"","ROLLAND,STACEY L",01/01/12,01/02/12,POLICY ADVISOR - TAX,666.67,FISCAL YEAR 2012,"","","","ROLLAND,STACEY L"
,OFFICE OF THE MINORITY LEADER,2012Q1,PERSONNEL COMPENSATION,"","ROMICK, BRIAN",01/01/12,01/02/12,MEMBER SERVICES DIRECTOR,798.89,FISCAL YEAR 2012,"","","","ROMICK, BRIAN"
,OFFICE OF THE MINORITY LEADER,2012Q1,PERSONNEL COMPENSATION,"","SANCHEZ, CARLOS S",01/01/12,01/02/12,PRESS ADVISOR,444.44,FISCAL YEAR 2012,"","","","SANCHEZ, CARLOS S"
,OFFICE OF THE MINORITY LEADER,2012Q1,PERSONNEL COMPENSATION,"","SCHMIDT, AARON",01/01/12,01/02/12,POLICY ADVISOR,500.00,FISCAL YEAR 2012,"","","","SCHMIDT, AARON"
,OFFICE OF THE MINORITY LEADER,2012Q1,PERSONNEL COMPENSATION,"","SKEWES-COX,CHRISTINA J",01/01/12,01/01/12,OUTREACH MGR/SPEC ASST,600.00,FISCAL YEAR 2012,"","","","SKEWES-COX,CHRISTINA J"
,OFFICE OF THE MINORITY LEADER,2012Q1,PERSONNEL COMPENSATION,"","SKEWES-COX,CHRISTINA J",01/01/12,01/02/12,OUTREACH MGR/SPEC ASST,177.78,FISCAL YEAR 2012,"","","","SKEWES-COX,CHRISTINA J"
,OFFICE OF THE MINORITY LEADER,2012Q1,PERSONNEL COMPENSATION,"","SULLIVAN, BARRY K",01/01/12,01/02/12,CHIEF FLOOR SERVICE (MIN),958.33,FISCAL YEAR 2012,"","","","SULLIVAN, BARRY K"
,OFFICE OF THE MINORITY LEADER,2012Q1,PERSONNEL COMPENSATION,"","SURGEON,BINA G",01/01/12,01/02/12,SPECIAL ASST TO THE LEADER,388.89,FISCAL YEAR 2012,"","","","SURGEON,BINA G"
,OFFICE OF THE MINORITY LEADER,2012Q1,PERSONNEL COMPENSATION,"","TECKLENBURG, MICHAEL H",01/01/12,01/02/12,COUNSEL,722.22,FISCAL YEAR 2012,"","","","TECKLENBURG, MICHAEL H"
,OFFICE OF THE MINORITY LEADER,2012Q1,PERSONNEL COMPENSATION,"","UENG,STEPHANIE L",01/01/12,01/02/12,OUTREACH ASSISTANT,276.26,FISCAL YEAR 2012,"","","","UENG,STEPHANIE L"
,OFFICE OF THE MINORITY LEADER,2012Q1,PERSONNEL COMPENSATION,"","VEITCH, ALEXANDRA N",01/01/12,01/02/12,DIRECTOR OF SPEECHWRITING,625.90,FISCAL YEAR 2012,"","","","VEITCH, ALEXANDRA N"
,OFFICE OF THE MINORITY LEADER,2012Q1,PERSONNEL COMPENSATION,"","WEST,JULIUS L",01/01/12,01/02/12,DISTRICT ASSISTANT,250.00,FISCAL YEAR 2012,"","","","WEST,JULIUS L"
,OFFICE OF THE MINORITY LEADER,2012Q1,PERSONNEL COMPENSATION,"","WILEDEN,LYDIA",01/01/12,01/02/12,STAFF ASSISTANT,183.33,FISCAL YEAR 2012,"","","","WILEDEN,LYDIA"
,OFFICE OF THE MINORITY LEADER,2012Q1,PERSONNEL COMPENSATION,"","WILEDEN,LYDIA",12/01/11,12/31/11,STAFF ASSISTANT (OVERTIME),957.86,FISCAL YEAR 2012,"","","","WILEDEN,LYDIA"
,OFFICE OF THE MINORITY LEADER,2012Q1,PERSONNEL COMPENSATION,"","WOLTERS, KATE",01/01/12,01/02/12,PERSONAL ASSISTANT,769.92,FISCAL YEAR 2012,"","","","WOLTERS, KATE"
,OFFICE OF THE MINORITY LEADER,2012Q1,TRAVEL,01-04,"STIVERS, JONATHAN",11/12/11,12/06/11,TAXI/PARKING/TOLLS,49.00,FISCAL YEAR 2012,AP,Accounts payable,00344871,"STIVERS, JONATHAN"
,OFFICE OF THE MINORITY LEADER,2012Q1,TRAVEL,01-19,"AVILES,DANIELLE R",10/11/11,10/11/11,TAXI/PARKING/TOLLS,16.00,FISCAL YEAR 2012,AP,Accounts payable,00358125,"AVILES,DANIELLE R"
,OFFICE OF THE MINORITY LEADER,2012Q1,TRAVEL,01-19,"AVILES,DANIELLE R",10/12/11,10/12/11,TAXI/PARKING/TOLLS,17.00,FISCAL YEAR 2012,AP,Accounts payable,00358128,"AVILES,DANIELLE R"
,OFFICE OF THE MINORITY LEADER,2012Q1,TRAVEL,01-19,"AVILES,DANIELLE R",10/13/11,10/13/11,TAXI/PARKING/TOLLS,15.00,FISCAL YEAR 2012,AP,Accounts payable,00358134,"AVILES,DANIELLE R"
,OFFICE OF THE MINORITY LEADER,2012Q1,TRAVEL,01-19,"AVILES,DANIELLE R",10/27/11,10/27/11,TAXI/PARKING/TOLLS,15.00,FISCAL YEAR 2012,AP,Accounts payable,00358143,"AVILES,DANIELLE R"
,OFFICE OF THE MINORITY LEADER,2012Q1,TRAVEL,01-19,"AVILES,DANIELLE R",12/01/11,12/01/11,TAXI/PARKING/TOLLS,15.00,FISCAL YEAR 2012,AP,Accounts payable,00358149,"AVILES,DANIELLE R"
,OFFICE OF THE MINORITY LEADER,2012Q1,TRAVEL,01-19,"AVILES,DANIELLE R",12/03/11,12/03/11,TAXI/PARKING/TOLLS,15.00,FISCAL YEAR 2012,AP,Accounts payable,00358247,"AVILES,DANIELLE R"
,OFFICE OF THE MINORITY LEADER,2012Q1,TRAVEL,01-19,"AVILES,DANIELLE R",12/03/11,12/03/11,TAXI/PARKING/TOLLS,15.00,FISCAL YEAR 2012,AP,Accounts payable,00358249,"AVILES,DANIELLE R"
,OFFICE OF THE MINORITY LEADER,2012Q1,TRAVEL,01-19,"AVILES,DANIELLE R",12/04/11,12/04/11,TAXI/PARKING/TOLLS,15.00,FISCAL YEAR 2012,AP,Accounts payable,00358251,"AVILES,DANIELLE R"
,OFFICE OF THE MINORITY LEADER,2012Q1,TRAVEL,01-19,"AVILES,DANIELLE R",12/04/11,12/04/11,TAXI/PARKING/TOLLS,15.00,FISCAL YEAR 2012,AP,Accounts payable,00358254,"AVILES,DANIELLE R"
,OFFICE OF THE MINORITY LEADER,2012Q1,TRAVEL,01-19,"AVILES,DANIELLE R",12/08/11,12/08/11,TAXI/PARKING/TOLLS,15.00,FISCAL YEAR 2012,AP,Accounts payable,00358256,"AVILES,DANIELLE R"
,OFFICE OF THE MINORITY LEADER,2012Q1,TRAVEL,01-19,"FRY,COURTNEY",10/18/11,10/18/11,PRIVATE AUTO MILEAGE,30.60,FISCAL YEAR 2012,AP,Accounts payable,00358258,"FRY,COURTNEY"
,OFFICE OF THE MINORITY LEADER,2012Q1,TRAVEL,01-19,"DEBOSIER, CHRISTOPHER M",10/21/11,10/21/11,TAXI/PARKING/TOLLS,46.22,FISCAL YEAR 2012,AP,Accounts payable,00358261,"DEBOSIER, CHRISTOPHER M"
,OFFICE OF THE MINORITY LEADER,2012Q1,TRAVEL,01-19,"DEBOSIER, CHRISTOPHER M",11/03/11,11/03/11,TAXI/PARKING/TOLLS,10.00,FISCAL YEAR 2012,AP,Accounts payable,00358264,"DEBOSIER, CHRISTOPHER M"
,OFFICE OF THE MINORITY LEADER,2012Q1,TRAVEL,01-19,"DEBOSIER, CHRISTOPHER M",11/08/11,11/08/11,TAXI/PARKING/TOLLS,8.40,FISCAL YEAR 2012,AP,Accounts payable,00358265,"DEBOSIER, CHRISTOPHER M"
,OFFICE OF THE MINORITY LEADER,2012Q1,TRAVEL,01-26,CITIBANK GOV CARD SERVICE,12/11/11,12/12/11,COMMERCIAL TRANSPORTATION,330.70,FISCAL YEAR 2012,AP,Accounts payable,00363474,CITIBANK GOV CARD SERVICE
,OFFICE OF THE MINORITY LEADER,2012Q1,TRAVEL,01-30,CITIBANK GOV CARD SERVICE,12/10/11,12/12/11,TRAVEL SUBSISTENCE,854.01,FISCAL YEAR 2012,AP,Accounts payable,00365718,CITIBANK GOV CARD SERVICE
,OFFICE OF THE MINORITY LEADER,2012Q1,TRAVEL,01-30,"BARRY, MARY-KATE",12/03/11,12/03/11,TAXI/PARKING/TOLLS,21.00,FISCAL YEAR 2012,AP,Accounts payable,00365740,"BARRY, MARY-KATE"
,OFFICE OF THE MINORITY LEADER,2012Q1,TRAVEL,02-16,"PRICE, REVA B",11/17/11,12/14/11,TAXI/PARKING/TOLLS,37.00,FISCAL YEAR 2012,AP,Accounts payable,00377222,"PRICE, REVA B"
,OFFICE OF THE MINORITY LEADER,2012Q1,TRAVEL,02-17,"SURGEON,BINA G",12/03/11,12/15/11,TAXI/PARKING/TOLLS,58.00,FISCAL YEAR 2012,AP,Accounts payable,00384787,"SURGEON,BINA G"
,OFFICE OF THE MINORITY LEADER,2012Q1,TRAVEL,02-17,"SURGEON,BINA G",12/10/11,12/12/11,TRAVEL SUBSISTENCE,36.72,FISCAL YEAR 2012,AP,Accounts payable,00384791,"SURGEON,BINA G"
,OFFICE OF THE MINORITY LEADER,2012Q1,"RENT, COMMUNICATION, UTILITIES",01-18,CITIBANK P CARD,11/29/11,12/28/11,UTILITIES,45.38,FISCAL YEAR 2012,AP,Accounts payable,00355079,CITIBANK P CARD
,OFFICE OF THE MINORITY LEADER,2012Q1,"RENT, COMMUNICATION, UTILITIES",02-01,FEDERAL EXPRESS,12/20/11,12/20/11,POSTAGE / COURIER / BOX RENTAL,21.19,FISCAL YEAR 2012,AP,Accounts payable,00367751,FEDERAL EXPRESS
,OFFICE OF THE MINORITY LEADER,2012Q1,"RENT, COMMUNICATION, UTILITIES",02-01,FEDERAL EXPRESS,11/21/11,11/21/11,POSTAGE / COURIER / BOX RENTAL,6.19,FISCAL YEAR 2012,AP,Accounts payable,00367755,FEDERAL EXPRESS
,OFFICE OF THE MINORITY LEADER,2012Q1,"RENT, COMMUNICATION, UTILITIES",02-07,FEDERAL EXPRESS,12/30/11,12/30/11,POSTAGE / COURIER / BOX RENTAL,14.43,FISCAL YEAR 2012,AP,Accounts payable,00370777,FEDERAL EXPRESS
,OFFICE OF THE MINORITY LEADER,2012Q1,PRINTING AND REPRODUCTION,01-04,"DAVID L. ANDRUKITUS, INC",12/16/11,12/16/11,PRINTING & REPRODUCTION,40.00,FISCAL YEAR 2012,AP,Accounts payable,00344890,"DAVID L. ANDRUKITUS, INC"
,OFFICE OF THE MINORITY LEADER,2012Q1,PRINTING AND REPRODUCTION,02-23,"DAVID L. ANDRUKITUS, INC",12/28/11,12/28/11,PRINTING & REPRODUCTION,"1,727.50",FISCAL YEAR 2012,AP,Accounts payable,00386905,"DAVID L. ANDRUKITUS, INC"
,OFFICE OF THE MINORITY LEADER,2012Q1,OTHER SERVICES,01-18,CITIBANK P CARD,11/29/11,12/28/11,TECHNOLOGY SERVICE CONTRACTS,83.62,FISCAL YEAR 2012,AP,Accounts payable,00355079,CITIBANK P CARD
,OFFICE OF THE MINORITY LEADER,2012Q1,OTHER SERVICES,01-19,BERNARD RAIMO,12/01/11,12/31/11,CONSULTANT CONTRACT SERVICE,"7,628.00",FISCAL YEAR 2012,AP,Accounts payable,00358864,BERNARD RAIMO
,OFFICE OF THE MINORITY LEADER,2012Q1,OTHER SERVICES,02-01,FEDERAL EXPRESS,11/29/11,11/29/11,"WEB DEV HST,EMAIL & RLTD SERV",7.74,FISCAL YEAR 2012,AP,Accounts payable,00367762,FEDERAL EXPRESS
,OFFICE OF THE MINORITY LEADER,2012Q1,SUPPLIES AND MATERIALS,01-03,NATIONAL NEWS,01/01/12,03/31/12,PUBLICATIONS/REFERENCE MAT'L,477.75,FISCAL YEAR 2012,AP,Accounts payable,00342052,NATIONAL NEWS
,OFFICE OF THE MINORITY LEADER,2012Q1,SUPPLIES AND MATERIALS,01-04,"LAWRENCE, JOHN A",12/15/11,12/15/11,PUBLICATIONS/REFERENCE MAT'L,23.30,FISCAL YEAR 2012,AP,Accounts payable,00344866,"LAWRENCE, JOHN A"
,OFFICE OF THE MINORITY LEADER,2012Q1,SUPPLIES AND MATERIALS,01-04,CQ ROLL CALL GROUP,01/14/12,01/13/13,PUBLICATIONS/REFERENCE MAT'L,"69,900.00",FISCAL YEAR 2012,AP,Accounts payable,00344887,CQ ROLL CALL GROUP
,OFFICE OF THE MINORITY LEADER,2012Q1,SUPPLIES AND MATERIALS,01-09,HAGUE QUALITY WATER OF MD INC,12/01/11,12/31/11,WATER,378.00,FISCAL YEAR 2012,AP,Accounts payable,00344875,HAGUE QUALITY WATER OF MD INC
,OFFICE OF THE MINORITY LEADER,2012Q1,SUPPLIES AND MATERIALS,01-10,CAPITOLHOST,10/06/11,10/06/11,FOOD & BEVERAGE,28.20,FISCAL YEAR 2012,AP,Accounts payable,00348298,CAPITOLHOST
,OFFICE OF THE MINORITY LEADER,2012Q1,SUPPLIES AND MATERIALS,01-10,CAPITOLHOST,10/07/11,10/07/11,FOOD & BEVERAGE,56.40,FISCAL YEAR 2012,AP,Accounts payable,00348299,CAPITOLHOST
,OFFICE OF THE MINORITY LEADER,2012Q1,SUPPLIES AND MATERIALS,01-10,CAPITOLHOST,10/12/11,10/12/11,FOOD & BEVERAGE,89.99,FISCAL YEAR 2012,AP,Accounts payable,00348301,CAPITOLHOST
,OFFICE OF THE MINORITY LEADER,2012Q1,SUPPLIES AND MATERIALS,01-18,CITIBANK P CARD,11/29/11,12/28/11,FOOD & BEVERAGE,833.29,FISCAL YEAR 2012,AP,Accounts payable,00355079,CITIBANK P CARD
,OFFICE OF THE MINORITY LEADER,2012Q1,SUPPLIES AND MATERIALS,01-19,CAPITOLHOST,10/13/11,10/13/11,FOOD & BEVERAGE,28.20,FISCAL YEAR 2012,AP,Accounts payable,00358051,CAPITOLHOST
,OFFICE OF THE MINORITY LEADER,2012Q1,SUPPLIES AND MATERIALS,01-19,CAPITOLHOST,10/14/11,10/14/11,FOOD & BEVERAGE,56.40,FISCAL YEAR 2012,AP,Accounts payable,00358053,CAPITOLHOST
,OFFICE OF THE MINORITY LEADER,2012Q1,SUPPLIES AND MATERIALS,01-19,CAPITOLHOST,10/21/11,10/21/11,FOOD & BEVERAGE,44.20,FISCAL YEAR 2012,AP,Accounts payable,00358056,CAPITOLHOST
,OFFICE OF THE MINORITY LEADER,2012Q1,SUPPLIES AND MATERIALS,01-19,CAPITOLHOST,10/26/11,10/26/11,FOOD & BEVERAGE,89.99,FISCAL YEAR 2012,AP,Accounts payable,00358057,CAPITOLHOST
,OFFICE OF THE MINORITY LEADER,2012Q1,SUPPLIES AND MATERIALS,01-19,CAPITOLHOST,10/27/11,10/27/11,FOOD & BEVERAGE,201.82,FISCAL YEAR 2012,AP,Accounts payable,00358059,CAPITOLHOST
,OFFICE OF THE MINORITY LEADER,2012Q1,SUPPLIES AND MATERIALS,01-19,CAPITOLHOST,10/27/11,10/27/11,FOOD & BEVERAGE,28.20,FISCAL YEAR 2012,AP,Accounts payable,00358063,CAPITOLHOST
,OFFICE OF THE MINORITY LEADER,2012Q1,SUPPLIES AND MATERIALS,01-19,CAPITOLHOST,11/02/11,11/02/11,FOOD & BEVERAGE,89.99,FISCAL YEAR 2012,AP,Accounts payable,00358066,CAPITOLHOST
,OFFICE OF THE MINORITY LEADER,2012Q1,SUPPLIES AND MATERIALS,01-19,CAPITOLHOST,11/03/11,11/03/11,FOOD & BEVERAGE,28.20,FISCAL YEAR 2012,AP,Accounts payable,00358070,CAPITOLHOST
,OFFICE OF THE MINORITY LEADER,2012Q1,SUPPLIES AND MATERIALS,01-19,CAPITOLHOST,11/04/11,11/04/11,FOOD & BEVERAGE,56.40,FISCAL YEAR 2012,AP,Accounts payable,00358076,CAPITOLHOST
,OFFICE OF THE MINORITY LEADER,2012Q1,SUPPLIES AND MATERIALS,01-19,CAPITOLHOST,11/16/11,11/16/11,FOOD & BEVERAGE,89.99,FISCAL YEAR 2012,AP,Accounts payable,00358078,CAPITOLHOST
,OFFICE OF THE MINORITY LEADER,2012Q1,SUPPLIES AND MATERIALS,01-19,CAPITOLHOST,11/18/11,11/18/11,FOOD & BEVERAGE,56.40,FISCAL YEAR 2012,AP,Accounts payable,00358081,CAPITOLHOST
,OFFICE OF THE MINORITY LEADER,2012Q1,SUPPLIES AND MATERIALS,01-19,CAPITOLHOST,11/18/11,11/18/11,FOOD & BEVERAGE,112.49,FISCAL YEAR 2012,AP,Accounts payable,00358086,CAPITOLHOST
,OFFICE OF THE MINORITY LEADER,2012Q1,SUPPLIES AND MATERIALS,01-19,CAPITOLHOST,12/01/11,12/01/11,FOOD & BEVERAGE,28.20,FISCAL YEAR 2012,AP,Accounts payable,00358087,CAPITOLHOST
,OFFICE OF THE MINORITY LEADER,2012Q1,SUPPLIES AND MATERIALS,01-19,CAPITOLHOST,12/02/11,12/02/11,FOOD & BEVERAGE,90.00,FISCAL YEAR 2012,AP,Accounts payable,00358118,CAPITOLHOST
,OFFICE OF THE MINORITY LEADER,2012Q1,SUPPLIES AND MATERIALS,01-19,CAPITOLHOST,12/02/11,12/02/11,FOOD & BEVERAGE,56.40,FISCAL YEAR 2012,AP,Accounts payable,00358120,CAPITOLHOST
,OFFICE OF THE MINORITY LEADER,2012Q1,SUPPLIES AND MATERIALS,01-19,CBC RESTAURANT CORP,10/25/11,10/25/11,FOOD & BEVERAGE,158.50,FISCAL YEAR 2012,AP,Accounts payable,00358269,CBC RESTAURANT CORP
,OFFICE OF THE MINORITY LEADER,2012Q1,SUPPLIES AND MATERIALS,01-19,CBC RESTAURANT CORP,10/24/11,10/24/11,FOOD & BEVERAGE,92.50,FISCAL YEAR 2012,AP,Accounts payable,00358271,CBC RESTAURANT CORP
,OFFICE OF THE MINORITY LEADER,2012Q1,SUPPLIES AND MATERIALS,01-19,CBC RESTAURANT CORP,10/20/11,10/20/11,FOOD & BEVERAGE,213.43,FISCAL YEAR 2012,AP,Accounts payable,00358274,CBC RESTAURANT CORP
,OFFICE OF THE MINORITY LEADER,2012Q1,SUPPLIES AND MATERIALS,01-19,CBC RESTAURANT CORP,10/13/11,10/13/11,FOOD & BEVERAGE,92.99,FISCAL YEAR 2012,AP,Accounts payable,00358297,CBC RESTAURANT CORP
,OFFICE OF THE MINORITY LEADER,2012Q1,SUPPLIES AND MATERIALS,01-19,CBC RESTAURANT CORP,10/03/11,10/03/11,FOOD & BEVERAGE,100.45,FISCAL YEAR 2012,AP,Accounts payable,00358300,CBC RESTAURANT CORP
,OFFICE OF THE MINORITY LEADER,2012Q1,SUPPLIES AND MATERIALS,01-19,CBC RESTAURANT CORP,10/03/11,10/03/11,FOOD & BEVERAGE,191.50,FISCAL YEAR 2012,AP,Accounts payable,00358303,CBC RESTAURANT CORP
,OFFICE OF THE MINORITY LEADER,2012Q1,SUPPLIES AND MATERIALS,01-19,CBC RESTAURANT CORP,10/04/11,10/04/11,FOOD & BEVERAGE,114.00,FISCAL YEAR 2012,AP,Accounts payable,00358308,CBC RESTAURANT CORP
,OFFICE OF THE MINORITY LEADER,2012Q1,SUPPLIES AND MATERIALS,01-19,CBC RESTAURANT CORP,10/04/11,10/04/11,FOOD & BEVERAGE,202.50,FISCAL YEAR 2012,AP,Accounts payable,00358310,CBC RESTAURANT CORP
,OFFICE OF THE MINORITY LEADER,2012Q1,SUPPLIES AND MATERIALS,01-19,CBC RESTAURANT CORP,10/05/11,10/05/11,FOOD & BEVERAGE,97.50,FISCAL YEAR 2012,AP,Accounts payable,00358314,CBC RESTAURANT CORP
,OFFICE OF THE MINORITY LEADER,2012Q1,SUPPLIES AND MATERIALS,01-19,CBC RESTAURANT CORP,10/06/11,10/06/11,FOOD & BEVERAGE,104.49,FISCAL YEAR 2012,AP,Accounts payable,00358318,CBC RESTAURANT CORP
,OFFICE OF THE MINORITY LEADER,2012Q1,SUPPLIES AND MATERIALS,01-19,CBC RESTAURANT CORP,10/11/11,10/11/11,FOOD & BEVERAGE,66.00,FISCAL YEAR 2012,AP,Accounts payable,00358322,CBC RESTAURANT CORP
,OFFICE OF THE MINORITY LEADER,2012Q1,SUPPLIES AND MATERIALS,01-30,"HAMMILL, ANDREW T",12/03/11,12/03/11,PUBLICATIONS/REFERENCE MAT'L,4.00,FISCAL YEAR 2012,AP,Accounts payable,00365733,"HAMMILL, ANDREW T"
,OFFICE OF THE MINORITY LEADER,2012Q1,SUPPLIES AND MATERIALS,01-30,"ELSHAMI, NADEAM",10/06/11,12/17/11,PUBLICATIONS/REFERENCE MAT'L,49.95,FISCAL YEAR 2012,AP,Accounts payable,00365736,"ELSHAMI, NADEAM"
,OFFICE OF THE MINORITY LEADER,2012Q1,SUPPLIES AND MATERIALS,01-30,"WOLTERS, KATE",12/20/11,12/20/11,PUBLICATIONS/REFERENCE MAT'L,15.88,FISCAL YEAR 2012,AP,Accounts payable,00365738,"WOLTERS, KATE"
,OFFICE OF THE MINORITY LEADER,2012Q1,SUPPLIES AND MATERIALS,01-30,"BARRY, MARY-KATE",12/15/11,12/15/11,FOOD & BEVERAGE,15.59,FISCAL YEAR 2012,AP,Accounts payable,00365742,"BARRY, MARY-KATE"
,OFFICE OF THE MINORITY LEADER,2012Q1,SUPPLIES AND MATERIALS,01-30,"LAWRENCE, JOHN A",12/16/11,12/16/11,PUBLICATIONS/REFERENCE MAT'L,23.30,FISCAL YEAR 2012,AP,Accounts payable,00365751,"LAWRENCE, JOHN A"
,OFFICE OF THE MINORITY LEADER,2012Q1,SUPPLIES AND MATERIALS,02-01,CAPITOLHOST,12/06/11,12/06/11,FOOD & BEVERAGE,33.00,FISCAL YEAR 2012,AP,Accounts payable,00367717,CAPITOLHOST
,OFFICE OF THE MINORITY LEADER,2012Q1,SUPPLIES AND MATERIALS,02-01,CAPITOLHOST,12/07/11,12/07/11,FOOD & BEVERAGE,49.50,FISCAL YEAR 2012,AP,Accounts payable,00367722,CAPITOLHOST
,OFFICE OF THE MINORITY LEADER,2012Q1,SUPPLIES AND MATERIALS,02-01,CAPITOLHOST,12/14/11,12/14/11,FOOD & BEVERAGE,33.00,FISCAL YEAR 2012,AP,Accounts payable,00367725,CAPITOLHOST
,OFFICE OF THE MINORITY LEADER,2012Q1,SUPPLIES AND MATERIALS,02-01,CAPITOLHOST,12/14/11,12/14/11,FOOD & BEVERAGE,67.50,FISCAL YEAR 2012,AP,Accounts payable,00367728,CAPITOLHOST
,OFFICE OF THE MINORITY LEADER,2012Q1,SUPPLIES AND MATERIALS,02-01,BURRELLESLUCE,12/01/11,12/31/11,PUBLICATIONS/REFERENCE MAT'L,414.37,FISCAL YEAR 2012,AP,Accounts payable,00368110,BURRELLESLUCE
,OFFICE OF THE MINORITY LEADER,2012Q1,SUPPLIES AND MATERIALS,02-01,NATIONAL NEWS,01/01/12,03/31/12,PUBLICATIONS/REFERENCE MAT'L,477.75,FISCAL YEAR 2012,AP,Accounts payable,00368111,NATIONAL NEWS
,OFFICE OF THE MINORITY LEADER,2012Q1,SUPPLIES AND MATERIALS,02-01,"SOUTHWEST DISTRIBUTION, INC",01/01/12,03/31/12,PUBLICATIONS/REFERENCE MAT'L,"3,473.60",FISCAL YEAR 2012,AP,Accounts payable,00368113,"SOUTHWEST DISTRIBUTION, INC"
,OFFICE OF THE MINORITY LEADER,2012Q1,SUPPLIES AND MATERIALS,02-01,HAGUE QUALITY WATER OF MD INC,01/01/12,01/31/12,WATER,378.00,FISCAL YEAR 2012,AP,Accounts payable,00368116,HAGUE QUALITY WATER OF MD INC
,OFFICE OF THE MINORITY LEADER,2012Q1,SUPPLIES AND MATERIALS,02-01,CRYSTAL SPRINGS,12/01/11,12/31/11,FOOD & BEVERAGE,909.73,FISCAL YEAR 2012,AP,Accounts payable,00368117,CRYSTAL SPRINGS
,OFFICE OF THE MINORITY LEADER,2012Q1,SUPPLIES AND MATERIALS,02-13,LEXIS-NEXIS,12/31/11,12/31/12,PUBLICATIONS/REFERENCE MAT'L,"18,700.00",FISCAL YEAR 2012,AP,Accounts payable,00375684,LEXIS-NEXIS
,OFFICE OF THE MINORITY LEADER,2012Q1,SUPPLIES AND MATERIALS,02-16,BURRELLESLUCE,01/01/12,01/31/12,PUBLICATIONS/REFERENCE MAT'L,382.12,FISCAL YEAR 2012,AP,Accounts payable,00378146,BURRELLESLUCE
,OFFICE OF THE MINORITY LEADER,2012Q1,SUPPLIES AND MATERIALS,02-28,E & E PUBLISHING LLC,01/02/12,01/01/13,PUBLICATIONS/REFERENCE MAT'L,"5,865.00",FISCAL YEAR 2012,AP,Accounts payable,00375627,E & E PUBLISHING LLC
,OFFICE OF THE MINORITY LEADER,2012Q1,SUPPLIES AND MATERIALS,02-28,OCCASIONS CATERERS,12/14/11,12/14/11,FOOD & BEVERAGE,"6,996.00",FISCAL YEAR 2012,AP,Accounts payable,00386899,OCCASIONS CATERERS
,OFFICE OF THE MINORITY LEADER,2012Q1,SUPPLIES AND MATERIALS,02-28,OCCASIONS CATERERS,12/14/11,12/14/11,FOOD & BEVERAGE,"4,949.00",FISCAL YEAR 2012,AP,Accounts payable,00386901,OCCASIONS CATERERS
,OFFICE OF THE MINORITY LEADER,2012Q1,SUPPLIES AND MATERIALS,02-07,OCCASIONS CATERERS,09/08/11,09/08/11,FOOD & BEVERAGE,"3,771.90",FISCAL YEAR 2011,AP,Accounts payable,00370773,OCCASIONS CATERERS
,OFFICE OF THE MINORITY LEADER,2012Q1,EQUIPMENT,03-15,"VARINSIC, INC",12/07/10,12/07/10,"COMPUTER SOFTW PURCH LESS THAN $10,000","7,800.00",FISCAL YEAR 2011,AP,Accounts payable,00401241,"VARINSIC, INC"
,OFFICE OF THE MAJORITY WHIP,2012Q1,PERSONNEL COMPENSATION,"","BERRY,TIMOTHY J",01/01/12,01/02/12,CHIEF OF STAFF,958.33,FISCAL YEAR 2012,"","","","BERRY,TIMOTHY J"
,OFFICE OF THE MAJORITY WHIP,2012Q1,PERSONNEL COMPENSATION,"","PINKOS,STEPHEN M",01/01/12,01/02/12,POLICY DIR AND GENERAL COUNSEL,833.33,FISCAL YEAR 2012,"","","","PINKOS,STEPHEN M"
,OFFICE OF THE MAJORITY WHIP,2012Q1,PERSONNEL COMPENSATION,"","BARNES,FREDERIC W",01/01/12,01/02/12,FLOOR ASSISTANT,233.33,FISCAL YEAR 2012,"","","","BARNES,FREDERIC W"
,OFFICE OF THE MAJORITY WHIP,2012Q1,PERSONNEL COMPENSATION,"","BUCHANAN,NATALIE L",01/01/12,01/02/12,DIR OF MEMBER SERVICES,433.33,FISCAL YEAR 2012,"","","","BUCHANAN,NATALIE L"
,OFFICE OF THE MAJORITY WHIP,2012Q1,PERSONNEL COMPENSATION,"","CAREY,BRITTANY M",01/01/12,01/02/12,STAFF ASSISTANT,183.33,FISCAL YEAR 2012,"","","","CAREY,BRITTANY M"
,OFFICE OF THE MAJORITY WHIP,2012Q1,PERSONNEL COMPENSATION,"","DIXON, KELLY A",01/01/12,01/02/12,DEPUTY DIRECTOR OF FLOOR OPERA,500.00,FISCAL YEAR 2012,"","","","DIXON, KELLY A"
,OFFICE OF THE MAJORITY WHIP,2012Q1,PERSONNEL COMPENSATION,"","ELLIOTT,ERICA L",01/01/12,01/02/12,PRESS SECRETARY,566.67,FISCAL YEAR 2012,"","","","ELLIOTT,ERICA L"
,OFFICE OF THE MAJORITY WHIP,2012Q1,PERSONNEL COMPENSATION,"","HENEHAN, EMILY A",01/01/12,01/02/12,POLICY ADVISOR,500.00,FISCAL YEAR 2012,"","","","HENEHAN, EMILY A"
,OFFICE OF THE MAJORITY WHIP,2012Q1,PERSONNEL COMPENSATION,"","HOWARD,BENJAMIN R",01/01/12,01/02/12,FLOOR ASSISTANT,233.33,FISCAL YEAR 2012,"","","","HOWARD,BENJAMIN R"
,OFFICE OF THE MAJORITY WHIP,2012Q1,PERSONNEL COMPENSATION,"","LONG,MICHAEL P",01/01/12,01/02/12,PRESS AIDE,133.33,FISCAL YEAR 2012,"","","","LONG,MICHAEL P"
,OFFICE OF THE MAJORITY WHIP,2012Q1,PERSONNEL COMPENSATION,"","MCCLELLAND, WESLEY R",01/01/12,01/02/12,POLICY ADVISOR,500.00,FISCAL YEAR 2012,"","","","MCCLELLAND, WESLEY R"
,OFFICE OF THE MAJORITY WHIP,2012Q1,PERSONNEL COMPENSATION,"","METTLER,ASHLEY",01/01/12,01/02/12,SENIOR STAFF ASSISTANT,33.33,FISCAL YEAR 2012,"","","","METTLER,ASHLEY"
,OFFICE OF THE MAJORITY WHIP,2012Q1,PERSONNEL COMPENSATION,"","MIN, JAMES B",01/01/12,01/02/12,DEPUTY CHIEF OF STAFF,300.00,FISCAL YEAR 2012,"","","","MIN, JAMES B"
,OFFICE OF THE MAJORITY WHIP,2012Q1,PERSONNEL COMPENSATION,"","MOORE,STEVEN E",01/01/12,01/02/12,CHIEF OF STAFF TO THE DEP WHIP,333.33,FISCAL YEAR 2012,"","","","MOORE,STEVEN E"
,OFFICE OF THE MAJORITY WHIP,2012Q1,PERSONNEL COMPENSATION,"","PATAKI,TIMOTHY A",01/01/12,01/02/12,STAFF ASSISTANT,166.67,FISCAL YEAR 2012,"","","","PATAKI,TIMOTHY A"
,OFFICE OF THE MAJORITY WHIP,2012Q1,PERSONNEL COMPENSATION,"","POMPEI,SARAH",01/01/12,01/02/12,DIRECTOR OF COMMUNICATIONS,750.00,FISCAL YEAR 2012,"","","","POMPEI,SARAH"
,OFFICE OF THE MAJORITY WHIP,2012Q1,PERSONNEL COMPENSATION,"","PRATAPAS,LAUREN M",01/01/12,01/02/12,DIRECTOR OF NEW MEDIA,300.00,FISCAL YEAR 2012,"","","","PRATAPAS,LAUREN M"
,OFFICE OF THE MAJORITY WHIP,2012Q1,PERSONNEL COMPENSATION,"","STIPICEVIC, JOHN A",01/01/12,01/02/12,DIRECTOR OF FLOOR OPERATIONS,666.67,FISCAL YEAR 2012,"","","","STIPICEVIC, JOHN A"
,OFFICE OF THE MAJORITY WHIP,2012Q1,PERSONNEL COMPENSATION,"","THOMPSON,DEAN J",01/01/12,01/02/12,SR ADV FR WHIP OP/CHF DEP WHIP,166.67,FISCAL YEAR 2012,"","","","THOMPSON,DEAN J"
,OFFICE OF THE MAJORITY WHIP,2012Q1,PERSONNEL COMPENSATION,"","WORTH,BRIAN A",01/01/12,01/02/12,DIRECTOR OF COALITIONS,750.00,FISCAL YEAR 2012,"","","","WORTH,BRIAN A"
,OFFICE OF THE MAJORITY WHIP,2012Q1,TRAVEL,01-12,"PRATAPAS, LAUREN M",10/13/11,10/13/11,TAXI/PARKING/TOLLS,5.75,FISCAL YEAR 2012,AP,Accounts payable,00350116,"PRATAPAS, LAUREN M"
,OFFICE OF THE MAJORITY WHIP,2012Q1,TRAVEL,01-17,"PRATAPAS, LAUREN M",10/11/11,10/11/11,TAXI/PARKING/TOLLS,13.00,FISCAL YEAR 2012,AP,Accounts payable,00350108,"PRATAPAS, LAUREN M"
,OFFICE OF THE MAJORITY WHIP,2012Q1,TRAVEL,01-17,"PRATAPAS, LAUREN M",10/11/11,10/11/11,TAXI/PARKING/TOLLS,10.75,FISCAL YEAR 2012,AP,Accounts payable,00350111,"PRATAPAS, LAUREN M"
,OFFICE OF THE MAJORITY WHIP,2012Q1,TRAVEL,01-17,"PRATAPAS, LAUREN M",10/11/11,10/11/11,TAXI/PARKING/TOLLS,11.00,FISCAL YEAR 2012,AP,Accounts payable,00350114,"PRATAPAS, LAUREN M"
,OFFICE OF THE MAJORITY WHIP,2012Q1,SUPPLIES AND MATERIALS,01-12,"MIN, JAMES B",12/20/11,12/20/11,FOOD & BEVERAGE,49.17,FISCAL YEAR 2012,AP,Accounts payable,00350086,"MIN, JAMES B"
,OFFICE OF THE MAJORITY WHIP,2012Q1,SUPPLIES AND MATERIALS,01-12,DEER PARK,10/27/11,11/26/11,WATER,485.20,FISCAL YEAR 2012,AP,Accounts payable,00350089,DEER PARK
,OFFICE OF THE MAJORITY WHIP,2012Q1,SUPPLIES AND MATERIALS,01-12,"POMPEI, SARAH",12/01/11,12/01/11,FOOD & BEVERAGE,17.63,FISCAL YEAR 2012,AP,Accounts payable,00350096,"POMPEI, SARAH"
,OFFICE OF THE MAJORITY WHIP,2012Q1,SUPPLIES AND MATERIALS,01-12,"POMPEI, SARAH",12/08/11,12/08/11,FOOD & BEVERAGE,17.63,FISCAL YEAR 2012,AP,Accounts payable,00350099,"POMPEI, SARAH"
,OFFICE OF THE MAJORITY WHIP,2012Q1,SUPPLIES AND MATERIALS,01-12,"POMPEI, SARAH",12/13/11,12/13/11,FOOD & BEVERAGE,17.63,FISCAL YEAR 2012,AP,Accounts payable,00350102,"POMPEI, SARAH"
,OFFICE OF THE MAJORITY WHIP,2012Q1,SUPPLIES AND MATERIALS,01-12,"PRATAPAS, LAUREN M",12/15/11,12/15/11,FOOD & BEVERAGE,17.63,FISCAL YEAR 2012,AP,Accounts payable,00350105,"PRATAPAS, LAUREN M"
,OFFICE OF THE MAJORITY WHIP,2012Q1,SUPPLIES AND MATERIALS,01-12,"PRATAPAS, LAUREN M",10/11/11,10/11/11,OFFICE SUPPLIES (OUTSIDE),31.75,FISCAL YEAR 2012,AP,Accounts payable,00350118,"PRATAPAS, LAUREN M"
,OFFICE OF THE MAJORITY WHIP,2012Q1,SUPPLIES AND MATERIALS,01-18,CITIBANK P CARD,11/29/11,12/28/11,FOOD & BEVERAGE,"9,170.76",FISCAL YEAR 2012,AP,Accounts payable,00355079,CITIBANK P CARD
,OFFICE OF THE MAJORITY WHIP,2012Q1,SUPPLIES AND MATERIALS,01-18,CITIBANK P CARD,11/29/11,12/28/11,PUBLICATIONS/REFERENCE MAT'L,37.10,FISCAL YEAR 2012,AP,Accounts payable,00355079,CITIBANK P CARD
,OFFICE OF THE MAJORITY WHIP,2012Q1,SUPPLIES AND MATERIALS,01-30,"",01/06/12,01/11/12,FRAMING (TRANSFER),81.00,FISCAL YEAR 2012,GL,General ledger,FRM0016205,""
,OFFICE OF THE MAJORITY WHIP,2012Q1,SUPPLIES AND MATERIALS,02-08,"POMPEI, SARAH",12/15/11,12/15/11,FOOD & BEVERAGE,17.63,FISCAL YEAR 2012,AP,Accounts payable,00372993,"POMPEI, SARAH"
,OFFICE OF THE MAJORITY WHIP,2012Q1,SUPPLIES AND MATERIALS,02-17,"MIN, JAMES B",12/02/11,12/02/11,FOOD & BEVERAGE,31.08,FISCAL YEAR 2012,AP,Accounts payable,00384736,"MIN, JAMES B"
,OFFICE OF THE MAJORITY WHIP,2012Q1,SUPPLIES AND MATERIALS,02-28,"MIN, JAMES B",12/02/11,12/02/11,FOOD & BEVERAGE,211.03,FISCAL YEAR 2012,AP,Accounts payable,00384765,"MIN, JAMES B"
,OFFICE OF THE MAJORITY WHIP,2012Q1,PERSONNEL COMPENSATION,"","GRIMALDI, DAVID F",12/01/10,12/31/10,SPECIAL ASSISTANT,"-1,138.88",FISCAL YEAR 2011,"","","","GRIMALDI, DAVID F"
,OFFICE OF THE MAJORITY WHIP,2012Q1,TRAVEL,01-17,"PRATAPAS, LAUREN M",09/11/11,09/11/11,TAXI/PARKING/TOLLS,13.00,FISCAL YEAR 2011,AP,Accounts payable,00350091,"PRATAPAS, LAUREN M"
,OFFICE OF THE MAJORITY WHIP,2012Q1,TRAVEL,01-17,"PRATAPAS, LAUREN M",09/11/11,09/11/11,TAXI/PARKING/TOLLS,12.00,FISCAL YEAR 2011,AP,Accounts payable,00350094,"PRATAPAS, LAUREN M"
,OFFICE OF THE MAJORITY WHIP,2012Q1,SUPPLIES AND MATERIALS,02-07,LEXIS-NEXIS,09/01/11,09/30/11,PUBLICATIONS/REFERENCE MAT'L,575.00,FISCAL YEAR 2011,AP,Accounts payable,00372064,LEXIS-NEXIS
,OFFICE OF THE MAJORITY WHIP,2012Q1,SUPPLIES AND MATERIALS,02-15,CITIBANK P CARD,03/29/11,04/28/11,FOOD & BEVERAGE,-616.01,FISCAL YEAR 2011,AP,Accounts payable,00378659,CITIBANK P CARD
,OFFICE OF THE MINORITY WHIP,2012Q1,PERSONNEL COMPENSATION,"","ABOUCHAR, KEITH S",01/01/12,01/02/12,SENIOR POLICY ADVISOR,12.22,FISCAL YEAR 2012,"","","","ABOUCHAR, KEITH S"
,OFFICE OF THE MINORITY WHIP,2012Q1,PERSONNEL COMPENSATION,"","AVILES,DANIELLE R",01/01/12,01/02/12,STAFF ASSISTANT,155.56,FISCAL YEAR 2012,"","","","AVILES,DANIELLE R"
,OFFICE OF THE MINORITY WHIP,2012Q1,PERSONNEL COMPENSATION,"","AVILES,DANIELLE R",12/01/11,12/31/11,STAFF ASSISTANT (OVERTIME),"1,342.77",FISCAL YEAR 2012,"","","","AVILES,DANIELLE R"
,OFFICE OF THE MINORITY WHIP,2012Q1,PERSONNEL COMPENSATION,"","BEACH,MAUREEN M",01/01/12,01/02/12,MD PRESS SEC/DEP PRESS SEC,188.89,FISCAL YEAR 2012,"","","","BEACH,MAUREEN M"
,OFFICE OF THE MINORITY WHIP,2012Q1,PERSONNEL COMPENSATION,"","BOHANAN JR, JOHN L",01/01/12,01/02/12,CONSTITUENT LIAISON,33.33,FISCAL YEAR 2012,"","","","BOHANAN JR, JOHN L"
,OFFICE OF THE MINORITY WHIP,2012Q1,PERSONNEL COMPENSATION,"","BURNES, AUSTIN W",01/01/12,01/02/12,DIR. OF LEGISLATIVE OPERATIONS,6.67,FISCAL YEAR 2012,"","","","BURNES, AUSTIN W"
,OFFICE OF THE MINORITY WHIP,2012Q1,PERSONNEL COMPENSATION,"","COLLINS, MICHAEL E",01/01/12,01/02/12,CHIEF DEPUTY WHIP,236.11,FISCAL YEAR 2012,"","","","COLLINS, MICHAEL E"
,OFFICE OF THE MINORITY WHIP,2012Q1,PERSONNEL COMPENSATION,"","COVEY-BRANDT, ALEXIS",01/01/12,01/02/12,CHIEF OF STAFF,6.67,FISCAL YEAR 2012,"","","","COVEY-BRANDT, ALEXIS"
,OFFICE OF THE MINORITY WHIP,2012Q1,PERSONNEL COMPENSATION,"","DEBOSIER, CHRISTOPHER M",01/01/12,01/02/12,DIR OF MEM SERVICES & OUTREACH,486.11,FISCAL YEAR 2012,"","","","DEBOSIER, CHRISTOPHER M"
,OFFICE OF THE MINORITY WHIP,2012Q1,PERSONNEL COMPENSATION,"","EISENBERG,MICHAEL",01/01/12,01/02/12,WHIP COORDINATOR,333.33,FISCAL YEAR 2012,"","","","EISENBERG,MICHAEL"
,OFFICE OF THE MINORITY WHIP,2012Q1,PERSONNEL COMPENSATION,"","FRY,COURTNEY",01/01/12,01/02/12,MEMBER SRVS AND OUTREACH COORD,388.89,FISCAL YEAR 2012,"","","","FRY,COURTNEY"
,OFFICE OF THE MINORITY WHIP,2012Q1,PERSONNEL COMPENSATION,"","GENSEMER,ELLIOT J",01/01/12,01/02/12,STAFF ASSISTANT,138.89,FISCAL YEAR 2012,"","","","GENSEMER,ELLIOT J"
,OFFICE OF THE MINORITY WHIP,2012Q1,PERSONNEL COMPENSATION,"","GENSEMER,ELLIOT J",12/01/11,12/31/11,STAFF ASSISTANT (OVERTIME),"1,171.86",FISCAL YEAR 2012,"","","","GENSEMER,ELLIOT J"
,OFFICE OF THE MINORITY WHIP,2012Q1,PERSONNEL COMPENSATION,"","GHOSH,APRATIM",01/01/12,01/02/12,SPECIAL ASSISTANT,222.22,FISCAL YEAR 2012,"","","","GHOSH,APRATIM"
,OFFICE OF THE MINORITY WHIP,2012Q1,PERSONNEL COMPENSATION,"","GOFF,SHUWANZA R",01/01/12,01/02/12,DEPUTY DIR LEG OPERATIONS,388.89,FISCAL YEAR 2012,"","","","GOFF,SHUWANZA R"
,OFFICE OF THE MINORITY WHIP,2012Q1,PERSONNEL COMPENSATION,"","GRANT,KATHRYN L",01/01/12,01/02/12,COMMUNICATIONS DIRECTOR,500.00,FISCAL YEAR 2012,"","","","GRANT,KATHRYN L"
,OFFICE OF THE MINORITY WHIP,2012Q1,PERSONNEL COMPENSATION,"","HUGHES,JOHN C",01/01/12,01/02/12,SENIOR POLICY ADVISOR,6.67,FISCAL YEAR 2012,"","","","HUGHES,JOHN C"
,OFFICE OF THE MINORITY WHIP,2012Q1,PERSONNEL COMPENSATION,"","LEUSCHEN, JAMES P",01/01/12,01/02/12,SENIOR POLICY ADVISOR,638.89,FISCAL YEAR 2012,"","","","LEUSCHEN, JAMES P"
,OFFICE OF THE MINORITY WHIP,2012Q1,PERSONNEL COMPENSATION,"","MEDLEY, ANNA E",01/01/12,01/02/12,DIR OF SCHEDLNG & SPEC EVENTS,388.89,FISCAL YEAR 2012,"","","","MEDLEY, ANNA E"
,OFFICE OF THE MINORITY WHIP,2012Q1,PERSONNEL COMPENSATION,"","MOORE, MIKAEL",01/01/12,01/02/12,CHIEF DEPUTY WHIP,222.22,FISCAL YEAR 2012,"","","","MOORE, MIKAEL"
,OFFICE OF THE MINORITY WHIP,2012Q1,PERSONNEL COMPENSATION,"","MURRAY, ELIZABETH M",01/01/12,01/02/12,SENIOR POLICY ADVISOR,738.89,FISCAL YEAR 2012,"","","","MURRAY, ELIZABETH M"
,OFFICE OF THE MINORITY WHIP,2012Q1,PERSONNEL COMPENSATION,"","OCAMPO,MARIA L",01/01/12,01/02/12,MEM SER AND OUTREACH COORDIN,377.78,FISCAL YEAR 2012,"","","","OCAMPO,MARIA L"
,OFFICE OF THE MINORITY WHIP,2012Q1,PERSONNEL COMPENSATION,"","REILLY,DANIEL W",01/01/12,01/02/12,PRESS SECRETARY,55.56,FISCAL YEAR 2012,"","","","REILLY,DANIEL W"
,OFFICE OF THE MINORITY WHIP,2012Q1,PERSONNEL COMPENSATION,"","REPKO,MARY F",01/01/12,01/02/12,SENIOR POLICY ADVISOR,6.67,FISCAL YEAR 2012,"","","","REPKO,MARY F"
,OFFICE OF THE MINORITY WHIP,2012Q1,PERSONNEL COMPENSATION,"","ROMICK, BRIAN",01/01/12,01/02/12,WHIP DIR AND SENIOR ADVISOR,6.67,FISCAL YEAR 2012,"","","","ROMICK, BRIAN"
,OFFICE OF THE MINORITY WHIP,2012Q1,PERSONNEL COMPENSATION,"","SAEZ,MARIEL S",01/01/12,01/02/12,PRESS AND RESEARCH ASSISTANT,200.00,FISCAL YEAR 2012,"","","","SAEZ,MARIEL S"
,OFFICE OF THE MINORITY WHIP,2012Q1,PERSONNEL COMPENSATION,"","SHOTT,DANIEL",01/01/12,01/02/12,EXECUTIVE ASST/OFFICE MANAGER,222.22,FISCAL YEAR 2012,"","","","SHOTT,DANIEL"
,OFFICE OF THE MINORITY WHIP,2012Q1,PERSONNEL COMPENSATION,"","SIXKILLER, MARIAH S",01/01/12,01/02/12,SENIOR POLICY ADVISOR,322.22,FISCAL YEAR 2012,"","","","SIXKILLER, MARIAH S"
,OFFICE OF THE MINORITY WHIP,2012Q1,PERSONNEL COMPENSATION,"","WEISSMANN, ADAM",01/01/12,01/02/12,SPEECHWRITER,305.56,FISCAL YEAR 2012,"","","","WEISSMANN, ADAM"
,OFFICE OF THE MINORITY WHIP,2012Q1,"RENT, COMMUNICATION, UTILITIES",01-18,CITIBANK P CARD,11/29/11,12/28/11,TELECOMSRV/EQ/TOLL CHARGE,469.99,FISCAL YEAR 2012,AP,Accounts payable,00355079,CITIBANK P CARD
,OFFICE OF THE MINORITY WHIP,2012Q1,"RENT, COMMUNICATION, UTILITIES",01-26,"HELLO DIRECT, INC",01/10/12,01/10/12,TELECOMSRV/EQ/TOLL CHARGE,320.95,FISCAL YEAR 2012,AP,Accounts payable,00364529,"HELLO DIRECT, INC"
,OFFICE OF THE MINORITY WHIP,2012Q1,"RENT, COMMUNICATION, UTILITIES",02-15,CITIBANK P CARD,12/29/11,01/28/12,TELECOMSRV/EQ/TOLL CHARGE,200.00,FISCAL YEAR 2012,AP,Accounts payable,00378659,CITIBANK P CARD
,OFFICE OF THE MINORITY WHIP,2012Q1,OTHER SERVICES,01-18,CITIBANK P CARD,11/29/11,12/28/11,LAUNDRY SERVICES,50.93,FISCAL YEAR 2012,AP,Accounts payable,00355079,CITIBANK P CARD
,OFFICE OF THE MINORITY WHIP,2012Q1,OTHER SERVICES,02-15,CITIBANK P CARD,12/29/11,01/28/12,LAUNDRY SERVICES,63.66,FISCAL YEAR 2012,AP,Accounts payable,00378659,CITIBANK P CARD
,OFFICE OF THE MINORITY WHIP,2012Q1,OTHER SERVICES,02-15,CITIBANK P CARD,12/29/11,01/28/12,TECHNOLOGY SERVICE CONTRACTS,63.97,FISCAL YEAR 2012,AP,Accounts payable,00378659,CITIBANK P CARD
,OFFICE OF THE MINORITY WHIP,2012Q1,SUPPLIES AND MATERIALS,01-18,CITIBANK P CARD,11/29/11,12/28/11,FOOD & BEVERAGE,"2,597.52",FISCAL YEAR 2012,AP,Accounts payable,00355079,CITIBANK P CARD
,OFFICE OF THE MINORITY WHIP,2012Q1,SUPPLIES AND MATERIALS,01-18,CITIBANK P CARD,11/29/11,12/28/11,PUBLICATIONS/REFERENCE MAT'L,428.82,FISCAL YEAR 2012,AP,Accounts payable,00355079,CITIBANK P CARD
,DEMOCRATIC STEERING AND POLICY,2012Q1,PERSONNEL COMPENSATION,02-29,"",10/01/11,12/31/11,NON-STATUTORY COMPENSATION,"-105,750.00",FISCAL YEAR 2012,GL,General ledger,PAD0017180,""
,DEMOCRATIC STEERING AND POLICY,2012Q1,PERSONNEL COMPENSATION,02-29,"",10/01/11,12/31/11,NON-STATUTORY COMPENSATION,"-183,563.33",FISCAL YEAR 2012,GL,General ledger,PAD0017180,""
,DEMOCRATIC CAUCUS,2012Q1,PERSONNEL COMPENSATION,"","RUBINO,SHELLEY M",01/01/12,01/02/12,ADVISOR TO THE CHAIRMAN,479.17,FISCAL YEAR 2012,"","","","RUBINO,SHELLEY M"
